Workbook

Sheet Annuity
A1: i | B1: 0.05
A2: Age | B2: Formula | C2: VBA | D2: NPV Offset | E2: NPV Index | H2: Precalculated values
A3: 65 | B3: =SUMPRODUCT(TRANSPOSE((1+i)^-TRANSPOSE(ROW(OFFSET(A2000Basic,A3,,ROWS(A2000Basic)-A3))-A3-ROW(INDEX(A2000Basic,1))+1)),EXP(MMULT(1-( ROW(OFFSET(A2000Basic,A3,,ROWS(A2000Basic)-A3))<TRANSPOSE(ROW(OFFSET(A2000Basic,A3,,ROWS(A2000Basic)-A3)))),LN(1-OFFSET(A2000Basic,A3,,ROWS(A2000Basic)-A3))))) -> 11.31296262 | C3: =LiveAnnuityPV(A3,i,A2000Basic) -> 11.31296262 | D3: =NPV(i,OFFSET(A2000Basic,A3,1+A3,120-A3+1)) -> 11.31296262 | E3: =NPV(i,INDEX($H$4:$DR$118,1+A3,1+A3):INDEX($H$118:$DR$118,1,1+A3)) -> 11.31296262 | F3: Age | G3: Male qx | H3: 0 | I3: 1 | J3: 2 | K3: 3 | L3: 4 | M3: 5 | N3: 6 | O3: 7 | P3: 8 | Q3: 9 | R3: 10 | S3: 11 | T3: 12 | U3: 13 | V3: 14 | W3: 15 | X3: 16 | Y3: 17 | Z3: 18 | AA3: 19 | AB3: 20 | AC3: 21 | AD3: 22 | AE3: 23 | AF3: 24 | AG3: 25 | AH3: 26 | AI3: 27 | AJ3: 28 | AK3: 29 | AL3: 30 | AM3: 31 | AN3: 32 | AO3: 33 | AP3: 34 | AQ3: 35 | AR3: 36 | AS3: 37 | AT3: 38 | AU3: 39 | AV3: 40 | AW3: 41 | AX3: 42 | AY3: 43 | AZ3: 44 | BA3: 45 | BB3: 46 | BC3: 47 | BD3: 48 | BE3: 49 | BF3: 50 | BG3: 51 | BH3: 52 | BI3: 53 | BJ3: 54 | BK3: 55 | BL3: 56 | BM3: 57 | BN3: 58 | BO3: 59 | BP3: 60 | BQ3: 61 | BR3: 62 | BS3: 63 | BT3: 64 | BU3: 65 | BV3: 66 | BW3: 67 | BX3: 68 | BY3: 69 | BZ3: 70 | CA3: 71 | CB3: 72 | CC3: 73 | CD3: 74 | CE3: 75 | CF3: 76 | CG3: 77 | CH3: 78 | CI3: 79 | CJ3: 80 | CK3: 81 | CL3: 82 | CM3: 83 | CN3: 84 | CO3: 85 | CP3: 86 | CQ3: 87 | CR3: 88 | CS3: 89 | CT3: 90 | CU3: 91 | CV3: 92 | CW3: 93 | CX3: 94 | CY3: 95 | CZ3: 96 | DA3: 97 | DB3: 98 | DC3: 99 | DD3: 100 | DE3: 101 | DF3: 102 | DG3: 103 | DH3: 104 | DI3: 105 | DJ3: 106 | DK3: 107 | DL3: 108 | DM3: 109 | DN3: 110 | DO3: 111 | DP3: 112 | DQ3: 113 | DR3: 114
A4: =A3+1 -> 66 | B4: =SUMPRODUCT(TRANSPOSE((1+i)^-TRANSPOSE(ROW(OFFSET(A2000Basic,A4,,ROWS(A2000Basic)-A4))-A4-ROW(INDEX(A2000Basic,1))+1)),EXP(MMULT(1-( ROW(OFFSET(A2000Basic,A4,,ROWS(A2000Basic)-A4))<TRANSPOSE(ROW(OFFSET(A2000Basic,A4,,ROWS(A2000Basic)-A4)))),LN(1-OFFSET(A2000Basic,A4,,ROWS(A2000Basic)-A4))))) -> 10.99859672 | C4: =LiveAnnuityPV(A4,i,A2000Basic) -> 10.99859672 | D4: 10.99859672 | E4: =NPV(i,INDEX($H$4:$DR$118,1+A4,1+A4):INDEX($H$118:$DR$118,1,1+A4)) -> 10.99859672 | F4: 0 | G4: 0 | H4: =1-$G4 -> 1
A5: =A4+1 -> 67 | B5: =SUMPRODUCT(TRANSPOSE((1+i)^-TRANSPOSE(ROW(OFFSET(A2000Basic,A5,,ROWS(A2000Basic)-A5))-A5-ROW(INDEX(A2000Basic,1))+1)),EXP(MMULT(1-( ROW(OFFSET(A2000Basic,A5,,ROWS(A2000Basic)-A5))<TRANSPOSE(ROW(OFFSET(A2000Basic,A5,,ROWS(A2000Basic)-A5)))),LN(1-OFFSET(A2000Basic,A5,,ROWS(A2000Basic)-A5))))) -> 10.66517834 | C5: =LiveAnnuityPV(A5,i,A2000Basic) -> 10.66517834 | D5: 10.66517834 | E5: =NPV(i,INDEX($H$4:$DR$118,1+A5,1+A5):INDEX($H$118:$DR$118,1,1+A5)) -> 10.66517834 | F5: 1 | G5: 0 | H5: =(1-$G5)*H4 -> 1 | I5: =1-$G5 -> 1
A6: 68 | B6: =SUMPRODUCT(TRANSPOSE((1+i)^-TRANSPOSE(ROW(OFFSET(A2000Basic,A6,,ROWS(A2000Basic)-A6))-A6-ROW(INDEX(A2000Basic,1))+1)),EXP(MMULT(1-( ROW(OFFSET(A2000Basic,A6,,ROWS(A2000Basic)-A6))<TRANSPOSE(ROW(OFFSET(A2000Basic,A6,,ROWS(A2000Basic)-A6)))),LN(1-OFFSET(A2000Basic,A6,,ROWS(A2000Basic)-A6))))) -> 10.31155279 | C6: =LiveAnnuityPV(A6,i,A2000Basic) -> 10.31155279 | D6: 10.31155279 | E6: =NPV(i,INDEX($H$4:$DR$118,1+A6,1+A6):INDEX($H$118:$DR$118,1,1+A6)) -> 10.31155279 | F6: 2 | G6: 0 | H6: =(1-$G6)*H5 -> 1 | I6: =(1-$G6)*I5 -> 1 | J6: =1-$G6 -> 1
A7: 69 | B7: =SUMPRODUCT(TRANSPOSE((1+i)^-TRANSPOSE(ROW(OFFSET(A2000Basic,A7,,ROWS(A2000Basic)-A7))-A7-ROW(INDEX(A2000Basic,1))+1)),EXP(MMULT(1-( ROW(OFFSET(A2000Basic,A7,,ROWS(A2000Basic)-A7))<TRANSPOSE(ROW(OFFSET(A2000Basic,A7,,ROWS(A2000Basic)-A7)))),LN(1-OFFSET(A2000Basic,A7,,ROWS(A2000Basic)-A7))))) -> 10.04809227 | C7: =LiveAnnuityPV(A7,i,A2000Basic) -> 10.04809227 | D7: 10.04809227 | E7: =NPV(i,INDEX($H$4:$DR$118,1+A7,1+A7):INDEX($H$118:$DR$118,1,1+A7)) -> 10.04809227 | F7: 3 | G7: 0 | H7: 1 | I7: 1 | J7: =(1-$G7)*J6 -> 1 | K7: =1-$G7 -> 1
A8: 70 | B8: =SUMPRODUCT(TRANSPOSE((1+i)^-TRANSPOSE(ROW(OFFSET(A2000Basic,A8,,ROWS(A2000Basic)-A8))-A8-ROW(INDEX(A2000Basic,1))+1)),EXP(MMULT(1-( ROW(OFFSET(A2000Basic,A8,,ROWS(A2000Basic)-A8))<TRANSPOSE(ROW(OFFSET(A2000Basic,A8,,ROWS(A2000Basic)-A8)))),LN(1-OFFSET(A2000Basic,A8,,ROWS(A2000Basic)-A8))))) -> 9.765813149 | C8: =LiveAnnuityPV(A8,i,A2000Basic) -> 9.765813149 | D8: 9.765813149 | E8: =NPV(i,INDEX($H$4:$DR$118,1+A8,1+A8):INDEX($H$118:$DR$118,1,1+A8)) -> 9.765813149 | F8: 4 | G8: 0 | H8: 1 | I8: 1 | J8: 1 | K8: =(1-$G8)*K7 -> 1 | L8: =1-$G8 -> 1
A9: 71 | B9: =SUMPRODUCT(TRANSPOSE((1+i)^-TRANSPOSE(ROW(OFFSET(A2000Basic,A9,,ROWS(A2000Basic)-A9))-A9-ROW(INDEX(A2000Basic,1))+1)),EXP(MMULT(1-( ROW(OFFSET(A2000Basic,A9,,ROWS(A2000Basic)-A9))<TRANSPOSE(ROW(OFFSET(A2000Basic,A9,,ROWS(A2000Basic)-A9)))),LN(1-OFFSET(A2000Basic,A9,,ROWS(A2000Basic)-A9))))) -> 9.463371231 | C9: =LiveAnnuityPV(A9,i,A2000Basic) -> 9.463371231 | D9: 9.463371231 | E9: =NPV(i,INDEX($H$4:$DR$118,1+A9,1+A9):INDEX($H$118:$DR$118,1,1+A9)) -> 9.463371231 | F9: 5 | G9: 0.0003 | H9: 0.9997 | I9: 0.9997 | J9: 0.9997 | K9: 0.9997 | L9: =(1-$G9)*L8 -> 0.9997 | M9: =1-$G9 -> 0.9997
A10: 72 | B10: =SUMPRODUCT(TRANSPOSE((1+i)^-TRANSPOSE(ROW(OFFSET(A2000Basic,A10,,ROWS(A2000Basic)-A10))-A10-ROW(INDEX(A2000Basic,1))+1)),EXP(MMULT(1-( ROW(OFFSET(A2000Basic,A10,,ROWS(A2000Basic)-A10))<TRANSPOSE(ROW(OFFSET(A2000Basic,A10,,ROWS(A2000Basic)-A10)))),LN(1-OFFSET(A2000Basic,A10,,ROWS(A2000Basic)-A10))))) -> 9.139326319 | C10: =LiveAnnuityPV(A10,i,A2000Basic) -> 9.139326319 | D10: 9.139326319 | E10: =NPV(i,INDEX($H$4:$DR$118,1+A10,1+A10):INDEX($H$118:$DR$118,1,1+A10)) -> 9.139326319 | F10: 6 | G10: 0.0003 | H10: 0.99940009 | I10: 0.99940009 | J10: 0.99940009 | K10: 0.99940009 | L10: 0.99940009 | M10: =(1-$G10)*M9 -> 0.99940009 | N10: =1-$G10 -> 0.9997
A11: 73 | B11: =SUMPRODUCT(TRANSPOSE((1+i)^-TRANSPOSE(ROW(OFFSET(A2000Basic,A11,,ROWS(A2000Basic)-A11))-A11-ROW(INDEX(A2000Basic,1))+1)),EXP(MMULT(1-( ROW(OFFSET(A2000Basic,A11,,ROWS(A2000Basic)-A11))<TRANSPOSE(ROW(OFFSET(A2000Basic,A11,,ROWS(A2000Basic)-A11)))),LN(1-OFFSET(A2000Basic,A11,,ROWS(A2000Basic)-A11))))) -> 8.792135342 | C11: =LiveAnnuityPV(A11,i,A2000Basic) -> 8.792135342 | D11: 8.792135342 | E11: =NPV(i,INDEX($H$4:$DR$118,1+A11,1+A11):INDEX($H$118:$DR$118,1,1+A11)) -> 8.792135342 | F11: 7 | G11: 0.0003 | H11: 0.99910027 | I11: 0.99910027 | J11: 0.99910027 | K11: 0.99910027 | L11: 0.99910027 | M11: 0.99910027 | N11: 0.99940009 | O11: =1-$G11 -> 0.9997
A12: 74 | B12: =SUMPRODUCT(TRANSPOSE((1+i)^-TRANSPOSE(ROW(OFFSET(A2000Basic,A12,,ROWS(A2000Basic)-A12))-A12-ROW(INDEX(A2000Basic,1))+1)),EXP(MMULT(1-( ROW(OFFSET(A2000Basic,A12,,ROWS(A2000Basic)-A12))<TRANSPOSE(ROW(OFFSET(A2000Basic,A12,,ROWS(A2000Basic)-A12)))),LN(1-OFFSET(A2000Basic,A12,,ROWS(A2000Basic)-A12))))) -> 8.517259906 | C12: =LiveAnnuityPV(A12,i,A2000Basic) -> 8.517259906 | D12: 8.517259906 | E12: =NPV(i,INDEX($H$4:$DR$118,1+A12,1+A12):INDEX($H$118:$DR$118,1,1+A12)) -> 8.517259906 | F12: 8 | G12: 0.0003 | H12: 0.9988005399 | I12: 0.9988005399 | J12: 0.9988005399 | K12: 0.9988005399 | L12: 0.9988005399 | M12: 0.9988005399 | N12: 0.99910027 | O12: 0.99940009 | P12: =1-$G12 -> 0.9997
A13: 75 | B13: =SUMPRODUCT(TRANSPOSE((1+i)^-TRANSPOSE(ROW(OFFSET(A2000Basic,A13,,ROWS(A2000Basic)-A13))-A13-ROW(INDEX(A2000Basic,1))+1)),EXP(MMULT(1-( ROW(OFFSET(A2000Basic,A13,,ROWS(A2000Basic)-A13))<TRANSPOSE(ROW(OFFSET(A2000Basic,A13,,ROWS(A2000Basic)-A13)))),LN(1-OFFSET(A2000Basic,A13,,ROWS(A2000Basic)-A13))))) -> 8.219714331 | C13: =LiveAnnuityPV(A13,i,A2000Basic) -> 8.219714331 | D13: 8.219714331 | E13: =NPV(i,INDEX($H$4:$DR$118,1+A13,1+A13):INDEX($H$118:$DR$118,1,1+A13)) -> 8.219714331 | F13: 9 | G13: 0.0004 | H13: 0.9984010197 | I13: 0.9984010197 | J13: 0.9984010197 | K13: 0.9984010197 | L13: 0.9984010197 | M13: 0.9984010197 | N13: 0.9987006299 | O13: 0.99900033 | P13: 0.99930012 | Q13: =1-$G13 -> 0.9996
A14: 76 | B14: =SUMPRODUCT(TRANSPOSE((1+i)^-TRANSPOSE(ROW(OFFSET(A2000Basic,A14,,ROWS(A2000Basic)-A14))-A14-ROW(INDEX(A2000Basic,1))+1)),EXP(MMULT(1-( ROW(OFFSET(A2000Basic,A14,,ROWS(A2000Basic)-A14))<TRANSPOSE(ROW(OFFSET(A2000Basic,A14,,ROWS(A2000Basic)-A14)))),LN(1-OFFSET(A2000Basic,A14,,ROWS(A2000Basic)-A14))))) -> 7.897628915 | C14: =LiveAnnuityPV(A14,i,A2000Basic) -> 7.897628915 | D14: 7.897628915 | E14: =NPV(i,INDEX($H$4:$DR$118,1+A14,1+A14):INDEX($H$118:$DR$118,1,1+A14)) -> 7.897628915 | F14: 10 | G14: 0.0004 | H14: 0.9980016593 | I14: 0.9980016593 | J14: 0.9980016593 | K14: 0.9980016593 | L14: 0.9980016593 | M14: 0.9980016593 | N14: 0.9983011496 | O14: 0.9986007298 | P14: 0.9989004 | Q14: 0.99920016 | R14: =1-$G14 -> 0.9996
A15: 77 | B15: =SUMPRODUCT(TRANSPOSE((1+i)^-TRANSPOSE(ROW(OFFSET(A2000Basic,A15,,ROWS(A2000Basic)-A15))-A15-ROW(INDEX(A2000Basic,1))+1)),EXP(MMULT(1-( ROW(OFFSET(A2000Basic,A15,,ROWS(A2000Basic)-A15))<TRANSPOSE(ROW(OFFSET(A2000Basic,A15,,ROWS(A2000Basic)-A15)))),LN(1-OFFSET(A2000Basic,A15,,ROWS(A2000Basic)-A15))))) -> 7.548979754 | C15: =LiveAnnuityPV(A15,i,A2000Basic) -> 7.548979754 | D15: 7.548979754 | E15: =NPV(i,INDEX($H$4:$DR$118,1+A15,1+A15):INDEX($H$118:$DR$118,1,1+A15)) -> 7.548979754 | F15: 11 | G15: 0.0004 | H15: 0.9976024586 | I15: 0.9976024586 | J15: 0.9976024586 | K15: 0.9976024586 | L15: 0.9976024586 | M15: 0.9976024586 | N15: 0.9979018292 | O15: 0.9982012895 | P15: 0.9985008398 | Q15: 0.9988004799 | R15: =(1-$G15)*R14 -> 0.99920016 | S15: =1-$G15 -> 0.9996
A16: 78 | B16: =SUMPRODUCT(TRANSPOSE((1+i)^-TRANSPOSE(ROW(OFFSET(A2000Basic,A16,,ROWS(A2000Basic)-A16))-A16-ROW(INDEX(A2000Basic,1))+1)),EXP(MMULT(1-( ROW(OFFSET(A2000Basic,A16,,ROWS(A2000Basic)-A16))<TRANSPOSE(ROW(OFFSET(A2000Basic,A16,,ROWS(A2000Basic)-A16)))),LN(1-OFFSET(A2000Basic,A16,,ROWS(A2000Basic)-A16))))) -> 7.256696606 | C16: =LiveAnnuityPV(A16,i,A2000Basic) -> 7.256696606 | D16: 7.256696606 | E16: =NPV(i,INDEX($H$4:$DR$118,1+A16,1+A16):INDEX($H$118:$DR$118,1,1+A16)) -> 7.256696606 | F16: 12 | G16: 0.0004 | H16: 0.9972034176 | I16: 0.9972034176 | J16: 0.9972034176 | K16: 0.9972034176 | L16: 0.9972034176 | M16: 0.9972034176 | N16: 0.9975026684 | O16: 0.997802009 | P16: 0.9981014395 | Q16: 0.9984009597 | R16: 0.9988004799 | S16: 0.99920016 | T16: =1-$G16 -> 0.9996
A17: 79 | B17: =SUMPRODUCT(TRANSPOSE((1+i)^-TRANSPOSE(ROW(OFFSET(A2000Basic,A17,,ROWS(A2000Basic)-A17))-A17-ROW(INDEX(A2000Basic,1))+1)),EXP(MMULT(1-( ROW(OFFSET(A2000Basic,A17,,ROWS(A2000Basic)-A17))<TRANSPOSE(ROW(OFFSET(A2000Basic,A17,,ROWS(A2000Basic)-A17)))),LN(1-OFFSET(A2000Basic,A17,,ROWS(A2000Basic)-A17))))) -> 6.937011913 | C17: =LiveAnnuityPV(A17,i,A2000Basic) -> 6.937011913 | D17: 6.937011913 | E17: =NPV(i,INDEX($H$4:$DR$118,1+A17,1+A17):INDEX($H$118:$DR$118,1,1+A17)) -> 6.937011913 | F17: 13 | G17: 0.0004 | H17: 0.9968045363 | I17: 0.9968045363 | J17: 0.9968045363 | K17: 0.9968045363 | L17: 0.9968045363 | M17: 0.9968045363 | N17: 0.9971036674 | O17: 0.9974028882 | P17: 0.9977021989 | Q17: 0.9980015994 | R17: 0.9984009597 | S17: 0.9988004799 | T17: 0.99920016 | U17: =1-$G17 -> 0.9996
A18: 80 | B18: =SUMPRODUCT(TRANSPOSE((1+i)^-TRANSPOSE(ROW(OFFSET(A2000Basic,A18,,ROWS(A2000Basic)-A18))-A18-ROW(INDEX(A2000Basic,1))+1)),EXP(MMULT(1-( ROW(OFFSET(A2000Basic,A18,,ROWS(A2000Basic)-A18))<TRANSPOSE(ROW(OFFSET(A2000Basic,A18,,ROWS(A2000Basic)-A18)))),LN(1-OFFSET(A2000Basic,A18,,ROWS(A2000Basic)-A18))))) -> 6.667223693 | C18: =LiveAnnuityPV(A18,i,A2000Basic) -> 6.667223693 | D18: 6.667223693 | E18: =NPV(i,INDEX($H$4:$DR$118,1+A18,1+A18):INDEX($H$118:$DR$118,1,1+A18)) -> 6.667223693 | F18: 14 | G18: 0.0005 | H18: 0.996306134 | I18: 0.996306134 | J18: 0.996306134 | K18: 0.996306134 | L18: 0.996306134 | M18: 0.996306134 | N18: 0.9966051155 | O18: 0.9969041868 | P18: 0.9972033478 | Q18: 0.9975025986 | R18: 0.9979017593 | S18: 0.9983010797 | T18: 0.9987005599 | U18: 0.9991002 | V18: =1-$G18 -> 0.9995
A19: 81 | B19: =SUMPRODUCT(TRANSPOSE((1+i)^-TRANSPOSE(ROW(OFFSET(A2000Basic,A19,,ROWS(A2000Basic)-A19))-A19-ROW(INDEX(A2000Basic,1))+1)),EXP(MMULT(1-( ROW(OFFSET(A2000Basic,A19,,ROWS(A2000Basic)-A19))<TRANSPOSE(ROW(OFFSET(A2000Basic,A19,,ROWS(A2000Basic)-A19)))),LN(1-OFFSET(A2000Basic,A19,,ROWS(A2000Basic)-A19))))) -> 6.369036713 | C19: =LiveAnnuityPV(A19,i,A2000Basic) -> 6.369036713 | D19: 6.369036713 | E19: =NPV(i,INDEX($H$4:$DR$118,1+A19,1+A19):INDEX($H$118:$DR$118,1,1+A19)) -> 6.369036713 | F19: 15 | G19: 0.0005 | H19: 0.9958079809 | I19: 0.9958079809 | J19: 0.9958079809 | K19: 0.9958079809 | L19: 0.9958079809 | M19: 0.9958079809 | N19: 0.996106813 | O19: 0.9964057347 | P19: 0.9967047461 | Q19: =(1-$G19)*Q18 -> 0.9970038473 | R19: 0.9974028084 | S19: 0.9978019292 | T19: 0.9982012096 | U19: 0.9986006499 | V19: 0.99900025 | W19: =1-$G19 -> 0.9995
A20: =A19+1 -> 82 | B20: =SUMPRODUCT(TRANSPOSE((1+i)^-TRANSPOSE(ROW(OFFSET(A2000Basic,A20,,ROWS(A2000Basic)-A20))-A20-ROW(INDEX(A2000Basic,1))+1)),EXP(MMULT(1-( ROW(OFFSET(A2000Basic,A20,,ROWS(A2000Basic)-A20))<TRANSPOSE(ROW(OFFSET(A2000Basic,A20,,ROWS(A2000Basic)-A20)))),LN(1-OFFSET(A2000Basic,A20,,ROWS(A2000Basic)-A20))))) -> 6.11434952 | C20: =LiveAnnuityPV(A20,i,A2000Basic) -> 6.11434952 | D20: 6.11434952 | E20: =NPV(i,INDEX($H$4:$DR$118,1+A20,1+A20):INDEX($H$118:$DR$118,1,1+A20)) -> 6.11434952 | F20: 16 | G20: 0.0005 | H20: 0.9953100769 | I20: 0.9953100769 | J20: 0.9953100769 | K20: 0.9953100769 | L20: 0.9953100769 | M20: 0.9953100769 | N20: 0.9956087596 | O20: 0.9959075318 | P20: 0.9962063937 | Q20: 0.9965053453 | R20: 0.996904107 | S20: 0.9973030282 | T20: 0.997702109 | U20: 0.9981013496 | V20: 0.9985007499 | W20: =(1-$G20)*W19 -> 0.99900025 | X20: =1-$G20 -> 0.9995
A21: =A20+1 -> 83 | B21: =SUMPRODUCT(TRANSPOSE((1+i)^-TRANSPOSE(ROW(OFFSET(A2000Basic,A21,,ROWS(A2000Basic)-A21))-A21-ROW(INDEX(A2000Basic,1))+1)),EXP(MMULT(1-( ROW(OFFSET(A2000Basic,A21,,ROWS(A2000Basic)-A21))<TRANSPOSE(ROW(OFFSET(A2000Basic,A21,,ROWS(A2000Basic)-A21)))),LN(1-OFFSET(A2000Basic,A21,,ROWS(A2000Basic)-A21))))) -> 5.829858506 | C21: =LiveAnnuityPV(A21,i,A2000Basic) -> 5.829858506 | D21: 5.829858506 | E21: =NPV(i,INDEX($H$4:$DR$118,1+A21,1+A21):INDEX($H$118:$DR$118,1,1+A21)) -> 5.829858506 | F21: 17 | G21: 0.0005 | H21: 0.9948124219 | I21: 0.9948124219 | J21: 0.9948124219 | K21: 0.9948124219 | L21: 0.9948124219 | M21: 0.9948124219 | N21: 0.9951109552 | O21: 0.995409578 | P21: 0.9957082905 | Q21: 0.9960070927 | R21: 0.9964056549 | S21: 0.9968043767 | T21: 0.997203258 | U21: 0.9976022989 | V21: 0.9980014995 | W21: 0.9985007499 | X21: 0.99900025 | Y21: =1-$G21 -> 0.9995
A22: 84 | B22: =SUMPRODUCT(TRANSPOSE((1+i)^-TRANSPOSE(ROW(OFFSET(A2000Basic,A22,,ROWS(A2000Basic)-A22))-A22-ROW(INDEX(A2000Basic,1))+1)),EXP(MMULT(1-( ROW(OFFSET(A2000Basic,A22,,ROWS(A2000Basic)-A22))<TRANSPOSE(ROW(OFFSET(A2000Basic,A22,,ROWS(A2000Basic)-A22)))),LN(1-OFFSET(A2000Basic,A22,,ROWS(A2000Basic)-A22))))) -> 5.582098314 | C22: =LiveAnnuityPV(A22,i,A2000Basic) -> 5.582098314 | D22: 5.582098314 | E22: =NPV(i,INDEX($H$4:$DR$118,1+A22,1+A22):INDEX($H$118:$DR$118,1,1+A22)) -> 5.582098314 | F22: 18 | G22: 0.0005 | H22: 0.9943150157 | I22: 0.9943150157 | J22: 0.9943150157 | K22: 0.9943150157 | L22: 0.9943150157 | M22: 0.9943150157 | N22: 0.9946133997 | O22: 0.9949118733 | P22: 0.9952104364 | Q22: 0.9955090891 | R22: 0.9959074521 | S22: 0.9963059745 | T22: 0.9967046564 | U22: 0.9971034978 | V22: 0.9975024988 | W22: 0.9980014995 | X22: 0.9985007499 | Y22: 0.99900025 | Z22: =1-$G22 -> 0.9995
A23: 85 | B23: =SUMPRODUCT(TRANSPOSE((1+i)^-TRANSPOSE(ROW(OFFSET(A2000Basic,A23,,ROWS(A2000Basic)-A23))-A23-ROW(INDEX(A2000Basic,1))+1)),EXP(MMULT(1-( ROW(OFFSET(A2000Basic,A23,,ROWS(A2000Basic)-A23))<TRANSPOSE(ROW(OFFSET(A2000Basic,A23,,ROWS(A2000Basic)-A23)))),LN(1-OFFSET(A2000Basic,A23,,ROWS(A2000Basic)-A23))))) -> 5.302369064 | C23: =LiveAnnuityPV(A23,i,A2000Basic) -> 5.302369064 | D23: 5.302369064 | E23: =NPV(i,INDEX($H$4:$DR$118,1+A23,1+A23):INDEX($H$118:$DR$118,1,1+A23)) -> 5.302369064 | F23: 19 | G23: 0.0005 | H23: 0.9938178582 | I23: 0.9938178582 | J23: 0.9938178582 | K23: 0.9938178582 | L23: 0.9938178582 | M23: 0.9938178582 | N23: 0.994116093 | O23: 0.9944144173 | P23: 0.9947128312 | Q23: 0.9950113346 | R23: 0.9954094984 | S23: 0.9958078215 | T23: 0.996206304 | U23: 0.996604946 | V23: 0.9970037475 | W23: 0.9975024988 | X23: 0.9980014995 | Y23: 0.9985007499 | Z23: 0.99900025 | AA23: =1-$G23 -> 0.9995
A24: 86 | B24: =SUMPRODUCT(TRANSPOSE((1+i)^-TRANSPOSE(ROW(OFFSET(A2000Basic,A24,,ROWS(A2000Basic)-A24))-A24-ROW(INDEX(A2000Basic,1))+1)),EXP(MMULT(1-( ROW(OFFSET(A2000Basic,A24,,ROWS(A2000Basic)-A24))<TRANSPOSE(ROW(OFFSET(A2000Basic,A24,,ROWS(A2000Basic)-A24)))),LN(1-OFFSET(A2000Basic,A24,,ROWS(A2000Basic)-A24))))) -> 5.051616866 | C24: =LiveAnnuityPV(A24,i,A2000Basic) -> 5.051616866 | D24: 5.051616866 | E24: =NPV(i,INDEX($H$4:$DR$118,1+A24,1+A24):INDEX($H$118:$DR$118,1,1+A24)) -> 5.051616866 | F24: 20 | G24: 0.0005 | H24: 0.9933209492 | I24: 0.9933209492 | J24: 0.9933209492 | K24: 0.9933209492 | L24: 0.9933209492 | M24: 0.9933209492 | N24: 0.993619035 | O24: 0.9939172101 | P24: 0.9942154748 | Q24: 0.9945138289 | R24: 0.9949117936 | S24: 0.9953099176 | T24: 0.9957082009 | U24: 0.9961066435 | V24: =(1-$G24)*V23 -> 0.9965052456 | W24: 0.9970037475 | X24: 0.9975024988 | Y24: 0.9980014995 | Z24: 0.9985007499 | AA24: 0.99900025 | AB24: =1-$G24 -> 0.9995
A25: 87 | B25: =SUMPRODUCT(TRANSPOSE((1+i)^-TRANSPOSE(ROW(OFFSET(A2000Basic,A25,,ROWS(A2000Basic)-A25))-A25-ROW(INDEX(A2000Basic,1))+1)),EXP(MMULT(1-( ROW(OFFSET(A2000Basic,A25,,ROWS(A2000Basic)-A25))<TRANSPOSE(ROW(OFFSET(A2000Basic,A25,,ROWS(A2000Basic)-A25)))),LN(1-OFFSET(A2000Basic,A25,,ROWS(A2000Basic)-A25))))) -> 4.828788692 | C25: =LiveAnnuityPV(A25,i,A2000Basic) -> 4.828788692 | D25: 4.828788692 | E25: =NPV(i,INDEX($H$4:$DR$118,1+A25,1+A25):INDEX($H$118:$DR$118,1,1+A25)) -> 4.828788692 | F25: 21 | G25: 0.0006 | H25: 0.9927249567 | I25: 0.9927249567 | J25: 0.9927249567 | K25: 0.9927249567 | L25: 0.9927249567 | M25: 0.9927249567 | N25: 0.9930228635 | O25: 0.9933208598 | P25: 0.9936189455 | Q25: 0.9939171206 | R25: 0.9943148465 | S25: 0.9947127316 | T25: 0.995110776 | U25: 0.9955089795 | V25: 0.9959073425 | W25: 0.9964055453 | X25: 0.9969039973 | Y25: 0.9974026986 | Z25: 0.9979016494 | AA25: 0.9984008499 | AB25: =(1-$G25)*AB24 -> 0.9989003 | AC25: =1-$G25 -> 0.9994
A26: 88 | B26: =SUMPRODUCT(TRANSPOSE((1+i)^-TRANSPOSE(ROW(OFFSET(A2000Basic,A26,,ROWS(A2000Basic)-A26))-A26-ROW(INDEX(A2000Basic,1))+1)),EXP(MMULT(1-( ROW(OFFSET(A2000Basic,A26,,ROWS(A2000Basic)-A26))<TRANSPOSE(ROW(OFFSET(A2000Basic,A26,,ROWS(A2000Basic)-A26)))),LN(1-OFFSET(A2000Basic,A26,,ROWS(A2000Basic)-A26))))) -> 4.633586807 | C26: =LiveAnnuityPV(A26,i,A2000Basic) -> 4.633586807 | D26: 4.633586807 | E26: =NPV(i,INDEX($H$4:$DR$118,1+A26,1+A26):INDEX($H$118:$DR$118,1,1+A26)) -> 4.633586807 | F26: 22 | G26: 0.0006 | H26: 0.9921293217 | I26: 0.9921293217 | J26: 0.9921293217 | K26: 0.9921293217 | L26: 0.9921293217 | M26: 0.9921293217 | N26: 0.9924270498 | O26: 0.9927248673 | P26: 0.9930227741 | Q26: 0.9933207703 | R26: 0.9937182576 | S26: 0.994115904 | T26: 0.9945137095 | U26: 0.9949116742 | V26: 0.9953097981 | W26: 0.9958077019 | X26: 0.9963058549 | Y26: 0.996804257 | Z26: 0.9973029084 | AA26: 0.9978018093 | AB26: 0.9983009598 | AC26: 0.99880036 | AD26: =1-$G26 -> 0.9994
A27: 89 | B27: =SUMPRODUCT(TRANSPOSE((1+i)^-TRANSPOSE(ROW(OFFSET(A2000Basic,A27,,ROWS(A2000Basic)-A27))-A27-ROW(INDEX(A2000Basic,1))+1)),EXP(MMULT(1-( ROW(OFFSET(A2000Basic,A27,,ROWS(A2000Basic)-A27))<TRANSPOSE(ROW(OFFSET(A2000Basic,A27,,ROWS(A2000Basic)-A27)))),LN(1-OFFSET(A2000Basic,A27,,ROWS(A2000Basic)-A27))))) -> 4.405851275 | C27: =LiveAnnuityPV(A27,i,A2000Basic) -> 4.405851275 | D27: 4.405851275 | E27: =NPV(i,INDEX($H$4:$DR$118,1+A27,1+A27):INDEX($H$118:$DR$118,1,1+A27)) -> 4.405851275 | F27: 23 | G27: 0.0006 | H27: 0.9915340441 | I27: 0.9915340441 | J27: 0.9915340441 | K27: 0.9915340441 | L27: 0.9915340441 | M27: 0.9915340441 | N27: 0.9918315936 | O27: 0.9921292324 | P27: 0.9924269604 | Q27: 0.9927247779 | R27: 0.9931220267 | S27: 0.9935194345 | T27: 0.9939170013 | U27: 0.9943147272 | V27: 0.9947126122 | W27: 0.9952102173 | X27: 0.9957080713 | Y27: 0.9962061744 | Z27: 0.9967045267 | AA27: 0.9972031283 | AB27: 0.9977019792 | AC27: 0.9982010798 | AD27: 0.99880036 | AE27: =1-$G27 -> 0.9994
A28: 90 | B28: =SUMPRODUCT(TRANSPOSE((1+i)^-TRANSPOSE(ROW(OFFSET(A2000Basic,A28,,ROWS(A2000Basic)-A28))-A28-ROW(INDEX(A2000Basic,1))+1)),EXP(MMULT(1-( ROW(OFFSET(A2000Basic,A28,,ROWS(A2000Basic)-A28))<TRANSPOSE(ROW(OFFSET(A2000Basic,A28,,ROWS(A2000Basic)-A28)))),LN(1-OFFSET(A2000Basic,A28,,ROWS(A2000Basic)-A28))))) -> 4.140159821 | C28: =LiveAnnuityPV(A28,i,A2000Basic) -> 4.140159821 | D28: 4.140159821 | E28: =NPV(i,INDEX($H$4:$DR$118,1+A28,1+A28):INDEX($H$118:$DR$118,1,1+A28)) -> 4.140159821 | F28: 24 | G28: 0.0007 | H28: 0.9908399703 | I28: 0.9908399703 | J28: 0.9908399703 | K28: 0.9908399703 | L28: 0.9908399703 | M28: 0.9908399703 | N28: 0.9911373115 | O28: 0.9914347419 | P28: 0.9917322616 | Q28: 0.9920298705 | R28: 0.9924268413 | S28: 0.9928239709 | T28: 0.9932212594 | U28: 0.9936187068 | V28: 0.9940163134 | W28: 0.9945135702 | X28: 0.9950110757 | Y28: 0.9955088301 | Z28: 0.9960068335 | AA28: 0.9965050861 | AB28: 0.9970035879 | AC28: 0.997502339 | AD28: 0.9981011997 | AE28: 0.99870042 | AF28: =1-$G28 -> 0.9993
A29: 91 | B29: =SUMPRODUCT(TRANSPOSE((1+i)^-TRANSPOSE(ROW(OFFSET(A2000Basic,A29,,ROWS(A2000Basic)-A29))-A29-ROW(INDEX(A2000Basic,1))+1)),EXP(MMULT(1-( ROW(OFFSET(A2000Basic,A29,,ROWS(A2000Basic)-A29))<TRANSPOSE(ROW(OFFSET(A2000Basic,A29,,ROWS(A2000Basic)-A29)))),LN(1-OFFSET(A2000Basic,A29,,ROWS(A2000Basic)-A29))))) -> 3.830186458 | C29: =LiveAnnuityPV(A29,i,A2000Basic) -> 3.830186458 | D29: 3.830186458 | E29: =NPV(i,INDEX($H$4:$DR$118,1+A29,1+A29):INDEX($H$118:$DR$118,1,1+A29)) -> 3.830186458 | F29: 25 | G29: 0.0007 | H29: 0.9901463823 | I29: 0.9901463823 | J29: 0.9901463823 | K29: 0.9901463823 | L29: 0.9901463823 | M29: 0.9901463823 | N29: 0.9904435154 | O29: 0.9907407376 | P29: 0.991038049 | Q29: 0.9913354496 | R29: 0.9917321425 | S29: 0.9921289941 | T29: 0.9925260045 | U29: 0.9929231737 | V29: 0.9933205019 | W29: 0.9938174107 | X29: 0.9943145679 | Y29: 0.9948119739 | Z29: 0.9953096287 | AA29: =(1-$G29)*AA28 -> 0.9958075325 | AB29: 0.9963056853 | AC29: 0.9968040874 | AD29: 0.9974025289 | AE29: 0.9980013297 | AF29: 0.99860049 | AG29: =1-$G29 -> 0.9993
A30: 92 | B30: =SUMPRODUCT(TRANSPOSE((1+i)^-TRANSPOSE(ROW(OFFSET(A2000Basic,A30,,ROWS(A2000Basic)-A30))-A30-ROW(INDEX(A2000Basic,1))+1)),EXP(MMULT(1-( ROW(OFFSET(A2000Basic,A30,,ROWS(A2000Basic)-A30))<TRANSPOSE(ROW(OFFSET(A2000Basic,A30,,ROWS(A2000Basic)-A30)))),LN(1-OFFSET(A2000Basic,A30,,ROWS(A2000Basic)-A30))))) -> 3.468550867 | C30: =LiveAnnuityPV(A30,i,A2000Basic) -> 3.468550867 | D30: 3.468550867 | E30: =NPV(i,INDEX($H$4:$DR$118,1+A30,1+A30):INDEX($H$118:$DR$118,1,1+A30)) -> 3.468550867 | F30: 26 | G30: 0.0007 | H30: 0.9894532798 | I30: 0.9894532798 | J30: 0.9894532798 | K30: 0.9894532798 | L30: 0.9894532798 | M30: 0.9894532798 | N30: 0.9897502049 | O30: 0.9900472191 | P30: 0.9903443224 | Q30: 0.9906415148 | R30: 0.99103793 | S30: 0.9914345038 | T30: 0.9918312363 | U30: 0.9922281275 | V30: 0.9926251776 | W30: 0.9931217385 | X30: 0.9936185477 | Y30: 0.9941156055 | Z30: 0.994612912 | AA30: 0.9951104672 | AB30: 0.9956082714 | AC30: 0.9961063245 | AD30: 0.9967043471 | AE30: 0.9973027288 | AF30: 0.9979014697 | AG30: =(1-$G30)*AG29 -> 0.99860049 | AH30: =1-$G30 -> 0.9993
A31: 93 | B31: =SUMPRODUCT(TRANSPOSE((1+i)^-TRANSPOSE(ROW(OFFSET(A2000Basic,A31,,ROWS(A2000Basic)-A31))-A31-ROW(INDEX(A2000Basic,1))+1)),EXP(MMULT(1-( ROW(OFFSET(A2000Basic,A31,,ROWS(A2000Basic)-A31))<TRANSPOSE(ROW(OFFSET(A2000Basic,A31,,ROWS(A2000Basic)-A31)))),LN(1-OFFSET(A2000Basic,A31,,ROWS(A2000Basic)-A31))))) -> 3.046642678 | C31: =LiveAnnuityPV(A31,i,A2000Basic) -> 3.046642678 | D31: 3.046642678 | E31: =NPV(i,INDEX($H$4:$DR$118,1+A31,1+A31):INDEX($H$118:$DR$118,1,1+A31)) -> 3.046642678 | F31: 27 | G31: 0.0007 | H31: 0.9887606625 | I31: 0.9887606625 | J31: 0.9887606625 | K31: 0.9887606625 | L31: 0.9887606625 | M31: 0.9887606625 | N31: 0.9890573797 | O31: 0.989354186 | P31: 0.9896510813 | Q31: 0.9899480657 | R31: 0.9903442034 | S31: 0.9907404996 | T31: 0.9911369544 | U31: 0.9915335678 | V31: 0.99193034 | W31: 0.9924265532 | X31: 0.9929230148 | Y31: 0.9934197246 | Z31: 0.993916683 | AA31: 0.9944138899 | AB31: 0.9949113456 | AC31: 0.9954090501 | AD31: 0.9960066541 | AE31: 0.9966046169 | AF31: 0.9972029386 | AG31: 0.9979014697 | AH31: 0.99860049 | AI31: =1-$G31 -> 0.9993
A32: =A31+1 -> 94 | B32: =SUMPRODUCT(TRANSPOSE((1+i)^-TRANSPOSE(ROW(OFFSET(A2000Basic,A32,,ROWS(A2000Basic)-A32))-A32-ROW(INDEX(A2000Basic,1))+1)),EXP(MMULT(1-( ROW(OFFSET(A2000Basic,A32,,ROWS(A2000Basic)-A32))<TRANSPOSE(ROW(OFFSET(A2000Basic,A32,,ROWS(A2000Basic)-A32)))),LN(1-OFFSET(A2000Basic,A32,,ROWS(A2000Basic)-A32))))) -> 2.998718515 | C32: =LiveAnnuityPV(A32,i,A2000Basic) -> 2.998718515 | D32: 2.998718515 | E32: =NPV(i,INDEX($H$4:$DR$118,1+A32,1+A32):INDEX($H$118:$DR$118,1,1+A32)) -> 2.998718515 | F32: 28 | G32: 0.0008 | H32: 0.987969654 | I32: 0.987969654 | J32: 0.987969654 | K32: 0.987969654 | L32: 0.987969654 | M32: 0.987969654 | N32: 0.9882661338 | O32: 0.9885627027 | P32: 0.9888593605 | Q32: 0.9891561073 | R32: 0.9895519281 | S32: 0.9899479072 | T32: 0.9903440448 | U32: 0.990740341 | V32: 0.9911367957 | W32: 0.991632612 | X32: 0.9921286763 | Y32: 0.9926249888 | Z32: 0.9931215496 | AA32: 0.9936183588 | AB32: 0.9941154165 | AC32: 0.9946127229 | AD32: 0.9952098488 | AE32: 0.9958073332 | AF32: 0.9964051763 | AG32: 0.9971031485 | AH32: 0.9978016096 | AI32: 0.99850056 | AJ32: =1-$G32 -> 0.9992
A33: =A32+1 -> 95 | B33: =SUMPRODUCT(TRANSPOSE((1+i)^-TRANSPOSE(ROW(OFFSET(A2000Basic,A33,,ROWS(A2000Basic)-A33))-A33-ROW(INDEX(A2000Basic,1))+1)),EXP(MMULT(1-( ROW(OFFSET(A2000Basic,A33,,ROWS(A2000Basic)-A33))<TRANSPOSE(ROW(OFFSET(A2000Basic,A33,,ROWS(A2000Basic)-A33)))),LN(1-OFFSET(A2000Basic,A33,,ROWS(A2000Basic)-A33))))) -> 2.935818052 | C33: =LiveAnnuityPV(A33,i,A2000Basic) -> 2.935818052 | D33: 2.935818052 | E33: =NPV(i,INDEX($H$4:$DR$118,1+A33,1+A33):INDEX($H$118:$DR$118,1,1+A33)) -> 2.935818052 | F33: 29 | G33: 0.0008 | H33: 0.9871792783 | I33: 0.9871792783 | J33: 0.9871792783 | K33: 0.9871792783 | L33: 0.9871792783 | M33: 0.9871792783 | N33: 0.9874755209 | O33: 0.9877718525 | P33: 0.988068273 | Q33: 0.9883647824 | R33: 0.9887602865 | S33: 0.9891559489 | T33: 0.9895517696 | U33: 0.9899477487 | V33: 0.9903438863 | W33: 0.9908393059 | X33: 0.9913349734 | Y33: 0.9918308888 | Z33: 0.9923270524 | AA33: 0.9928234641 | AB33: 0.9933201242 | AC33: 0.9938170327 | AD33: 0.9944136809 | AE33: 0.9950106873 | AF33: 0.9956080521 | AG33: 0.996305466 | AH33: 0.9970033683 | AI33: 0.9977017596 | AJ33: 0.99840064 | AK33: =1-$G33 -> 0.9992
A34: 96 | B34: =SUMPRODUCT(TRANSPOSE((1+i)^-TRANSPOSE(ROW(OFFSET(A2000Basic,A34,,ROWS(A2000Basic)-A34))-A34-ROW(INDEX(A2000Basic,1))+1)),EXP(MMULT(1-( ROW(OFFSET(A2000Basic,A34,,ROWS(A2000Basic)-A34))<TRANSPOSE(ROW(OFFSET(A2000Basic,A34,,ROWS(A2000Basic)-A34)))),LN(1-OFFSET(A2000Basic,A34,,ROWS(A2000Basic)-A34))))) -> 2.853261193 | C34: =LiveAnnuityPV(A34,i,A2000Basic) -> 2.853261193 | D34: 2.853261193 | E34: =NPV(i,INDEX($H$4:$DR$118,1+A34,1+A34):INDEX($H$118:$DR$118,1,1+A34)) -> 2.853261193 | F34: 30 | G34: 0.0008 | H34: 0.9863895349 | I34: 0.9863895349 | J34: 0.9863895349 | K34: 0.9863895349 | L34: 0.9863895349 | M34: 0.9863895349 | N34: 0.9866855405 | O34: 0.986981635 | P34: 0.9872778184 | Q34: 0.9875740906 | R34: 0.9879692783 | S34: 0.9883646241 | T34: 0.9887601282 | U34: 0.9891557905 | V34: 0.9895516112 | W34: 0.9900466345 | X34: 0.9905419054 | Y34: 0.9910374241 | Z34: 0.9915331907 | AA34: 0.9920292053 | AB34: 0.9925254681 | AC34: 0.9930219791 | AD34: 0.9936181499 | AE34: 0.9942146788 | AF34: =(1-$G34)*AF33 -> 0.9948115657 | AG34: 0.9955084216 | AH34: 0.9962057656 | AI34: 0.9969035981 | AJ34: 0.9976019195 | AK34: 0.99840064 | AL34: =1-$G34 -> 0.9992
A35: 97 | B35: =SUMPRODUCT(TRANSPOSE((1+i)^-TRANSPOSE(ROW(OFFSET(A2000Basic,A35,,ROWS(A2000Basic)-A35))-A35-ROW(INDEX(A2000Basic,1))+1)),EXP(MMULT(1-( ROW(OFFSET(A2000Basic,A35,,ROWS(A2000Basic)-A35))<TRANSPOSE(ROW(OFFSET(A2000Basic,A35,,ROWS(A2000Basic)-A35)))),LN(1-OFFSET(A2000Basic,A35,,ROWS(A2000Basic)-A35))))) -> 2.744905315 | C35: =LiveAnnuityPV(A35,i,A2000Basic) -> 2.744905315 | D35: =NPV(i,OFFSET(A2000Basic,A35,1+A35,120-A35+1)) -> 2.744905315 | E35: =NPV(i,INDEX($H$4:$DR$118,1+A35,1+A35):INDEX($H$118:$DR$118,1,1+A35)) -> 2.744905315 | F35: 31 | G35: 0.0008 | H35: 0.9856004232 | I35: 0.9856004232 | J35: 0.9856004232 | K35: 0.9856004232 | L35: 0.9856004232 | M35: 0.9856004232 | N35: 0.9858961921 | O35: 0.9861920497 | P35: 0.9864879961 | Q35: 0.9867840313 | R35: 0.9871789029 | S35: 0.9875739324 | T35: 0.9879691201 | U35: 0.9883644659 | V35: 0.9887599699 | W35: 0.9892545972 | X35: 0.9897494719 | Y35: 0.9902445942 | Z35: 0.9907399642 | AA35: 0.991235582 | AB35: 0.9917314477 | AC35: 0.9922275615 | AD35: 0.9928232554 | AE35: 0.993419307 | AF35: 0.9940157164 | AG35: 0.9947120149 | AH35: 0.995408801 | AI35: 0.9961060753 | AJ35: 0.996803838 | AK35: 0.9976019195 | AL35: =(1-$G35)*AL34 -> 0.99840064 | AM35: =1-$G35 -> 0.9992
A36: 98 | B36: =SUMPRODUCT(TRANSPOSE((1+i)^-TRANSPOSE(ROW(OFFSET(A2000Basic,A36,,ROWS(A2000Basic)-A36))-A36-ROW(INDEX(A2000Basic,1))+1)),EXP(MMULT(1-( ROW(OFFSET(A2000Basic,A36,,ROWS(A2000Basic)-A36))<TRANSPOSE(ROW(OFFSET(A2000Basic,A36,,ROWS(A2000Basic)-A36)))),LN(1-OFFSET(A2000Basic,A36,,ROWS(A2000Basic)-A36))))) -> 2.602688226 | C36: =LiveAnnuityPV(A36,i,A2000Basic) -> 2.602688226 | D36: 2.602688226 | E36: =NPV(i,INDEX($H$4:$DR$118,1+A36,1+A36):INDEX($H$118:$DR$118,1,1+A36)) -> 2.602688226 | F36: 32 | G36: 0.0008 | H36: 0.9848119429 | I36: 0.9848119429 | J36: 0.9848119429 | K36: 0.9848119429 | L36: 0.9848119429 | M36: 0.9848119429 | N36: 0.9851074751 | O36: 0.9854030961 | P36: 0.9856988057 | Q36: 0.9859946041 | R36: 0.9863891597 | S36: 0.9867838733 | T36: 0.9871787448 | U36: 0.9875737743 | V36: 0.9879689619 | W36: 0.9884631935 | X36: 0.9889576723 | Y36: 0.9894523985 | Z36: 0.9899473722 | AA36: 0.9904425935 | AB36: 0.9909380625 | AC36: 0.9914337794 | AD36: 0.9920289968 | AE36: 0.9926245716 | AF36: 0.9932205039 | AG36: 0.9939162452 | AH36: 0.994612474 | AI36: 0.9953091904 | AJ36: 0.9960063949 | AK36: 0.996803838 | AL36: 0.9976019195 | AM36: 0.99840064 | AN36: =1-$G36 -> 0.9992
A37: 99 | B37: =SUMPRODUCT(TRANSPOSE((1+i)^-TRANSPOSE(ROW(OFFSET(A2000Basic,A37,,ROWS(A2000Basic)-A37))-A37-ROW(INDEX(A2000Basic,1))+1)),EXP(MMULT(1-( ROW(OFFSET(A2000Basic,A37,,ROWS(A2000Basic)-A37))<TRANSPOSE(ROW(OFFSET(A2000Basic,A37,,ROWS(A2000Basic)-A37)))),LN(1-OFFSET(A2000Basic,A37,,ROWS(A2000Basic)-A37))))) -> 2.416028297 | C37: =LiveAnnuityPV(A37,i,A2000Basic) -> 2.416028297 | D37: 2.416028297 | E37: =NPV(i,INDEX($H$4:$DR$118,1+A37,1+A37):INDEX($H$118:$DR$118,1,1+A37)) -> 2.416028297 | F37: 33 | G37: 0.0008 | H37: 0.9840240933 | I37: 0.9840240933 | J37: 0.9840240933 | K37: 0.9840240933 | L37: 0.9840240933 | M37: 0.9840240933 | N37: 0.9843193892 | O37: 0.9846147736 | P37: 0.9849102467 | Q37: 0.9852058084 | R37: 0.9856000484 | S37: 0.9859944462 | T37: 0.9863890018 | U37: 0.9867837153 | V37: 0.9871785867 | W37: 0.9876724229 | X37: 0.9881665062 | Y37: 0.9886608366 | Z37: 0.9891554143 | AA37: 0.9896502394 | AB37: 0.9901453121 | AC37: 0.9906406324 | AD37: 0.9912353736 | AE37: 0.9918304719 | AF37: 0.9924259275 | AG37: 0.9931211122 | AH37: 0.993816784 | AI37: 0.9945129431 | AJ37: 0.9952095898 | AK37: 0.9960063949 | AL37: 0.996803838 | AM37: 0.9976019195 | AN37: 0.99840064 | AO37: =1-$G37 -> 0.9992
A38: 100 | B38: =SUMPRODUCT(TRANSPOSE((1+i)^-TRANSPOSE(ROW(OFFSET(A2000Basic,A38,,ROWS(A2000Basic)-A38))-A38-ROW(INDEX(A2000Basic,1))+1)),EXP(MMULT(1-( ROW(OFFSET(A2000Basic,A38,,ROWS(A2000Basic)-A38))<TRANSPOSE(ROW(OFFSET(A2000Basic,A38,,ROWS(A2000Basic)-A38)))),LN(1-OFFSET(A2000Basic,A38,,ROWS(A2000Basic)-A38))))) -> 2.17103714 | C38: =LiveAnnuityPV(A38,i,A2000Basic) -> 2.17103714 | D38: 2.17103714 | E38: =NPV(i,INDEX($H$4:$DR$118,1+A38,1+A38):INDEX($H$118:$DR$118,1,1+A38)) -> 2.17103714 | F38: 34 | G38: 0.0008 | H38: 0.9832368741 | I38: 0.9832368741 | J38: 0.9832368741 | K38: 0.9832368741 | L38: 0.9832368741 | M38: 0.9832368741 | N38: 0.9835319336 | O38: 0.9838270818 | P38: 0.9841223185 | Q38: 0.9844176438 | R38: 0.9848115684 | S38: 0.9852056506 | T38: 0.9855998906 | U38: 0.9859942883 | V38: 0.9863888439 | W38: 0.986882285 | X38: 0.987375973 | Y38: 0.9878699079 | Z38: 0.98836409 | AA38: 0.9888585192 | AB38: 0.9893531958 | AC38: 0.9898481199 | AD38: 0.9904423853 | AE38: 0.9910370075 | AF38: 0.9916319867 | AG38: 0.9923266154 | AH38: 0.9930217306 | AI38: 0.9937173327 | AJ38: 0.9944134221 | AK38: 0.9952095898 | AL38: 0.9960063949 | AM38: 0.996803838 | AN38: 0.9976019195 | AO38: 0.99840064 | AP38: =1-$G38 -> 0.9992
A39: 101 | B39: =SUMPRODUCT(TRANSPOSE((1+i)^-TRANSPOSE(ROW(OFFSET(A2000Basic,A39,,ROWS(A2000Basic)-A39))-A39-ROW(INDEX(A2000Basic,1))+1)),EXP(MMULT(1-( ROW(OFFSET(A2000Basic,A39,,ROWS(A2000Basic)-A39))<TRANSPOSE(ROW(OFFSET(A2000Basic,A39,,ROWS(A2000Basic)-A39)))),LN(1-OFFSET(A2000Basic,A39,,ROWS(A2000Basic)-A39))))) -> 1.849486246 | C39: =LiveAnnuityPV(A39,i,A2000Basic) -> 1.849486246 | D39: 1.849486246 | E39: =NPV(i,INDEX($H$4:$DR$118,1+A39,1+A39):INDEX($H$118:$DR$118,1,1+A39)) -> 1.849486246 | F39: 35 | G39: 0.0008 | H39: 0.9824502846 | I39: 0.9824502846 | J39: 0.9824502846 | K39: 0.9824502846 | L39: 0.9824502846 | M39: 0.9824502846 | N39: 0.9827451081 | O39: 0.9830400201 | P39: 0.9833350206 | Q39: 0.9836301096 | R39: 0.9840237191 | S39: 0.9844174861 | T39: 0.9848114107 | U39: 0.9852054929 | V39: 0.9855997328 | W39: 0.9860927792 | X39: 0.9865860722 | Y39: 0.987079612 | Z39: 0.9875733987 | AA39: 0.9880674324 | AB39: 0.9885617133 | AC39: 0.9890562414 | AD39: 0.9896500314 | AE39: 0.9902441779 | AF39: 0.9908386811 | AG39: 0.9915327541 | AH39: 0.9922273132 | AI39: 0.9929223588 | AJ39: 0.9936178914 | AK39: =(1-$G39)*AK38 -> 0.9944134221 | AL39: 0.9952095898 | AM39: 0.9960063949 | AN39: 0.996803838 | AO39: 0.9976019195 | AP39: 0.99840064 | AQ39: =1-$G39 -> 0.9992
A40: 102 | B40: =SUMPRODUCT(TRANSPOSE((1+i)^-TRANSPOSE(ROW(OFFSET(A2000Basic,A40,,ROWS(A2000Basic)-A40))-A40-ROW(INDEX(A2000Basic,1))+1)),EXP(MMULT(1-( ROW(OFFSET(A2000Basic,A40,,ROWS(A2000Basic)-A40))<TRANSPOSE(ROW(OFFSET(A2000Basic,A40,,ROWS(A2000Basic)-A40)))),LN(1-OFFSET(A2000Basic,A40,,ROWS(A2000Basic)-A40))))) -> 1.774229369 | C40: =LiveAnnuityPV(A40,i,A2000Basic) -> 1.774229369 | D40: 1.774229369 | E40: =NPV(i,INDEX($H$4:$DR$118,1+A40,1+A40):INDEX($H$118:$DR$118,1,1+A40)) -> 1.774229369 | F40: 36 | G40: 0.0008 | H40: 0.9816643243 | I40: 0.9816643243 | J40: 0.9816643243 | K40: 0.9816643243 | L40: 0.9816643243 | M40: 0.9816643243 | N40: 0.981958912 | O40: 0.9822535881 | P40: 0.9825483526 | Q40: 0.9828432056 | R40: 0.9832365002 | S40: 0.9836299521 | T40: 0.9840235616 | U40: 0.9844173285 | V40: 0.984811253 | W40: 0.9853039049 | X40: 0.9857968033 | Y40: 0.9862899483 | Z40: 0.98678334 | AA40: 0.9872769785 | AB40: 0.9877708639 | AC40: 0.9882649964 | AD40: 0.9888583114 | AE40: 0.9894519826 | AF40: 0.9900460102 | AG40: 0.9907395279 | AH40: 0.9914335313 | AI40: 0.9921280209 | AJ40: 0.992822997 | AK40: 0.9936178914 | AL40: 0.9944134221 | AM40: 0.9952095898 | AN40: 0.9960063949 | AO40: 0.996803838 | AP40: 0.9976019195 | AQ40: =(1-$G40)*AQ39 -> 0.99840064 | AR40: =1-$G40 -> 0.9992
A41: 103 | B41: =SUMPRODUCT(TRANSPOSE((1+i)^-TRANSPOSE(ROW(OFFSET(A2000Basic,A41,,ROWS(A2000Basic)-A41))-A41-ROW(INDEX(A2000Basic,1))+1)),EXP(MMULT(1-( ROW(OFFSET(A2000Basic,A41,,ROWS(A2000Basic)-A41))<TRANSPOSE(ROW(OFFSET(A2000Basic,A41,,ROWS(A2000Basic)-A41)))),LN(1-OFFSET(A2000Basic,A41,,ROWS(A2000Basic)-A41))))) -> 1.661344054 | C41: =LiveAnnuityPV(A41,i,A2000Basic) -> 1.661344054 | D41: 1.661344054 | E41: =NPV(i,INDEX($H$4:$DR$118,1+A41,1+A41):INDEX($H$118:$DR$118,1,1+A41)) -> 1.661344054 | F41: 37 | G41: 0.0008 | H41: 0.9808789929 | I41: 0.9808789929 | J41: 0.9808789929 | K41: 0.9808789929 | L41: 0.9808789929 | M41: 0.9808789929 | N41: 0.9811733449 | O41: 0.9814677852 | P41: 0.9817623139 | Q41: 0.982056931 | R41: 0.982449911 | S41: 0.9828430482 | T41: 0.9832363427 | U41: 0.9836297946 | V41: 0.984023404 | W41: 0.9845156618 | X41: 0.9850081659 | Y41: 0.9855009164 | Z41: 0.9859939133 | AA41: 0.9864871569 | AB41: 0.9869806472 | AC41: 0.9874743844 | AD41: 0.9880672247 | AE41: 0.988660421 | AF41: 0.9892539734 | AG41: 0.9899469362 | AH41: 0.9906403845 | AI41: 0.9913343185 | AJ41: 0.9920287386 | AK41: 0.992822997 | AL41: 0.9936178914 | AM41: 0.9944134221 | AN41: 0.9952095898 | AO41: 0.9960063949 | AP41: 0.996803838 | AQ41: 0.9976019195 | AR41: 0.99840064 | AS41: =1-$G41 -> 0.9992
A42: 104 | B42: =SUMPRODUCT(TRANSPOSE((1+i)^-TRANSPOSE(ROW(OFFSET(A2000Basic,A42,,ROWS(A2000Basic)-A42))-A42-ROW(INDEX(A2000Basic,1))+1)),EXP(MMULT(1-( ROW(OFFSET(A2000Basic,A42,,ROWS(A2000Basic)-A42))<TRANSPOSE(ROW(OFFSET(A2000Basic,A42,,ROWS(A2000Basic)-A42)))),LN(1-OFFSET(A2000Basic,A42,,ROWS(A2000Basic)-A42))))) -> 1.492016081 | C42: =LiveAnnuityPV(A42,i,A2000Basic) -> 1.492016081 | D42: 1.492016081 | E42: =NPV(i,INDEX($H$4:$DR$118,1+A42,1+A42):INDEX($H$118:$DR$118,1,1+A42)) -> 1.492016081 | F42: 38 | G42: 0.0009 | H42: 0.9799962018 | I42: 0.9799962018 | J42: 0.9799962018 | K42: 0.9799962018 | L42: 0.9799962018 | M42: 0.9799962018 | N42: 0.9802902889 | O42: 0.9805844642 | P42: 0.9808787278 | Q42: 0.9811730797 | R42: 0.981565706 | S42: 0.9819584894 | T42: 0.98235143 | U42: 0.9827445278 | V42: 0.9831377829 | W42: 0.9836295977 | X42: 0.9841216586 | Y42: 0.9846139655 | Z42: 0.9851065188 | AA42: 0.9855993185 | AB42: 0.9860923646 | AC42: 0.9865856575 | AD42: 0.9871779642 | AE42: 0.9877706266 | AF42: 0.9883636448 | AG42: 0.989055984 | AH42: 0.9897488082 | AI42: 0.9904421176 | AJ42: 0.9911359128 | AK42: 0.9919294563 | AL42: 0.9927236353 | AM42: 0.99351845 | AN42: 0.9943139011 | AO42: 0.9951099891 | AP42: 0.9959067145 | AQ42: 0.9967040778 | AR42: 0.9975020794 | AS42: 0.99830072 | AT42: =1-$G42 -> 0.9991
A43: 105 | B43: =SUMPRODUCT(TRANSPOSE((1+i)^-TRANSPOSE(ROW(OFFSET(A2000Basic,A43,,ROWS(A2000Basic)-A43))-A43-ROW(INDEX(A2000Basic,1))+1)),EXP(MMULT(1-( ROW(OFFSET(A2000Basic,A43,,ROWS(A2000Basic)-A43))<TRANSPOSE(ROW(OFFSET(A2000Basic,A43,,ROWS(A2000Basic)-A43)))),LN(1-OFFSET(A2000Basic,A43,,ROWS(A2000Basic)-A43))))) -> 1.238024121 | C43: =LiveAnnuityPV(A43,i,A2000Basic) -> 1.238024121 | D43: 1.238024121 | E43: =NPV(i,INDEX($H$4:$DR$118,1+A43,1+A43):INDEX($H$118:$DR$118,1,1+A43)) -> 1.238024121 | F43: 39 | G43: 0.0009 | H43: 0.9791142052 | I43: 0.9791142052 | J43: 0.9791142052 | K43: 0.9791142052 | L43: 0.9791142052 | M43: 0.9791142052 | N43: 0.9794080276 | O43: 0.9797019382 | P43: 0.979995937 | Q43: 0.980290024 | R43: 0.9806822969 | S43: 0.9810747268 | T43: 0.9814673137 | U43: 0.9818600577 | V43: 0.9822529589 | W43: 0.9827443311 | X43: 0.9832359491 | Y43: 0.983727813 | Z43: 0.9842199229 | AA43: 0.9847122791 | AB43: 0.9852048815 | AC43: 0.9856977304 | AD43: 0.9862895041 | AE43: 0.9868816331 | AF43: 0.9874741175 | AG43: 0.9881658336 | AH43: 0.9888580342 | AI43: 0.9895507197 | AJ43: 0.9902438905 | AK43: 0.9910367198 | AL43: 0.991830184 | AM43: 0.9926242834 | AN43: 0.9934190186 | AO43: 0.9942143901 | AP43: 0.9950103985 | AQ43: 0.9958070441 | AR43: 0.9966043276 | AS43: 0.9974022494 | AT43: 0.99820081 | AU43: =1-$G43 -> 0.9991
A44: =A43+1 -> 106 | B44: =SUMPRODUCT(TRANSPOSE((1+i)^-TRANSPOSE(ROW(OFFSET(A2000Basic,A44,,ROWS(A2000Basic)-A44))-A44-ROW(INDEX(A2000Basic,1))+1)),EXP(MMULT(1-( ROW(OFFSET(A2000Basic,A44,,ROWS(A2000Basic)-A44))<TRANSPOSE(ROW(OFFSET(A2000Basic,A44,,ROWS(A2000Basic)-A44)))),LN(1-OFFSET(A2000Basic,A44,,ROWS(A2000Basic)-A44))))) -> 1.166542212 | C44: =LiveAnnuityPV(A44,i,A2000Basic) -> 1.166542212 | D44: 1.166542212 | E44: =NPV(i,INDEX($H$4:$DR$118,1+A44,1+A44):INDEX($H$118:$DR$118,1,1+A44)) -> 1.166542212 | F44: 40 | G44: 0.001 | H44: 0.978135091 | I44: 0.978135091 | J44: 0.978135091 | K44: 0.978135091 | L44: 0.978135091 | M44: 0.978135091 | N44: 0.9784286196 | O44: 0.9787222363 | P44: 0.979015941 | Q44: 0.979309734 | R44: 0.9797016146 | S44: 0.9800936521 | T44: 0.9804858464 | U44: 0.9808781977 | V44: 0.981270706 | W44: 0.9817615868 | X44: 0.9822527131 | Y44: 0.9827440852 | Z44: 0.983235703 | AA44: 0.9837275668 | AB44: 0.9842196766 | AC44: 0.9847120326 | AD44: 0.9853032146 | AE44: 0.9858947514 | AF44: 0.9864866434 | AG44: 0.9871776678 | AH44: 0.9878691762 | AI44: 0.988561169 | AJ44: 0.9892536466 | AK44: 0.9900456831 | AL44: 0.9908383538 | AM44: 0.9916316591 | AN44: 0.9924255996 | AO44: 0.9932201757 | AP44: =(1-$G44)*AP43 -> 0.9940153881 | AQ44: 0.994811237 | AR44: 0.9956077232 | AS44: 0.9964048471 | AT44: 0.9972026092 | AU44: 0.9981009 | AV44: =1-$G44 -> 0.999
A45: =A44+1 -> 107 | B45: =SUMPRODUCT(TRANSPOSE((1+i)^-TRANSPOSE(ROW(OFFSET(A2000Basic,A45,,ROWS(A2000Basic)-A45))-A45-ROW(INDEX(A2000Basic,1))+1)),EXP(MMULT(1-( ROW(OFFSET(A2000Basic,A45,,ROWS(A2000Basic)-A45))<TRANSPOSE(ROW(OFFSET(A2000Basic,A45,,ROWS(A2000Basic)-A45)))),LN(1-OFFSET(A2000Basic,A45,,ROWS(A2000Basic)-A45))))) -> 1.041448872 | C45: =LiveAnnuityPV(A45,i,A2000Basic) -> 1.041448872 | D45: 1.041448872 | E45: =NPV(i,INDEX($H$4:$DR$118,1+A45,1+A45):INDEX($H$118:$DR$118,1,1+A45)) -> 1.041448872 | F45: 41 | G45: 0.001 | H45: 0.9771569559 | I45: 0.9771569559 | J45: 0.9771569559 | K45: 0.9771569559 | L45: 0.9771569559 | M45: 0.9771569559 | N45: 0.977450191 | O45: 0.977743514 | P45: 0.9780369251 | Q45: 0.9783304242 | R45: 0.978721913 | S45: 0.9791135584 | T45: 0.9795053606 | U45: 0.9798973195 | V45: 0.9802894353 | W45: 0.9807798252 | X45: 0.9812704604 | Y45: 0.9817613411 | Z45: 0.9822524673 | AA45: 0.9827438392 | AB45: 0.9832354569 | AC45: 0.9837273206 | AD45: 0.9843179114 | AE45: 0.9849088567 | AF45: 0.9855001568 | AG45: 0.9861904901 | AH45: 0.986881307 | AI45: 0.9875726078 | AJ45: 0.9882643929 | AK45: 0.9890556374 | AL45: 0.9898475154 | AM45: 0.9906400275 | AN45: 0.991433174 | AO45: 0.9922269556 | AP45: 0.9930213727 | AQ45: 0.9938164258 | AR45: 0.9946121155 | AS45: 0.9954084423 | AT45: 0.9962054066 | AU45: 0.9971027991 | AV45: =(1-$G45)*AV44 -> 0.998001 | AW45: =1-$G45 -> 0.999
A46: 108 | B46: =SUMPRODUCT(TRANSPOSE((1+i)^-TRANSPOSE(ROW(OFFSET(A2000Basic,A46,,ROWS(A2000Basic)-A46))-A46-ROW(INDEX(A2000Basic,1))+1)),EXP(MMULT(1-( ROW(OFFSET(A2000Basic,A46,,ROWS(A2000Basic)-A46))<TRANSPOSE(ROW(OFFSET(A2000Basic,A46,,ROWS(A2000Basic)-A46)))),LN(1-OFFSET(A2000Basic,A46,,ROWS(A2000Basic)-A46))))) -> 0.8225355258 | C46: =LiveAnnuityPV(A46,i,A2000Basic) -> 0.8225355258 | D46: 0.8225355258 | E46: =NPV(i,INDEX($H$4:$DR$118,1+A46,1+A46):INDEX($H$118:$DR$118,1,1+A46)) -> 0.8225355258 | F46: 42 | G46: 0.001 | H46: 0.9761797989 | I46: 0.9761797989 | J46: 0.9761797989 | K46: 0.9761797989 | L46: 0.9761797989 | M46: 0.9761797989 | N46: 0.9764727408 | O46: 0.9767657705 | P46: 0.9770588882 | Q46: 0.9773520938 | R46: 0.9777431911 | S46: 0.9781344448 | T46: 0.9785258552 | U46: 0.9789174222 | V46: 0.9793091458 | W46: 0.9797990453 | X46: 0.9802891899 | Y46: 0.9807795797 | Z46: 0.9812702148 | AA46: 0.9817610954 | AB46: 0.9822522215 | AC46: 0.9827435933 | AD46: 0.9833335934 | AE46: 0.9839239478 | AF46: 0.9845146566 | AG46: 0.9852042996 | AH46: 0.9858944257 | AI46: 0.9865850352 | AJ46: 0.9872761285 | AK46: 0.9880665818 | AL46: 0.9888576679 | AM46: 0.9896493874 | AN46: 0.9904417408 | AO46: 0.9912347286 | AP46: 0.9920283513 | AQ46: 0.9928226094 | AR46: 0.9936175034 | AS46: 0.9944130338 | AT46: 0.9952092012 | AU46: 0.9961056963 | AV46: 0.997002999 | AW46: 0.998001 | AX46: =1-$G46 -> 0.999
A47: 109 | B47: =SUMPRODUCT(TRANSPOSE((1+i)^-TRANSPOSE(ROW(OFFSET(A2000Basic,A47,,ROWS(A2000Basic)-A47))-A47-ROW(INDEX(A2000Basic,1))+1)),EXP(MMULT(1-( ROW(OFFSET(A2000Basic,A47,,ROWS(A2000Basic)-A47))<TRANSPOSE(ROW(OFFSET(A2000Basic,A47,,ROWS(A2000Basic)-A47)))),LN(1-OFFSET(A2000Basic,A47,,ROWS(A2000Basic)-A47))))) -> 0.7273246041 | C47: =LiveAnnuityPV(A47,i,A2000Basic) -> 0.7273246041 | D47: 0.7273246041 | E47: =NPV(i,INDEX($H$4:$DR$118,1+A47,1+A47):INDEX($H$118:$DR$118,1,1+A47)) -> 0.7273246041 | F47: 43 | G47: 0.002 | H47: 0.9742274393 | I47: 0.9742274393 | J47: 0.9742274393 | K47: 0.9742274393 | L47: 0.9742274393 | M47: 0.9742274393 | N47: 0.9745197953 | O47: 0.974812239 | P47: 0.9751047704 | Q47: 0.9753973896 | R47: 0.9757877047 | S47: 0.976178176 | T47: 0.9765688035 | U47: 0.9769595873 | V47: 0.9773505275 | W47: 0.9778394473 | X47: 0.9783286116 | Y47: 0.9788180206 | Z47: 0.9793076744 | AA47: 0.9797975732 | AB47: 0.980287717 | AC47: 0.9807781061 | AD47: 0.9813669263 | AE47: 0.9819560999 | AF47: 0.9825456273 | AG47: 0.983233891 | AH47: 0.9839226369 | AI47: 0.9846118652 | AJ47: 0.9853015763 | AK47: 0.9860904486 | AL47: 0.9868799526 | AM47: 0.9876700887 | AN47: 0.9884608574 | AO47: 0.9892522592 | AP47: 0.9900442946 | AQ47: 0.9908369642 | AR47: 0.9916302684 | AS47: 0.9924242077 | AT47: 0.9932187828 | AU47: 0.9941134849 | AV47: 0.995008993 | AW47: 0.996004998 | AX47: 0.997002 | AY47: =1-$G47 -> 0.998
A48: 110 | B48: =SUMPRODUCT(TRANSPOSE((1+i)^-TRANSPOSE(ROW(OFFSET(A2000Basic,A48,,ROWS(A2000Basic)-A48))-A48-ROW(INDEX(A2000Basic,1))+1)),EXP(MMULT(1-( ROW(OFFSET(A2000Basic,A48,,ROWS(A2000Basic)-A48))<TRANSPOSE(ROW(OFFSET(A2000Basic,A48,,ROWS(A2000Basic)-A48)))),LN(1-OFFSET(A2000Basic,A48,,ROWS(A2000Basic)-A48))))) -> 0.5273816686 | C48: =LiveAnnuityPV(A48,i,A2000Basic) -> 0.5273816686 | D48: 0.5273816686 | E48: =NPV(i,INDEX($H$4:$DR$118,1+A48,1+A48):INDEX($H$118:$DR$118,1,1+A48)) -> 0.5273816686 | F48: 44 | G48: 0.002 | H48: 0.9722789845 | I48: 0.9722789845 | J48: 0.9722789845 | K48: 0.9722789845 | L48: 0.9722789845 | M48: 0.9722789845 | N48: 0.9725707557 | O48: 0.9728626145 | P48: 0.9731545608 | Q48: 0.9734465948 | R48: 0.9738361293 | S48: 0.9742258196 | T48: 0.9746156659 | U48: 0.9750056681 | V48: 0.9753958265 | W48: 0.9758837684 | X48: 0.9763719543 | Y48: 0.9768603845 | Z48: 0.9773490591 | AA48: 0.977837978 | AB48: 0.9783271416 | AC48: 0.9788165499 | AD48: 0.9794041924 | AE48: 0.9799921877 | AF48: 0.980580536 | AG48: 0.9812674232 | AH48: 0.9819547916 | AI48: 0.9826426414 | AJ48: 0.9833309731 | AK48: 0.9841182677 | AL48: 0.9849061927 | AM48: 0.9856947485 | AN48: 0.9864839356 | AO48: 0.9872737546 | AP48: 0.988064206 | AQ48: 0.9888552902 | AR48: 0.9896470078 | AS48: 0.9904393593 | AT48: 0.9912323452 | AU48: 0.9921252579 | AV48: 0.993018975 | AW48: 0.994012988 | AX48: 0.995007996 | AY48: 0.996004 | AZ48: =1-$G48 -> 0.998
A49: 111 | B49: =SUMPRODUCT(TRANSPOSE((1+i)^-TRANSPOSE(ROW(OFFSET(A2000Basic,A49,,ROWS(A2000Basic)-A49))-A49-ROW(INDEX(A2000Basic,1))+1)),EXP(MMULT(1-( ROW(OFFSET(A2000Basic,A49,,ROWS(A2000Basic)-A49))<TRANSPOSE(ROW(OFFSET(A2000Basic,A49,,ROWS(A2000Basic)-A49)))),LN(1-OFFSET(A2000Basic,A49,,ROWS(A2000Basic)-A49))))) -> 0.38437688 | C49: =LiveAnnuityPV(A49,i,A2000Basic) -> 0.38437688 | D49: 0.38437688 | E49: =NPV(i,INDEX($H$4:$DR$118,1+A49,1+A49):INDEX($H$118:$DR$118,1,1+A49)) -> 0.38437688 | F49: 45 | G49: 0.002 | H49: 0.9703344265 | I49: 0.9703344265 | J49: 0.9703344265 | K49: 0.9703344265 | L49: 0.9703344265 | M49: 0.9703344265 | N49: 0.9706256142 | O49: 0.9709168893 | P49: 0.9712082517 | Q49: 0.9714997016 | R49: 0.971888457 | S49: 0.972277368 | T49: 0.9726664345 | U49: 0.9730556568 | V49: 0.9734450348 | W49: 0.9739320008 | X49: 0.9744192104 | Y49: 0.9749066638 | Z49: 0.9753943609 | AA49: 0.9758823021 | AB49: 0.9763704873 | AC49: 0.9768589168 | AD49: 0.977445384 | AE49: 0.9780322033 | AF49: 0.978619375 | AG49: 0.9793048884 | AH49: 0.979990882 | AI49: 0.9806773562 | AJ49: 0.9813643112 | AK49: 0.9821500312 | AL49: 0.9829363803 | AM49: 0.983723359 | AN49: 0.9845109678 | AO49: 0.9852992071 | AP49: 0.9860880776 | AQ49: 0.9868775797 | AR49: 0.9876677138 | AS49: 0.9884584806 | AT49: 0.9892498805 | AU49: =(1-$G49)*AU48 -> 0.9901410074 | AV49: 0.9910329371 | AW49: 0.992024962 | AX49: 0.99301798 | AY49: 0.994011992 | AZ49: 0.996004 | BA49: =1-$G49 -> 0.998
A50: 112 | B50: =SUMPRODUCT(TRANSPOSE((1+i)^-TRANSPOSE(ROW(OFFSET(A2000Basic,A50,,ROWS(A2000Basic)-A50))-A50-ROW(INDEX(A2000Basic,1))+1)),EXP(MMULT(1-( ROW(OFFSET(A2000Basic,A50,,ROWS(A2000Basic)-A50))<TRANSPOSE(ROW(OFFSET(A2000Basic,A50,,ROWS(A2000Basic)-A50)))),LN(1-OFFSET(A2000Basic,A50,,ROWS(A2000Basic)-A50))))) -> 0.34531908 | C50: =LiveAnnuityPV(A50,i,A2000Basic) -> 0.34531908 | D50: 0.34531908 | E50: =NPV(i,INDEX($H$4:$DR$118,1+A50,1+A50):INDEX($H$118:$DR$118,1,1+A50)) -> 0.34531908 | F50: 46 | G50: 0.002 | H50: 0.9683937576 | I50: 0.9683937576 | J50: 0.9683937576 | K50: 0.9683937576 | L50: 0.9683937576 | M50: 0.9683937576 | N50: 0.968684363 | O50: 0.9689750555 | P50: 0.9692658352 | Q50: 0.9695567022 | R50: 0.9699446801 | S50: 0.9703328132 | T50: 0.9707211017 | U50: 0.9711095455 | V50: 0.9714981447 | W50: 0.9719841368 | X50: 0.972470372 | Y50: 0.9729568504 | Z50: 0.9734435722 | AA50: 0.9739305375 | AB50: 0.9744177464 | AC50: 0.974905199 | AD50: 0.9754904933 | AE50: 0.9760761389 | AF50: 0.9766621362 | AG50: 0.9773462786 | AH50: 0.9780309002 | AI50: 0.9787160014 | AJ50: 0.9794015826 | AK50: 0.9801857311 | AL50: 0.9809705075 | AM50: 0.9817559123 | AN50: 0.9825419458 | AO50: 0.9833286087 | AP50: 0.9841159014 | AQ50: 0.9849038245 | AR50: 0.9856923784 | AS50: 0.9864815637 | AT50: 0.9872713808 | AU50: 0.9881607254 | AV50: 0.9890508712 | AW50: 0.9900409121 | AX50: 0.991031944 | AY50: 0.992023968 | AZ50: 0.994011992 | BA50: =(1-$G50)*BA49 -> 0.996004 | BB50: =1-$G50 -> 0.998
A51: 113 | B51: =SUMPRODUCT(TRANSPOSE((1+i)^-TRANSPOSE(ROW(OFFSET(A2000Basic,A51,,ROWS(A2000Basic)-A51))-A51-ROW(INDEX(A2000Basic,1))+1)),EXP(MMULT(1-( ROW(OFFSET(A2000Basic,A51,,ROWS(A2000Basic)-A51))<TRANSPOSE(ROW(OFFSET(A2000Basic,A51,,ROWS(A2000Basic)-A51)))),LN(1-OFFSET(A2000Basic,A51,,ROWS(A2000Basic)-A51))))) -> 0.20861678 | C51: =LiveAnnuityPV(A51,i,A2000Basic) -> 0.20861678 | D51: 0.20861678 | E51: =NPV(i,INDEX($H$4:$DR$118,1+A51,1+A51):INDEX($H$118:$DR$118,1,1+A51)) -> 0.20861678 | F51: 47 | G51: 0.002 | H51: 0.9664569701 | I51: 0.9664569701 | J51: 0.9664569701 | K51: 0.9664569701 | L51: 0.9664569701 | M51: 0.9664569701 | N51: 0.9667469942 | O51: 0.9670371054 | P51: 0.9673273036 | Q51: 0.9676175888 | R51: 0.9680047907 | S51: 0.9683921476 | T51: 0.9687796595 | U51: 0.9691673264 | V51: 0.9695551485 | W51: 0.9700401685 | X51: 0.9705254313 | Y51: 0.9710109367 | Z51: 0.9714966851 | AA51: 0.9719826764 | AB51: 0.9724689109 | AC51: 0.9729553886 | AD51: 0.9735395123 | AE51: 0.9741239867 | AF51: 0.9747088119 | AG51: 0.9753915861 | AH51: 0.9760748384 | AI51: 0.9767585694 | AJ51: 0.9774427794 | AK51: 0.9782253597 | AL51: 0.9790085665 | AM51: 0.9797924004 | AN51: 0.9805768619 | AO51: 0.9813619515 | AP51: 0.9821476696 | AQ51: 0.9829340168 | AR51: 0.9837209936 | AS51: 0.9845086005 | AT51: 0.985296838 | AU51: 0.986184404 | AV51: 0.9870727694 | AW51: 0.9880608303 | AX51: 0.9890498802 | AY51: 0.9900399201 | AZ51: 0.992023968 | BA51: 0.994011992 | BB51: 0.996004 | BC51: =1-$G51 -> 0.998
A52: 114 | B52: =SUMPRODUCT(TRANSPOSE((1+i)^-TRANSPOSE(ROW(OFFSET(A2000Basic,A52,,ROWS(A2000Basic)-A52))-A52-ROW(INDEX(A2000Basic,1))+1)),EXP(MMULT(1-( ROW(OFFSET(A2000Basic,A52,,ROWS(A2000Basic)-A52))<TRANSPOSE(ROW(OFFSET(A2000Basic,A52,,ROWS(A2000Basic)-A52)))),LN(1-OFFSET(A2000Basic,A52,,ROWS(A2000Basic)-A52))))) -> 0.09523809524 | C52: =LiveAnnuityPV(A52,i,A2000Basic) -> 0.09523809524 | D52: 0.09523809524 | E52: =NPV(i,INDEX($H$4:$DR$118,1+A52,1+A52):INDEX($H$118:$DR$118,1,1+A52)) -> 0.09523809524 | F52: 48 | G52: 0.003 | H52: 0.9635575992 | I52: 0.9635575992 | J52: 0.9635575992 | K52: 0.9635575992 | L52: 0.9635575992 | M52: 0.9635575992 | N52: 0.9638467532 | O52: 0.964135994 | P52: 0.9644253216 | Q52: 0.9647147361 | R52: 0.9651007764 | S52: 0.9654869712 | T52: 0.9658733205 | U52: 0.9662598244 | V52: 0.966646483 | W52: 0.967130048 | X52: 0.967613855 | Y52: 0.9680979039 | Z52: 0.968582195 | AA52: 0.9690667284 | AB52: 0.9695515041 | AC52: 0.9700365224 | AD52: 0.9706188937 | AE52: 0.9712016147 | AF52: 0.9717846855 | AG52: 0.9724654113 | AH52: 0.9731466139 | AI52: 0.9738282937 | AJ52: 0.974510451 | AK52: 0.9752906836 | AL52: 0.9760715408 | AM52: 0.9768530232 | AN52: 0.9776351314 | AO52: 0.9784178656 | AP52: 0.9792012266 | AQ52: 0.9799852148 | AR52: 0.9807698307 | AS52: 0.9815550747 | AT52: 0.9823409475 | AU52: 0.9832258507 | AV52: 0.9841115511 | AW52: 0.9850966478 | AX52: 0.9860827305 | AY52: 0.9870698003 | AZ52: 0.9890478961 | BA52: 0.991029956 | BB52: 0.993015988 | BC52: 0.995006 | BD52: =1-$G52 -> 0.997
F53: 49 | G53: 0.003 | H53: 0.9606669264 | I53: 0.9606669264 | J53: 0.9606669264 | K53: 0.9606669264 | L53: 0.9606669264 | M53: 0.9606669264 | N53: 0.960955213 | O53: 0.9612435861 | P53: 0.9615320457 | Q53: 0.9618205919 | R53: 0.962205474 | S53: 0.9625905102 | T53: 0.9629757005 | U53: 0.9633610449 | V53: 0.9637465436 | W53: 0.9642286579 | X53: 0.9647110134 | Y53: 0.9651936102 | Z53: 0.9656764484 | AA53: 0.9661595282 | AB53: 0.9666428496 | AC53: 0.9671264128 | AD53: 0.967707037 | AE53: 0.9682880099 | AF53: 0.9688693315 | AG53: 0.9695480151 | AH53: 0.9702271741 | AI53: 0.9709068089 | AJ53: 0.9715869197 | AK53: 0.9723648115 | AL53: 0.9731433262 | AM53: 0.9739224642 | AN53: 0.974702226 | AO53: 0.975482612 | AP53: 0.9762636229 | AQ53: 0.9770452592 | AR53: 0.9778275212 | AS53: 0.9786104095 | AT53: 0.9793939246 | AU53: 0.9802761732 | AV53: 0.9811592165 | AW53: 0.9821413578 | AX53: 0.9831244823 | AY53: 0.9841085909 | AZ53: 0.9860807524 | BA53: 0.9880568662 | BB53: 0.99003694 | BC53: 0.992020982 | BD53: 0.994009 | BE53: =1-$G53 -> 0.997
F54: 50 | G54: 0.003 | H54: 0.9577849256 | I54: 0.9577849256 | J54: 0.9577849256 | K54: 0.9577849256 | L54: 0.9577849256 | M54: 0.9577849256 | N54: 0.9580723474 | O54: 0.9583598553 | P54: 0.9586474495 | Q54: 0.9589351301 | R54: 0.9593188576 | S54: 0.9597027387 | T54: 0.9600867734 | U54: 0.9604709618 | V54: 0.9608553039 | W54: 0.9613359719 | X54: 0.9618168804 | Y54: 0.9622980294 | Z54: 0.9627794191 | AA54: 0.9632610496 | AB54: 0.9637429211 | AC54: 0.9642250336 | AD54: 0.9648039159 | AE54: 0.9653831458 | AF54: 0.9659627235 | AG54: 0.966639371 | AH54: 0.9673164926 | AI54: 0.9679940884 | AJ54: 0.9686721589 | AK54: 0.9694477171 | AL54: 0.9702238962 | AM54: 0.9710006968 | AN54: 0.9717781193 | AO54: 0.9725561642 | AP54: 0.9733348321 | AQ54: 0.9741141234 | AR54: 0.9748940386 | AS54: 0.9756745783 | AT54: 0.9764557429 | AU54: 0.9773353447 | AV54: 0.9782157388 | AW54: 0.9791949338 | AX54: 0.9801751089 | AY54: 0.9811562651 | AZ54: =(1-$G54)*AZ53 -> 0.9831225102 | BA54: 0.9850926956 | BB54: 0.9870668292 | BC54: 0.9890449191 | BD54: 0.991026973 | BE54: 0.994009 | BF54: =1-$G54 -> 0.997
F55: 51 | G55: 0.004 | H55: 0.9539537859 | I55: 0.9539537859 | J55: 0.9539537859 | K55: 0.9539537859 | L55: 0.9539537859 | M55: 0.9539537859 | N55: 0.954240058 | O55: 0.9545264159 | P55: 0.9548128597 | Q55: 0.9550993896 | R55: 0.9554815822 | S55: 0.9558639278 | T55: 0.9562464263 | U55: 0.956629078 | V55: 0.9570118827 | W55: 0.957490628 | X55: 0.9579696128 | Y55: 0.9584488373 | Z55: 0.9589283014 | AA55: 0.9594080054 | AB55: 0.9598879494 | AC55: 0.9603681335 | AD55: 0.9609447003 | AE55: 0.9615216132 | AF55: 0.9620988726 | AG55: 0.9627728135 | AH55: 0.9634472266 | AI55: 0.9641221121 | AJ55: 0.9647974703 | AK55: 0.9655699262 | AL55: 0.9663430006 | AM55: 0.967116694 | AN55: 0.9678910068 | AO55: 0.9686659396 | AP55: 0.9694414927 | AQ55: 0.9702176669 | AR55: 0.9709944625 | AS55: 0.97177188 | AT55: 0.9725499199 | AU55: 0.9734260033 | AV55: 0.9743028759 | AW55: 0.975278154 | AX55: 0.9762544084 | AY55: 0.9772316401 | AZ55: 0.9791900201 | BA55: 0.9811523248 | BB55: 0.9831185619 | BC55: 0.9850887394 | BD55: 0.9870628651 | BE55: 0.990032964 | BF55: =(1-$G55)*BF54 -> 0.993012 | BG55: =1-$G55 -> 0.996
F56: 52 | G56: 0.004 | H56: 0.9501379708 | I56: 0.9501379708 | J56: 0.9501379708 | K56: 0.9501379708 | L56: 0.9501379708 | M56: 0.9501379708 | N56: 0.9504230977 | O56: 0.9507083102 | P56: 0.9509936083 | Q56: 0.951278992 | R56: 0.9516596559 | S56: 0.9520404721 | T56: 0.9524214406 | U56: 0.9528025617 | V56: 0.9531838352 | W56: 0.9536606655 | X56: 0.9541377344 | Y56: 0.9546150419 | Z56: 0.9550925882 | AA56: 0.9555703734 | AB56: 0.9560483976 | AC56: 0.9565266609 | AD56: 0.9571009215 | AE56: 0.9576755268 | AF56: 0.9582504771 | AG56: 0.9589217223 | AH56: 0.9595934377 | AI56: 0.9602656236 | AJ56: 0.9609382804 | AK56: 0.9617076465 | AL56: 0.9624776286 | AM56: 0.9632482272 | AN56: 0.9640194428 | AO56: 0.9647912758 | AP56: 0.9655637268 | AQ56: 0.9663367962 | AR56: 0.9671104846 | AS56: 0.9678847924 | AT56: 0.9686597202 | AU56: 0.9695322993 | AV56: 0.9704056644 | AW56: 0.9713770414 | AX56: 0.9723493908 | AY56: 0.9733227135 | AZ56: 0.97527326 | BA56: 0.9772277155 | BB56: 0.9791860877 | BC56: 0.9811483844 | BD56: 0.9831146136 | BE56: 0.9860728321 | BF56: 0.989039952 | BG56: 0.992016 | BH56: =1-$G56 -> 0.996
F57: 53 | G57: 0.004 | H57: 0.9463374189 | I57: 0.9463374189 | J57: 0.9463374189 | K57: 0.9463374189 | L57: 0.9463374189 | M57: 0.9463374189 | N57: 0.9466214053 | O57: 0.946905477 | P57: 0.9471896339 | Q57: 0.947473876 | R57: 0.9478530172 | S57: 0.9482323102 | T57: 0.9486117549 | U57: 0.9489913514 | V57: 0.9493710998 | W57: 0.9498460229 | X57: 0.9503211835 | Y57: 0.9507965817 | Z57: 0.9512722179 | AA57: 0.9517480919 | AB57: 0.952224204 | AC57: 0.9527005543 | AD57: 0.9532725178 | AE57: 0.9538448247 | AF57: 0.9544174752 | AG57: 0.9550860354 | AH57: 0.9557550639 | AI57: 0.9564245611 | AJ57: 0.9570945273 | AK57: 0.957860816 | AL57: 0.9586277181 | AM57: 0.9593952343 | AN57: 0.960163365 | AO57: 0.9609321107 | AP57: 0.9617014719 | AQ57: 0.962471449 | AR57: 0.9632420427 | AS57: 0.9640132533 | AT57: 0.9647850813 | AU57: 0.9656541701 | AV57: 0.9665240417 | AW57: 0.9674915333 | AX57: 0.9684599932 | AY57: 0.9694294227 | AZ57: 0.971372167 | BA57: 0.9733188046 | BB57: 0.9752693433 | BC57: 0.9772237909 | BD57: 0.9791821552 | BE57: 0.9821285408 | BF57: 0.9850837922 | BG57: 0.988047936 | BH57: 0.992016 | BI57: =1-$G57 -> 0.996
F58: 54 | G58: 0.005 | H58: 0.9416057318 | I58: 0.9416057318 | J58: 0.9416057318 | K58: 0.9416057318 | L58: 0.9416057318 | M58: 0.9416057318 | N58: 0.9418882983 | O58: 0.9421709496 | P58: 0.9424536857 | Q58: 0.9427365067 | R58: 0.9431137522 | S58: 0.9434911486 | T58: 0.9438686961 | U58: 0.9442463947 | V58: 0.9446242443 | W58: 0.9450967927 | X58: 0.9455695775 | Y58: 0.9460425988 | Z58: 0.9465158568 | AA58: 0.9469893514 | AB58: 0.947463083 | AC58: 0.9479370515 | AD58: 0.9485061552 | AE58: 0.9490756006 | AF58: 0.9496453878 | AG58: 0.9503106052 | AH58: 0.9509762886 | AI58: 0.9516424383 | AJ58: 0.9523090547 | AK58: 0.9530715119 | AL58: 0.9538345795 | AM58: 0.9545982581 | AN58: 0.9553625482 | AO58: 0.9561274501 | AP58: 0.9568929645 | AQ58: 0.9576590918 | AR58: 0.9584258325 | AS58: 0.959193187 | AT58: 0.9599611559 | AU58: 0.9608258992 | AV58: 0.9616914215 | AW58: 0.9626540756 | AX58: 0.9636176933 | AY58: 0.9645822756 | AZ58: 0.9665153062 | BA58: 0.9684522106 | BB58: 0.9703929966 | BC58: 0.9723376719 | BD58: 0.9742862444 | BE58: 0.9772178981 | BF58: 0.9801583732 | BG58: 0.9831076963 | BH58: 0.98705592 | BI58: 0.99102 | BJ58: =1-$G58 -> 0.995
F59: 55 | G59: 0.005 | H59: 0.9368977032 | I59: 0.9368977032 | J59: 0.9368977032 | K59: 0.9368977032 | L59: 0.9368977032 | M59: 0.9368977032 | N59: 0.9371788568 | O59: 0.9374600948 | P59: 0.9377414173 | Q59: 0.9380228241 | R59: 0.9383981834 | S59: 0.9387736929 | T59: 0.9391493526 | U59: 0.9395251627 | V59: 0.9399011231 | W59: 0.9403713088 | X59: 0.9408417296 | Y59: 0.9413123858 | Z59: 0.9417832775 | AA59: 0.9422544047 | AB59: 0.9427257676 | AC59: 0.9431973662 | AD59: 0.9437636244 | AE59: 0.9443302226 | AF59: 0.9448971609 | AG59: 0.9455590522 | AH59: 0.9462214072 | AI59: 0.9468842261 | AJ59: 0.9475475094 | AK59: 0.9483061543 | AL59: 0.9490654066 | AM59: 0.9498252668 | AN59: 0.9505857354 | AO59: 0.9513468129 | AP59: 0.9521084997 | AQ59: 0.9528707963 | AR59: 0.9536337033 | AS59: 0.9543972211 | AT59: 0.9551613501 | AU59: 0.9560217697 | AV59: 0.9568829644 | AW59: 0.9578408052 | AX59: 0.9587996048 | AY59: 0.9597593642 | AZ59: 0.9616827296 | BA59: 0.9636099495 | BB59: 0.9655410316 | BC59: 0.9674759836 | BD59: 0.9694148132 | BE59: =(1-$G59)*BE58 -> 0.9723318086 | BF59: 0.9752575814 | BG59: 0.9781921578 | BH59: 0.9821206404 | BI59: 0.9860649 | BJ59: 0.990025 | BK59: =1-$G59 -> 0.995
F60: 56 | G60: 0.005 | H60: 0.9322132146 | I60: 0.9322132146 | J60: 0.9322132146 | K60: 0.9322132146 | L60: 0.9322132146 | M60: 0.9322132146 | N60: 0.9324929625 | O60: 0.9327727944 | P60: 0.9330527102 | Q60: 0.93333271 | R60: 0.9337061925 | S60: 0.9340798244 | T60: 0.9344536058 | U60: 0.9348275369 | V60: 0.9352016175 | W60: 0.9356694522 | X60: 0.936137521 | Y60: 0.9366058239 | Z60: 0.9370743611 | AA60: 0.9375431327 | AB60: 0.9380121387 | AC60: 0.9384813794 | AD60: 0.9390448063 | AE60: 0.9396085714 | AF60: 0.940172675 | AG60: 0.9408312569 | AH60: 0.9414903001 | AI60: 0.942149805 | AJ60: 0.9428097718 | AK60: 0.9435646235 | AL60: 0.9443200796 | AM60: 0.9450761405 | AN60: 0.9458328068 | AO60: 0.9465900788 | AP60: 0.9473479572 | AQ60: 0.9481064423 | AR60: 0.9488655348 | AS60: 0.949625235 | AT60: 0.9503855434 | AU60: 0.9512416609 | AV60: 0.9520985496 | AW60: 0.9530516012 | AX60: 0.9540056068 | AY60: 0.9549605674 | AZ60: 0.956874316 | BA60: 0.9587918998 | BB60: 0.9607133264 | BC60: 0.9626386037 | BD60: 0.9645677391 | BE60: 0.9674701496 | BF60: 0.9703812935 | BG60: 0.973301197 | BH60: 0.9772100372 | BI60: 0.9811345755 | BJ60: 0.985074875 | BK60: =(1-$G60)*BK59 -> 0.990025 | BL60: =1-$G60 -> 0.995
F61: 57 | G61: 0.006 | H61: 0.9266199354 | I61: 0.9266199354 | J61: 0.9266199354 | K61: 0.9266199354 | L61: 0.9266199354 | M61: 0.9266199354 | N61: 0.9268980048 | O61: 0.9271761576 | P61: 0.9274543939 | Q61: 0.9277327137 | R61: 0.9281039553 | S61: 0.9284753455 | T61: 0.9288468842 | U61: 0.9292185716 | V61: 0.9295904078 | W61: 0.9300554355 | X61: 0.9305206959 | Y61: 0.930986189 | Z61: 0.9314519149 | AA61: 0.9319178739 | AB61: 0.9323840659 | AC61: 0.9328504911 | AD61: 0.9334105375 | AE61: 0.93397092 | AF61: 0.934531639 | AG61: 0.9351862694 | AH61: 0.9358413583 | AI61: 0.9364969062 | AJ61: 0.9371529132 | AK61: 0.9379032358 | AL61: 0.9386541591 | AM61: 0.9394056837 | AN61: 0.9401578099 | AO61: 0.9409105384 | AP61: 0.9416638694 | AQ61: 0.9424178037 | AR61: 0.9431723416 | AS61: 0.9439274835 | AT61: 0.9446832301 | AU61: 0.9455342109 | AV61: 0.9463859583 | AW61: 0.9473332916 | AX61: 0.9482815732 | AY61: 0.949230804 | AZ61: 0.9511330701 | BA61: 0.9530391484 | BB61: 0.9549490465 | BC61: 0.956862772 | BD61: 0.9587803327 | BE61: 0.9616653287 | BF61: 0.9645590057 | BG61: 0.9674613899 | BH61: 0.971346777 | BI61: 0.975247768 | BJ61: 0.9791644257 | BK61: 0.98408485 | BL61: 0.98903 | BM61: =1-$G61 -> 0.994
F62: 58 | G62: 0.006 | H62: 0.9210602157 | I62: 0.9210602157 | J62: 0.9210602157 | K62: 0.9210602157 | L62: 0.9210602157 | M62: 0.9210602157 | N62: 0.9213366167 | O62: 0.9216131007 | P62: 0.9218896676 | Q62: 0.9221663175 | R62: 0.9225353316 | S62: 0.9229044934 | T62: 0.9232738029 | U62: 0.9236432602 | V62: 0.9240128654 | W62: 0.9244751029 | X62: 0.9249375717 | Y62: 0.9254002718 | Z62: 0.9258632034 | AA62: 0.9263263666 | AB62: 0.9267897615 | AC62: 0.9272533882 | AD62: 0.9278100742 | AE62: 0.9283670945 | AF62: 0.9289244492 | AG62: 0.9295751518 | AH62: 0.9302263102 | AI62: 0.9308779247 | AJ62: 0.9315299957 | AK62: 0.9322758164 | AL62: 0.9330222342 | AM62: 0.9337692496 | AN62: 0.9345168631 | AO62: 0.9352650751 | AP62: 0.9360138862 | AQ62: 0.9367632969 | AR62: 0.9375133075 | AS62: 0.9382639186 | AT62: 0.9390151308 | AU62: 0.9398610057 | AV62: 0.9407076425 | AW62: 0.9416492918 | AX62: 0.9425918837 | AY62: 0.9435354191 | AZ62: 0.9454262717 | BA62: 0.9473209135 | BB62: 0.9492193522 | BC62: 0.9511215954 | BD62: 0.9530276507 | BE62: 0.9558953367 | BF62: 0.9587716517 | BG62: 0.9616566215 | BH62: 0.9655186963 | BI62: 0.9693962814 | BJ62: 0.9732894392 | BK62: 0.9781803409 | BL62: 0.98309582 | BM62: 0.988036 | BN62: =1-$G62 -> 0.994
F63: 59 | G63: 0.007 | H63: 0.9146127942 | I63: 0.9146127942 | J63: 0.9146127942 | K63: 0.9146127942 | L63: 0.9146127942 | M63: 0.9146127942 | N63: 0.9148872604 | O63: 0.915161809 | P63: 0.9154364399 | Q63: 0.9157111532 | R63: 0.9160775843 | S63: 0.9164441619 | T63: 0.9168108863 | U63: 0.9171777574 | V63: 0.9175447753 | W63: 0.9180037772 | X63: 0.9184630087 | Y63: 0.9189224699 | Z63: 0.919382161 | AA63: 0.9198420821 | AB63: 0.9203022332 | AC63: 0.9207626145 | AD63: 0.9213154037 | AE63: 0.9218685248 | AF63: 0.922421978 | AG63: 0.9230681257 | AH63: 0.923714726 | AI63: 0.9243617793 | AJ63: 0.9250092858 | AK63: 0.9257498857 | AL63: 0.9264910785 | AM63: 0.9272328648 | AN63: 0.927975245 | AO63: 0.9287182196 | AP63: 0.929461789 | AQ63: 0.9302059538 | AR63: 0.9309507144 | AS63: 0.9316960712 | AT63: 0.9324420248 | AU63: 0.9332819786 | AV63: 0.934122689 | AW63: 0.9350577468 | AX63: 0.9359937405 | AY63: 0.9369306712 | AZ63: 0.9388082878 | BA63: 0.9406896671 | BB63: 0.9425748167 | BC63: 0.9444637442 | BD63: 0.9463564571 | BE63: 0.9492040694 | BF63: 0.9520602501 | BG63: 0.9549250252 | BH63: 0.9587600654 | BI63: 0.9626105075 | BJ63: 0.9664764131 | BK63: 0.9713330785 | BL63: 0.9762141493 | BM63: 0.981119748 | BN63: 0.987042 | BO63: =1-$G63 -> 0.993
F64: 60 | G64: 0.007 | H64: 0.9082105047 | I64: 0.9082105047 | J64: 0.9082105047 | K64: 0.9082105047 | L64: 0.9082105047 | M64: 0.9082105047 | N64: 0.9084830496 | O64: 0.9087556763 | P64: 0.9090283848 | Q64: 0.9093011752 | R64: 0.9096650412 | S64: 0.9100290528 | T64: 0.9103932101 | U64: 0.9107575131 | V64: 0.9111219619 | W64: 0.9115777507 | X64: 0.9120337676 | Y64: 0.9124900126 | Z64: 0.9129464859 | AA64: 0.9134031875 | AB64: 0.9138601175 | AC64: 0.9143172762 | AD64: 0.9148661959 | AE64: 0.9154154452 | AF64: 0.9159650242 | AG64: 0.9166066488 | AH64: 0.9172487229 | AI64: 0.9178912468 | AJ64: 0.9185342208 | AK64: 0.9192696365 | AL64: 0.920005641 | AM64: 0.9207422348 | AN64: 0.9214794183 | AO64: 0.9222171921 | AP64: 0.9229555565 | AQ64: 0.9236945121 | AR64: 0.9244340594 | AS64: 0.9251741987 | AT64: 0.9259149307 | AU64: 0.9267490048 | AV64: 0.9275838302 | AW64: 0.9285123426 | AX64: 0.9294417843 | AY64: 0.9303721565 | AZ64: 0.9322366298 | BA64: 0.9341048394 | BB64: 0.935976793 | BC64: 0.937852498 | BD64: 0.9397319619 | BE64: 0.9425596409 | BF64: 0.9453958284 | BG64: 0.94824055 | BH64: 0.952048745 | BI64: 0.9558722339 | BJ64: =(1-$G64)*BJ63 -> 0.9597110782 | BK64: 0.964533747 | BL64: 0.9693806502 | BM64: 0.9742519098 | BN64: 0.980132706 | BO64: 0.986049 | BP64: =1-$G64 -> 0.993
F65: 61 | G65: 0.008 | H65: 0.9009448206 | I65: 0.9009448206 | J65: 0.9009448206 | K65: 0.9009448206 | L65: 0.9009448206 | M65: 0.9009448206 | N65: 0.9012151852 | O65: 0.9014856309 | P65: 0.9017561577 | Q65: 0.9020267658 | R65: 0.9023877208 | S65: 0.9027488204 | T65: 0.9031100644 | U65: 0.903471453 | V65: 0.9038329862 | W65: 0.9042851287 | X65: 0.9047374975 | Y65: 0.9051900925 | Z65: 0.905642914 | AA65: 0.906095962 | AB65: 0.9065492366 | AC65: 0.907002738 | AD65: 0.9075472663 | AE65: 0.9080921216 | AF65: 0.908637304 | AG65: 0.9092737956 | AH65: 0.9099107331 | AI65: 0.9105481168 | AJ65: 0.911185947 | AK65: 0.9119154794 | AL65: 0.9126455959 | AM65: 0.9133762969 | AN65: 0.914107583 | AO65: 0.9148394545 | AP65: 0.9155719121 | AQ65: 0.916304956 | AR65: 0.9170385869 | AS65: 0.9177728051 | AT65: 0.9185076112 | AU65: 0.9193350127 | AV65: 0.9201631596 | AW65: 0.9210842438 | AX65: 0.9220062501 | AY65: 0.9229291792 | AZ65: 0.9247787367 | BA65: 0.9266320007 | BB65: 0.9284889787 | BC65: 0.930349678 | BD65: 0.9322141062 | BE65: 0.9350191637 | BF65: 0.9378326617 | BG65: 0.9406546256 | BH65: 0.944432355 | BI65: 0.948225256 | BJ65: 0.9520333896 | BK65: 0.956817477 | BL65: 0.961625605 | BM65: 0.9664578945 | BN65: 0.9722916444 | BO65: 0.978160608 | BP65: =(1-$G65)*BP64 -> 0.985056 | BQ65: =1-$G65 -> 0.992
F66: 62 | G66: 0.008 | H66: 0.8937372621 | I66: 0.8937372621 | J66: 0.8937372621 | K66: 0.8937372621 | L66: 0.8937372621 | M66: 0.8937372621 | N66: 0.8940054637 | O66: 0.8942737458 | P66: 0.8945421085 | Q66: 0.8948105516 | R66: 0.8951686191 | S66: 0.8955268298 | T66: 0.8958851839 | U66: 0.8962436814 | V66: 0.8966023223 | W66: 0.8970508477 | X66: 0.8974995975 | Y66: 0.8979485718 | Z66: 0.8983977707 | AA66: 0.8988471943 | AB66: 0.8992968427 | AC66: 0.8997467161 | AD66: 0.9002868882 | AE66: 0.9008273846 | AF66: 0.9013682055 | AG66: 0.9019996053 | AH66: 0.9026314473 | AI66: 0.9032637319 | AJ66: 0.9038964594 | AK66: 0.9046201555 | AL66: 0.9053444311 | AM66: 0.9060692865 | AN66: 0.9067947223 | AO66: 0.9075207389 | AP66: 0.9082473368 | AQ66: 0.9089745164 | AR66: 0.9097022782 | AS66: 0.9104306227 | AT66: 0.9111595503 | AU66: 0.9119803326 | AV66: 0.9128018543 | AW66: 0.9137155699 | AX66: 0.9146302001 | AY66: 0.9155457458 | AZ66: 0.9173805068 | BA66: 0.9192189447 | BB66: 0.9210610668 | BC66: 0.9229068806 | BD66: 0.9247563934 | BE66: 0.9275390104 | BF66: 0.9303300004 | BG66: 0.9331293886 | BH66: 0.9368768962 | BI66: 0.940639454 | BJ66: 0.9444171225 | BK66: 0.9491629372 | BL66: 0.9539326002 | BM66: 0.9587262313 | BN66: 0.9645133112 | BO66: 0.9703353231 | BP66: 0.977175552 | BQ66: 0.984064 | BR66: =1-$G66 -> 0.992
F67: 63 | G67: 0.009 | H67: 0.8856936267 | I67: 0.8856936267 | J67: 0.8856936267 | K67: 0.8856936267 | L67: 0.8856936267 | M67: 0.8856936267 | N67: 0.8859594145 | O67: 0.8862252821 | P67: 0.8864912295 | Q67: 0.8867572567 | R67: 0.8871121015 | S67: 0.8874670883 | T67: 0.8878222172 | U67: 0.8881774882 | V67: 0.8885329014 | W67: 0.8889773901 | X67: 0.8894221011 | Y67: 0.8898670347 | Z67: 0.8903121907 | AA67: 0.8907575695 | AB67: 0.8912031711 | AC67: 0.8916489956 | AD67: 0.8921843062 | AE67: 0.8927199382 | AF67: 0.8932558917 | AG67: 0.8938816088 | AH67: 0.8945077643 | AI67: 0.8951343583 | AJ67: 0.8957613913 | AK67: 0.8964785741 | AL67: 0.8971963312 | AM67: 0.8979146629 | AN67: 0.8986335698 | AO67: 0.8993530522 | AP67: 0.9000731107 | AQ67: 0.9007937457 | AR67: 0.9015149577 | AS67: 0.9022367471 | AT67: 0.9029591144 | AU67: 0.9037725096 | AV67: 0.9045866376 | AW67: 0.9054921297 | AX67: 0.9063985283 | AY67: 0.9073058341 | AZ67: 0.9091240823 | BA67: 0.9109459742 | BB67: 0.9127715172 | BC67: 0.9146007187 | BD67: 0.9164335859 | BE67: 0.9191911593 | BF67: 0.9219570304 | BG67: 0.9247312241 | BH67: 0.9284450041 | BI67: 0.9321736989 | BJ67: 0.9359173684 | BK67: 0.9406204707 | BL67: 0.9453472068 | BM67: 0.9500976952 | BN67: 0.9558326914 | BO67: 0.9616023052 | BP67: 0.968380972 | BQ67: 0.975207424 | BR67: 0.983072 | BS67: =1-$G67 -> 0.991
F68: 64 | G68: 0.01 | H68: 0.8768366904 | I68: 0.8768366904 | J68: 0.8768366904 | K68: 0.8768366904 | L68: 0.8768366904 | M68: 0.8768366904 | N68: 0.8770998204 | O68: 0.8773630293 | P68: 0.8776263172 | Q68: 0.8778896841 | R68: 0.8782409805 | S68: 0.8785924175 | T68: 0.8789439951 | U68: 0.8792957133 | V68: 0.8796475724 | W68: 0.8800876162 | X68: 0.8805278801 | Y68: 0.8809683643 | Z68: 0.8814090688 | AA68: 0.8818499938 | AB68: 0.8822911394 | AC68: 0.8827325057 | AD68: 0.8832624631 | AE68: 0.8837927388 | AF68: 0.8843233328 | AG68: 0.8849427927 | AH68: 0.8855626866 | AI68: 0.8861830147 | AJ68: 0.8868037774 | AK68: 0.8875137884 | AL68: 0.8882243679 | AM68: 0.8889355163 | AN68: 0.8896472341 | AO68: 0.8903595217 | AP68: 0.8910723796 | AQ68: 0.8917858083 | AR68: 0.8924998081 | AS68: 0.8932143796 | AT68: 0.8939295232 | AU68: 0.8947347845 | AV68: 0.8955407712 | AW68: 0.8964372084 | AX68: 0.897334543 | AY68: 0.8982327758 | AZ68: 0.9000328414 | BA68: 0.9018365145 | BB68: 0.9036438021 | BC68: 0.9054547115 | BD68: 0.90726925 | BE68: 0.9099992477 | BF68: 0.9127374601 | BG68: 0.9154839119 | BH68: 0.9191605541 | BI68: 0.9228519619 | BJ68: 0.9265581947 | BK68: 0.931214266 | BL68: 0.9358937347 | BM68: 0.9405967183 | BN68: 0.9462743645 | BO68: 0.9519862822 | BP68: 0.9586971623 | BQ68: 0.9654553498 | BR68: 0.97324128 | BS68: 0.98109 | BT68: =1-$G68 -> 0.99
F69: 65 | G69: 0.01 | H69: 0.8680683235 | I69: 0.8680683235 | J69: 0.8680683235 | K69: 0.8680683235 | L69: 0.8680683235 | M69: 0.8680683235 | N69: 0.8683288222 | O69: 0.868589399 | P69: 0.868850054 | Q69: 0.8691107873 | R69: 0.8694585707 | S69: 0.8698064933 | T69: 0.8701545551 | U69: 0.8705027562 | V69: 0.8708510967 | W69: 0.87128674 | X69: 0.8717226013 | Y69: 0.8721586807 | Z69: 0.8725949782 | AA69: 0.8730314939 | AB69: 0.873468228 | AC69: 0.8739051806 | AD69: 0.8744298385 | AE69: 0.8749548114 | AF69: 0.8754800995 | AG69: 0.8760933648 | AH69: 0.8767070597 | AI69: 0.8773211846 | AJ69: 0.8779357396 | AK69: 0.8786386505 | AL69: 0.8793421242 | AM69: 0.8800461611 | AN69: 0.8807507618 | AO69: 0.8814559265 | AP69: 0.8821616558 | AQ69: 0.8828679502 | AR69: 0.88357481 | AS69: 0.8842822358 | AT69: 0.884990228 | AU69: 0.8857874367 | AV69: 0.8865853635 | AW69: 0.8874728364 | AX69: 0.8883611976 | AY69: 0.889250448 | AZ69: 0.891032513 | BA69: 0.8928181493 | BB69: 0.8946073641 | BC69: 0.8964001644 | BD69: 0.8981965575 | BE69: 0.9008992553 | BF69: 0.9036100855 | BG69: 0.9063290727 | BH69: 0.9099689485 | BI69: 0.9136234423 | BJ69: 0.9172926128 | BK69: 0.9219021234 | BL69: 0.9265347974 | BM69: 0.9311907511 | BN69: 0.9368116208 | BO69: =(1-$G69)*BO68 -> 0.9424664194 | BP69: 0.9491101907 | BQ69: 0.9558007963 | BR69: 0.9635088672 | BS69: 0.9712791 | BT69: 0.9801 | BU69: =1-$G69 -> 0.99
F70: 66 | G70: 0.01 | H70: =(1-$G70)*H69 -> 0.8593876403 | I70: =(1-$G70)*I69 -> 0.8593876403 | J70: 0.8593876403 | K70: 0.8593876403 | L70: 0.8593876403 | M70: 0.8593876403 | N70: 0.859645534 | O70: 0.859903505 | P70: 0.8601615535 | Q70: 0.8604196794 | R70: 0.860763985 | S70: 0.8611084284 | T70: 0.8614530096 | U70: 0.8617977287 | V70: 0.8621425857 | W70: 0.8625738726 | X70: 0.8630053753 | Y70: 0.8634370939 | Z70: 0.8638690284 | AA70: 0.864301179 | AB70: 0.8647335457 | AC70: 0.8651661288 | AD70: 0.8656855401 | AE70: 0.8662052633 | AF70: 0.8667252985 | AG70: 0.8673324312 | AH70: 0.8679399892 | AI70: 0.8685479727 | AJ70: 0.8691563822 | AK70: 0.869852264 | AL70: 0.870548703 | AM70: 0.8712456995 | AN70: 0.8719432541 | AO70: 0.8726413672 | AP70: 0.8733400393 | AQ70: 0.8740392707 | AR70: 0.8747390619 | AS70: 0.8754394135 | AT70: 0.8761403257 | AU70: 0.8769295623 | AV70: 0.8777195099 | AW70: 0.878598108 | AX70: 0.8794775856 | AY70: 0.8803579435 | AZ70: 0.8821221879 | BA70: 0.8838899678 | BB70: 0.8856612904 | BC70: 0.8874361627 | BD70: 0.8892145919 | BE70: 0.8918902627 | BF70: 0.8945739847 | BG70: 0.897265782 | BH70: 0.900869259 | BI70: 0.9044872079 | BJ70: 0.9081196866 | BK70: 0.9126831021 | BL70: 0.9172694494 | BM70: 0.9218788436 | BN70: 0.9274435046 | BO70: 0.9330417552 | BP70: 0.9396190888 | BQ70: 0.9462427883 | BR70: 0.9538737785 | BS70: 0.961566309 | BT70: 0.970299 | BU70: =(1-$G70)*BU69 -> 0.9801 | BV70: =1-$G70 -> 0.99
F71: 67 | G71: 0.01 | H71: 0.8507937639 | I71: 0.8507937639 | J71: =(1-$G71)*J70 -> 0.8507937639 | K71: 0.8507937639 | L71: 0.8507937639 | M71: 0.8507937639 | N71: 0.8510490786 | O71: 0.85130447 | P71: 0.851559938 | Q71: 0.8518154826 | R71: 0.8521563451 | S71: 0.8524973441 | T71: 0.8528384795 | U71: 0.8531797514 | V71: 0.8535211598 | W71: 0.8539481339 | X71: 0.8543753216 | Y71: 0.8548027229 | Z71: 0.8552303381 | AA71: 0.8556581672 | AB71: 0.8560862103 | AC71: 0.8565144675 | AD71: 0.8570286847 | AE71: 0.8575432106 | AF71: 0.8580580455 | AG71: 0.8586591068 | AH71: 0.8592605893 | AI71: 0.859862493 | AJ71: 0.8604648184 | AK71: 0.8611537414 | AL71: 0.8618432159 | AM71: 0.8625332425 | AN71: 0.8632238216 | AO71: 0.8639149536 | AP71: 0.8646066389 | AQ71: 0.865298878 | AR71: 0.8659916713 | AS71: 0.8666850193 | AT71: 0.8673789225 | AU71: 0.8681602667 | AV71: 0.8689423148 | AW71: 0.8698121269 | AX71: 0.8706828097 | AY71: 0.8715543641 | AZ71: 0.873300966 | BA71: 0.8750510682 | BB71: 0.8768046775 | BC71: 0.8785618011 | BD71: 0.880322446 | BE71: 0.8829713601 | BF71: 0.8856282448 | BG71: 0.8882931242 | BH71: 0.8918605665 | BI71: 0.8954423358 | BJ71: 0.8990384898 | BK71: 0.9035562711 | BL71: 0.9080967549 | BM71: 0.9126600552 | BN71: 0.9181690696 | BO71: 0.9237113376 | BP71: 0.9302228979 | BQ71: 0.9367803604 | BR71: 0.9443350407 | BS71: 0.9519506459 | BT71: 0.96059601 | BU71: 0.970299 | BV71: 0.9801 | BW71: =1-$G71 -> 0.99
F72: 68 | G72: 0.02 | H72: 0.8337778886 | I72: 0.8337778886 | J72: 0.8337778886 | K72: =(1-$G72)*K71 -> 0.8337778886 | L72: 0.8337778886 | M72: 0.8337778886 | N72: 0.8340280971 | O72: 0.8342783806 | P72: 0.8345287392 | Q72: 0.8347791729 | R72: 0.8351132182 | S72: 0.8354473972 | T72: 0.8357817099 | U72: 0.8361161563 | V72: 0.8364507366 | W72: 0.8368691712 | X72: 0.8372878151 | Y72: 0.8377066685 | Z72: 0.8381257313 | AA72: 0.8385450038 | AB72: 0.8389644861 | AC72: 0.8393841782 | AD72: 0.839888111 | AE72: 0.8403923464 | AF72: 0.8408968846 | AG72: 0.8414859247 | AH72: 0.8420753775 | AI72: 0.8426652431 | AJ72: 0.843255522 | AK72: 0.8439306665 | AL72: 0.8446063516 | AM72: 0.8452825777 | AN72: 0.8459593452 | AO72: 0.8466366545 | AP72: 0.8473145061 | AQ72: 0.8479929004 | AR72: 0.8486718379 | AS72: 0.8493513189 | AT72: 0.850031344 | AU72: 0.8507970614 | AV72: 0.8515634685 | AW72: 0.8524158844 | AX72: 0.8532691535 | AY72: 0.8541232768 | AZ72: 0.8558349467 | BA72: 0.8575500468 | BB72: 0.859268584 | BC72: 0.8609905651 | BD72: 0.8627159971 | BE72: 0.8653119329 | BF72: 0.8679156799 | BG72: 0.8705272617 | BH72: 0.8740233551 | BI72: 0.8775334891 | BJ72: 0.88105772 | BK72: 0.8854851457 | BL72: 0.8899348198 | BM72: 0.8944068541 | BN72: 0.8998056882 | BO72: 0.9052371109 | BP72: 0.9116184399 | BQ72: 0.9180447532 | BR72: 0.9254483399 | BS72: 0.932911633 | BT72: 0.9413840898 | BU72: 0.95089302 | BV72: 0.960498 | BW72: 0.9702 | BX72: =1-$G72 -> 0.98
F73: 69 | G73: 0.02 | H73: 0.8171023309 | I73: 0.8171023309 | J73: 0.8171023309 | K73: 0.8171023309 | L73: =(1-$G73)*L72 -> 0.8171023309 | M73: 0.8171023309 | N73: 0.8173475351 | O73: 0.817592813 | P73: 0.8178381644 | Q73: 0.8180835895 | R73: 0.8184109539 | S73: 0.8187384492 | T73: 0.8190660757 | U73: 0.8193938332 | V73: 0.8197217219 | W73: 0.8201317878 | X73: 0.8205420588 | Y73: 0.8209525351 | Z73: 0.8213632167 | AA73: 0.8217741038 | AB73: 0.8221851963 | AC73: 0.8225964946 | AD73: 0.8230903488 | AE73: 0.8235844995 | AF73: 0.8240789469 | AG73: 0.8246562062 | AH73: 0.8252338699 | AI73: 0.8258119383 | AJ73: 0.8263904116 | AK73: 0.8270520532 | AL73: 0.8277142246 | AM73: 0.8283769261 | AN73: 0.8290401583 | AO73: 0.8297039214 | AP73: 0.830368216 | AQ73: 0.8310330424 | AR73: 0.8316984011 | AS73: 0.8323642926 | AT73: 0.8330307171 | AU73: 0.8337811201 | AV73: 0.8345321991 | AW73: 0.8353675667 | AX73: 0.8362037705 | AY73: 0.8370408113 | AZ73: 0.8387182478 | BA73: 0.8403990459 | BB73: 0.8420832123 | BC73: 0.8437707538 | BD73: 0.8454616771 | BE73: 0.8480056942 | BF73: 0.8505573663 | BG73: 0.8531167165 | BH73: 0.856542888 | BI73: 0.8599828193 | BJ73: 0.8634365656 | BK73: 0.8677754428 | BL73: 0.8721361234 | BM73: 0.876518717 | BN73: 0.8818095744 | BO73: 0.8871323686 | BP73: 0.8933860711 | BQ73: 0.8996838581 | BR73: 0.9069393731 | BS73: 0.9142534003 | BT73: 0.922556408 | BU73: 0.9318751596 | BV73: 0.94128804 | BW73: 0.950796 | BX73: 0.9604 | BY73: =1-$G73 -> 0.98
F74: 70 | G74: 0.02 | H74: 0.8007602842 | I74: 0.8007602842 | J74: 0.8007602842 | K74: 0.8007602842 | L74: 0.8007602842 | M74: =(1-$G74)*M73 -> 0.8007602842 | N74: 0.8010005844 | O74: 0.8012409567 | P74: 0.8014814011 | Q74: 0.8017219177 | R74: 0.8020427348 | S74: 0.8023636803 | T74: 0.8026847542 | U74: 0.8030059565 | V74: 0.8033272875 | W74: 0.803729152 | X74: 0.8041312176 | Y74: 0.8045334844 | Z74: 0.8049359524 | AA74: 0.8053386217 | AB74: 0.8057414924 | AC74: 0.8061445647 | AD74: 0.8066285418 | AE74: 0.8071128095 | AF74: 0.8075973679 | AG74: 0.8081630821 | AH74: 0.8087291925 | AI74: 0.8092956995 | AJ74: 0.8098626033 | AK74: 0.8105110121 | AL74: 0.8111599401 | AM74: 0.8118093876 | AN74: 0.8124593551 | AO74: 0.813109843 | AP74: 0.8137608517 | AQ74: 0.8144123816 | AR74: 0.8150644331 | AS74: 0.8157170067 | AT74: 0.8163701028 | AU74: 0.8171054977 | AV74: 0.8178415551 | AW74: 0.8186602154 | AX74: 0.819479695 | AY74: 0.820299995 | AZ74: 0.8219438828 | BA74: 0.8235910649 | BB74: 0.825241548 | BC74: 0.8268953387 | BD74: 0.8285524436 | BE74: 0.8310455803 | BF74: 0.833546219 | BG74: 0.8360543821 | BH74: 0.8394120303 | BI74: 0.8427831629 | BJ74: 0.8461678343 | BK74: 0.8504199339 | BL74: 0.8546934009 | BM74: 0.8589883426 | BN74: 0.8641733829 | BO74: 0.8693897213 | BP74: 0.8755183497 | BQ74: 0.881690181 | BR74: 0.8888005857 | BS74: 0.8959683323 | BT74: 0.9041052798 | BU74: 0.9132376564 | BV74: 0.9224622792 | BW74: 0.93178008 | BX74: 0.941192 | BY74: 0.9604 | BZ74: =1-$G74 -> 0.98
F75: 71 | G75: 0.02 | H75: 0.7847450786 | I75: 0.7847450786 | J75: 0.7847450786 | K75: 0.7847450786 | L75: 0.7847450786 | M75: 0.7847450786 | N75: 0.7849805727 | O75: 0.7852161376 | P75: 0.7854517731 | Q75: 0.7856874793 | R75: 0.7860018801 | S75: 0.7863164067 | T75: 0.7866310591 | U75: 0.7869458374 | V75: 0.7872607417 | W75: 0.787654569 | X75: 0.7880485933 | Y75: 0.7884428147 | Z75: 0.7888372333 | AA75: 0.7892318492 | AB75: 0.7896266626 | AC75: 0.7900216734 | AD75: 0.790495971 | AE75: 0.7909705533 | AF75: 0.7914454206 | AG75: 0.7919998205 | AH75: 0.7925546087 | AI75: 0.7931097855 | AJ75: 0.7936653513 | AK75: 0.7943007919 | AL75: 0.7949367413 | AM75: 0.7955731999 | AN75: 0.796210168 | AO75: 0.7968476461 | AP75: 0.7974856346 | AQ75: 0.7981241339 | AR75: 0.7987631444 | AS75: 0.7994026666 | AT75: 0.8000427007 | AU75: 0.8007633878 | AV75: 0.801484724 | AW75: 0.802287011 | AX75: 0.8030901011 | AY75: 0.8038939951 | AZ75: 0.8055050052 | BA75: 0.8071192436 | BB75: 0.8087367171 | BC75: 0.8103574319 | BD75: 0.8119813947 | BE75: 0.8144246687 | BF75: 0.8168752946 | BG75: 0.8193332945 | BH75: 0.8226237897 | BI75: 0.8259274997 | BJ75: 0.8292444776 | BK75: 0.8334115352 | BL75: 0.8375995329 | BM75: 0.8418085758 | BN75: 0.8468899153 | BO75: 0.8520019268 | BP75: 0.8580079827 | BQ75: 0.8640563774 | BR75: 0.871024574 | BS75: 0.8780489657 | BT75: 0.8860231742 | BU75: 0.8949729033 | BV75: 0.9040130336 | BW75: 0.9131444784 | BX75: 0.92236816 | BY75: 0.941192 | BZ75: =(1-$G75)*BZ74 -> 0.9604 | CA75: =1-$G75 -> 0.98
F76: 72 | G76: 0.02 | H76: 0.769050177 | I76: 0.769050177 | J76: 0.769050177 | K76: 0.769050177 | L76: 0.769050177 | M76: 0.769050177 | N76: 0.7692809613 | O76: 0.7695118148 | P76: 0.7697427376 | Q76: 0.7699737298 | R76: 0.7702818425 | S76: 0.7705900785 | T76: 0.7708984379 | U76: 0.7712069207 | V76: 0.7715155269 | W76: 0.7719014776 | X76: 0.7722876214 | Y76: 0.7726739584 | Z76: 0.7730604887 | AA76: 0.7734472123 | AB76: 0.7738341293 | AC76: 0.7742212399 | AD76: 0.7746860516 | AE76: 0.7751511423 | AF76: 0.7756165122 | AG76: 0.776159824 | AH76: 0.7767035165 | AI76: 0.7772475898 | AJ76: 0.7777920442 | AK76: 0.7784147761 | AL76: 0.7790380065 | AM76: 0.7796617359 | AN76: 0.7802859646 | AO76: 0.7809106932 | AP76: 0.7815359219 | AQ76: 0.7821616512 | AR76: 0.7827878816 | AS76: 0.7834146132 | AT76: 0.7840418467 | AU76: 0.78474812 | AV76: 0.7854550296 | AW76: 0.7862412708 | AX76: 0.7870282991 | AY76: 0.7878161152 | AZ76: 0.789394905 | BA76: 0.7909768588 | BB76: 0.7925619827 | BC76: 0.7941502833 | BD76: 0.7957417668 | BE76: 0.7981361754 | BF76: 0.8005377887 | BG76: 0.8029466286 | BH76: 0.8061713139 | BI76: 0.8094089497 | BJ76: 0.812659588 | BK76: 0.8167433045 | BL76: 0.8208475423 | BM76: 0.8249724043 | BN76: 0.829952117 | BO76: 0.8349618883 | BP76: 0.8408478231 | BQ76: 0.8467752498 | BR76: 0.8536040825 | BS76: 0.8604879864 | BT76: 0.8683027108 | BU76: 0.8770734452 | BV76: 0.8859327729 | BW76: 0.8948815888 | BX76: 0.9039207968 | BY76: 0.92236816 | BZ76: 0.941192 | CA76: 0.9604 | CB76: =1-$G76 -> 0.98
F77: 73 | G77: 0.03 | H77: 0.7459786717 | I77: 0.7459786717 | J77: 0.7459786717 | K77: 0.7459786717 | L77: 0.7459786717 | M77: 0.7459786717 | N77: 0.7462025324 | O77: 0.7464264604 | P77: 0.7466504555 | Q77: 0.7468745179 | R77: 0.7471733872 | S77: 0.7474723762 | T77: 0.7477714848 | U77: 0.748070713 | V77: 0.7483700611 | W77: 0.7487444333 | X77: 0.7491189928 | Y77: 0.7494937397 | Z77: 0.749868674 | AA77: 0.7502437959 | AB77: 0.7506191054 | AC77: 0.7509946027 | AD77: 0.75144547 | AE77: 0.751896608 | AF77: 0.7523480168 | AG77: 0.7528750293 | AH77: 0.753402411 | AI77: 0.7539301621 | AJ77: 0.7544582829 | AK77: 0.7550623328 | AL77: 0.7556668663 | AM77: 0.7562718838 | AN77: 0.7568773857 | AO77: 0.7574833724 | AP77: 0.7580898443 | AQ77: 0.7586968017 | AR77: 0.7593042451 | AS77: 0.7599121748 | AT77: 0.7605205913 | AU77: 0.7612056764 | AV77: 0.7618913787 | AW77: 0.7626540327 | AX77: 0.7634174502 | AY77: 0.7641816318 | AZ77: 0.7657130579 | BA77: 0.767247553 | BB77: 0.7687851233 | BC77: 0.7703257748 | BD77: 0.7718695138 | BE77: 0.7741920901 | BF77: 0.7765216551 | BG77: 0.7788582298 | BH77: 0.7819861745 | BI77: 0.7851266812 | BJ77: 0.7882798004 | BK77: 0.7922410054 | BL77: 0.796222116 | BM77: 0.8002232321 | BN77: 0.8050535535 | BO77: 0.8099130317 | BP77: 0.8156223884 | BQ77: 0.8213719923 | BR77: 0.82799596 | BS77: 0.8346733468 | BT77: 0.8422536294 | BU77: 0.8507612419 | BV77: 0.8593547898 | BW77: 0.8680351412 | BX77: 0.8768031729 | BY77: 0.8946971152 | BZ77: 0.91295624 | CA77: 0.931588 | CB77: 0.9506 | CC77: =1-$G77 -> 0.97
F78: 74 | G78: 0.03 | H78: 0.7235993115 | I78: 0.7235993115 | J78: 0.7235993115 | K78: 0.7235993115 | L78: 0.7235993115 | M78: 0.7235993115 | N78: 0.7238164565 | O78: 0.7240336666 | P78: 0.7242509418 | Q78: 0.7244682823 | R78: 0.7247581856 | S78: 0.7250482049 | T78: 0.7253383402 | U78: 0.7256285917 | V78: 0.7259189592 | W78: 0.7262821003 | X78: 0.726645423 | Y78: 0.7270089275 | Z78: 0.7273726138 | AA78: 0.727736482 | AB78: 0.7281005323 | AC78: 0.7284647647 | AD78: 0.7289021059 | AE78: 0.7293397098 | AF78: 0.7297775763 | AG78: 0.7302887784 | AH78: 0.7308003387 | AI78: 0.7313122573 | AJ78: 0.7318245344 | AK78: 0.7324104628 | AL78: 0.7329968603 | AM78: 0.7335837273 | AN78: 0.7341710641 | AO78: 0.7347588712 | AP78: 0.7353471489 | AQ78: 0.7359358977 | AR78: 0.7365251178 | AS78: 0.7371148096 | AT78: 0.7377049736 | AU78: 0.7383695061 | AV78: 0.7390346373 | AW78: 0.7397744117 | AX78: 0.7405149266 | AY78: 0.7412561828 | AZ78: 0.7427416662 | BA78: 0.7442301264 | BB78: 0.7457215696 | BC78: 0.7472160016 | BD78: 0.7487134284 | BE78: 0.7509663274 | BF78: 0.7532260054 | BG78: 0.7554924829 | BH78: 0.7585265892 | BI78: 0.7615728807 | BJ78: 0.7646314064 | BK78: 0.7684737752 | BL78: 0.7723354525 | BM78: 0.7762165352 | BN78: 0.7809019469 | BO78: 0.7856156407 | BP78: 0.7911537167 | BQ78: 0.7967308326 | BR78: 0.8031560812 | BS78: 0.8096331464 | BT78: 0.8169860206 | BU78: 0.8252384046 | BV78: 0.8335741461 | BW78: 0.8419940869 | BX78: 0.8504990777 | BY78: 0.8678562017 | BZ78: 0.8855675528 | CA78: 0.90364036 | CB78: 0.922082 | CC78: 0.9409 | CD78: =1-$G78 -> 0.97
F79: 75 | G79: 0.03 | H79: 0.7018913322 | I79: 0.7018913322 | J79: 0.7018913322 | K79: 0.7018913322 | L79: 0.7018913322 | M79: 0.7018913322 | N79: 0.7021019628 | O79: 0.7023126566 | P79: 0.7025234136 | Q79: 0.7027342339 | R79: 0.70301544 | S79: 0.7032967587 | T79: 0.70357819 | U79: 0.7038597339 | V79: 0.7041413905 | W79: 0.7044936373 | X79: 0.7048460603 | Y79: 0.7051986596 | Z79: 0.7055514354 | AA79: 0.7059043876 | AB79: 0.7062575163 | AC79: 0.7066108217 | AD79: 0.7070350427 | AE79: 0.7074595185 | AF79: 0.707884249 | AG79: 0.7083801151 | AH79: 0.7088763285 | AI79: 0.7093728895 | AJ79: 0.7098697984 | AK79: 0.7104381489 | AL79: 0.7110069545 | AM79: 0.7115762155 | AN79: 0.7121459322 | AO79: 0.7127161051 | AP79: 0.7132867345 | AQ79: 0.7138578207 | AR79: 0.7144293642 | AS79: 0.7150013653 | AT79: 0.7155738244 | AU79: 0.716218421 | AV79: 0.7168635982 | AW79: 0.7175811794 | AX79: 0.7182994788 | AY79: 0.7190184973 | AZ79: 0.7204594162 | BA79: 0.7219032226 | BB79: 0.7233499225 | BC79: 0.7247995215 | BD79: 0.7262520256 | BE79: 0.7284373376 | BF79: 0.7306292252 | BG79: 0.7328277084 | BH79: 0.7357707915 | BI79: 0.7387256943 | BJ79: 0.7416924642 | BK79: 0.745419562 | BL79: 0.7491653889 | BM79: 0.7529300391 | BN79: 0.7574748885 | BO79: 0.7620471715 | BP79: 0.7674191052 | BQ79: 0.7728289076 | BR79: 0.7790613988 | BS79: 0.785344152 | BT79: 0.7924764399 | BU79: 0.8004812525 | BV79: 0.8085669217 | BW79: 0.8167342643 | BX79: 0.8249841054 | BY79: 0.8418205157 | BZ79: 0.8590005262 | CA79: 0.8765311492 | CB79: 0.89441954 | CC79: 0.912673 | CD79: 0.9409 | CE79: =1-$G79 -> 0.97
F80: 76 | G80: 0.03 | H80: 0.6808345922 | I80: 0.6808345922 | J80: 0.6808345922 | K80: 0.6808345922 | L80: 0.6808345922 | M80: 0.6808345922 | N80: 0.6810389039 | O80: 0.6812432769 | P80: 0.6814477112 | Q80: 0.6816522068 | R80: 0.6819249768 | S80: 0.682197856 | T80: 0.6824708443 | U80: 0.6827439419 | V80: 0.6830171487 | W80: 0.6833588282 | X80: 0.6837006785 | Y80: 0.6840426999 | Z80: 0.6843848923 | AA80: 0.6847272559 | AB80: 0.6850697908 | AC80: 0.6854124971 | AD80: 0.6858239915 | AE80: 0.6862357329 | AF80: 0.6866477215 | AG80: 0.6871287116 | AH80: 0.6876100387 | AI80: 0.6880917029 | AJ80: 0.6885737044 | AK80: 0.6891250045 | AL80: 0.6896767458 | AM80: 0.690228929 | AN80: 0.6907815542 | AO80: 0.6913346219 | AP80: 0.6918881324 | AQ80: 0.6924420861 | AR80: 0.6929964833 | AS80: 0.6935513244 | AT80: 0.6941066096 | AU80: 0.6947318683 | AV80: 0.6953576902 | AW80: 0.696053744 | AX80: 0.6967504945 | AY80: 0.6974479424 | AZ80: 0.6988456337 | BA80: 0.7002461259 | BB80: 0.7016494248 | BC80: 0.7030555359 | BD80: 0.7044644648 | BE80: 0.7065842174 | BF80: 0.7087103485 | BG80: 0.7108428771 | BH80: 0.7136976678 | BI80: 0.7165639235 | BJ80: 0.7194416902 | BK80: 0.7230569751 | BL80: 0.7266904273 | BM80: 0.730342138 | BN80: 0.7347506418 | BO80: 0.7391857563 | BP80: 0.7443965321 | BQ80: 0.7496440403 | BR80: 0.7556895568 | BS80: 0.7617838274 | BT80: 0.7687021467 | BU80: 0.7764668149 | BV80: 0.784309914 | BW80: 0.7922322364 | BX80: 0.8002345822 | BY80: 0.8165659002 | BZ80: 0.8332305104 | CA80: 0.8502352147 | CB80: 0.8675869538 | CC80: 0.88529281 | CD80: 0.912673 | CE80: 0.9409 | CF80: =1-$G80 -> 0.97
F81: 77 | G81: 0.04 | H81: 0.6536012085 | I81: 0.6536012085 | J81: 0.6536012085 | K81: 0.6536012085 | L81: 0.6536012085 | M81: 0.6536012085 | N81: 0.6537973477 | O81: 0.6539935458 | P81: 0.6541898027 | Q81: 0.6543861186 | R81: 0.6546479778 | S81: 0.6549099417 | T81: 0.6551720105 | U81: 0.6554341842 | V81: 0.6556964628 | W81: 0.656024475 | X81: 0.6563526514 | Y81: 0.6566809919 | Z81: 0.6570094966 | AA81: 0.6573381657 | AB81: 0.6576669992 | AC81: 0.6579959972 | AD81: 0.6583910318 | AE81: 0.6587863036 | AF81: 0.6591818127 | AG81: 0.6596435632 | AH81: 0.6601056371 | AI81: 0.6605680347 | AJ81: 0.6610307563 | AK81: 0.6615600043 | AL81: 0.662089676 | AM81: 0.6626197718 | AN81: 0.6631502921 | AO81: 0.6636812371 | AP81: 0.6642126071 | AQ81: 0.6647444027 | AR81: 0.665276624 | AS81: 0.6658092714 | AT81: 0.6663423453 | AU81: 0.6669425936 | AV81: 0.6675433826 | AW81: 0.6682115942 | AX81: 0.6688804747 | AY81: 0.6695500247 | AZ81: 0.6708918083 | BA81: 0.6722362809 | BB81: 0.6735834478 | BC81: 0.6749333144 | BD81: 0.6762858862 | BE81: 0.6783208487 | BF81: 0.6803619346 | BG81: 0.682409162 | BH81: 0.6851497611 | BI81: 0.6879013665 | BJ81: 0.6906640226 | BK81: 0.6941346961 | BL81: 0.6976228102 | BM81: 0.7011284524 | BN81: 0.7053606161 | BO81: 0.7096183261 | BP81: 0.7146206708 | BQ81: 0.7196582787 | BR81: 0.7254619745 | BS81: 0.7313124743 | BT81: 0.7379540609 | BU81: 0.7454081423 | BV81: 0.7529375175 | BW81: 0.7605429469 | BX81: 0.7682251989 | BY81: 0.7839032642 | BZ81: 0.79990129 | CA81: 0.8162258061 | CB81: 0.8328834756 | CC81: 0.8498810976 | CD81: 0.87616608 | CE81: 0.903264 | CF81: =(1-$G81)*CF80 -> 0.9312 | CG81: =1-$G81 -> 0.96
F82: 78 | G82: 0.04 | H82: 0.6274571602 | I82: 0.6274571602 | J82: 0.6274571602 | K82: 0.6274571602 | L82: 0.6274571602 | M82: 0.6274571602 | N82: 0.6276454538 | O82: 0.627833804 | P82: 0.6280222106 | Q82: 0.6282106738 | R82: 0.6284620586 | S82: 0.6287135441 | T82: 0.6289651301 | U82: 0.6292168168 | V82: 0.6294686043 | W82: 0.629783496 | X82: 0.6300985453 | Y82: 0.6304137522 | Z82: 0.6307291167 | AA82: 0.6310446391 | AB82: 0.6313603192 | AC82: 0.6316761573 | AD82: 0.6320553905 | AE82: 0.6324348514 | AF82: 0.6328145402 | AG82: 0.6332578206 | AH82: 0.6337014116 | AI82: 0.6341453134 | AJ82: 0.634589526 | AK82: 0.6350976041 | AL82: 0.635606089 | AM82: 0.636114981 | AN82: 0.6366242804 | AO82: 0.6371339876 | AP82: 0.6376441029 | AQ82: 0.6381546266 | AR82: 0.638665559 | AS82: 0.6391769005 | AT82: 0.6396886514 | AU82: 0.6402648898 | AV82: 0.6408416473 | AW82: 0.6414831305 | AX82: 0.6421252557 | AY82: 0.6427680237 | AZ82: 0.644056136 | BA82: 0.6453468297 | BB82: 0.6466401099 | BC82: 0.6479359819 | BD82: 0.6492344508 | BE82: 0.6511880148 | BF82: 0.6531474572 | BG82: 0.6551127956 | BH82: 0.6577437706 | BI82: 0.6603853119 | BJ82: 0.6630374617 | BK82: 0.6663693083 | BL82: 0.6697178978 | BM82: 0.6730833143 | BN82: 0.6771461915 | BO82: 0.681233593 | BP82: 0.686035844 | BQ82: 0.6908719476 | BR82: 0.6964434955 | BS82: 0.7020599754 | BT82: 0.7084358984 | BU82: 0.7155918166 | BV82: 0.7228200168 | BW82: 0.7301212291 | BX82: 0.737496191 | BY82: 0.7525471336 | BZ82: 0.7679052384 | CA82: 0.7835767739 | CB82: 0.7995681366 | CC82: 0.8158858537 | CD82: 0.8411194368 | CE82: 0.86713344 | CF82: 0.893952 | CG82: 0.9216 | CH82: =1-$G82 -> 0.96
F83: 79 | G83: 0.05 | H83: 0.5960843022 | I83: 0.5960843022 | J83: 0.5960843022 | K83: 0.5960843022 | L83: 0.5960843022 | M83: 0.5960843022 | N83: 0.5962631811 | O83: 0.5964421138 | P83: 0.5966211001 | Q83: 0.5968001401 | R83: 0.5970389557 | S83: =(1-$G83)*S82 -> 0.5972778669 | T83: 0.5975168736 | U83: 0.597755976 | V83: 0.5979951741 | W83: 0.5982943212 | X83: 0.598593618 | Y83: 0.5988930646 | Z83: 0.5991926609 | AA83: 0.5994924071 | AB83: 0.5997923033 | AC83: 0.6000923494 | AD83: 0.600452621 | AE83: 0.6008131089 | AF83: 0.6011738132 | AG83: 0.6015949296 | AH83: 0.602016341 | AI83: 0.6024380477 | AJ83: 0.6028600497 | AK83: 0.6033427239 | AL83: 0.6038257845 | AM83: 0.6043092319 | AN83: 0.6047930664 | AO83: 0.6052772882 | AP83: 0.6057618977 | AQ83: 0.6062468952 | AR83: 0.6067322811 | AS83: 0.6072180555 | AT83: 0.6077042189 | AU83: 0.6082516454 | AV83: 0.608799565 | AW83: 0.6094089739 | AX83: 0.6100189929 | AY83: 0.6106296226 | AZ83: 0.6118533292 | BA83: 0.6130794882 | BB83: 0.6143081044 | BC83: 0.6155391828 | BD83: 0.6167727282 | BE83: 0.6186286141 | BF83: 0.6204900843 | BG83: 0.6223571558 | BH83: 0.6248565821 | BI83: 0.6273660463 | BJ83: 0.6298855886 | BK83: 0.6330508429 | BL83: 0.6362320029 | BM83: 0.6394291486 | BN83: 0.6432888819 | BO83: 0.6471719134 | BP83: 0.6517340518 | BQ83: 0.6563283502 | BR83: 0.6616213208 | BS83: 0.6669569766 | BT83: 0.6730141035 | BU83: 0.6798122258 | BV83: 0.6866790159 | BW83: 0.6936151676 | BX83: 0.7006213814 | BY83: 0.714919777 | BZ83: 0.7295099765 | CA83: 0.7443979352 | CB83: 0.7595897298 | CC83: 0.775091561 | CD83: 0.799063465 | CE83: 0.823776768 | CF83: 0.8492544 | CG83: 0.87552 | CH83: 0.912 | CI83: =1-$G83 -> 0.95
F84: 80 | G84: 0.05 | H84: 0.5662800871 | I84: 0.5662800871 | J84: 0.5662800871 | K84: 0.5662800871 | L84: 0.5662800871 | M84: 0.5662800871 | N84: 0.5664500221 | O84: 0.5666200081 | P84: 0.5667900451 | Q84: 0.5669601331 | R84: 0.5671870079 | S84: 0.5674139735 | T84: 0.5676410299 | U84: 0.5678681772 | V84: 0.5680954154 | W84: 0.5683796052 | X84: 0.5686639371 | Y84: 0.5689484113 | Z84: 0.5692330279 | AA84: 0.5695177868 | AB84: 0.5698026881 | AC84: 0.570087732 | AD84: 0.57042999 | AE84: 0.5707724534 | AF84: 0.5711151225 | AG84: 0.5715151831 | AH84: 0.571915524 | AI84: 0.5723161453 | AJ84: 0.5727170472 | AK84: 0.5731755877 | AL84: 0.5736344953 | AM84: 0.5740937703 | AN84: 0.574553413 | AO84: 0.5750134238 | AP84: 0.5754738028 | AQ84: 0.5759345505 | AR84: 0.576395667 | AS84: 0.5768571527 | AT84: 0.5773190079 | AU84: 0.5778390631 | AV84: 0.5783595867 | AW84: 0.5789385252 | AX84: 0.5795180433 | AY84: 0.5800981414 | AZ84: 0.5812606627 | BA84: 0.5824255138 | BB84: 0.5835926992 | BC84: 0.5847622236 | BD84: 0.5859340918 | BE84: 0.5876971834 | BF84: 0.5894655801 | BG84: 0.591239298 | BH84: 0.593613753 | BI84: 0.595997744 | BJ84: 0.5983913092 | BK84: 0.6013983007 | BL84: 0.6044204027 | BM84: 0.6074576912 | BN84: 0.6111244378 | BO84: 0.6148133177 | BP84: 0.6191473492 | BQ84: 0.6235119327 | BR84: 0.6285402547 | BS84: 0.6336091278 | BT84: 0.6393633983 | BU84: 0.6458216145 | BV84: 0.6523450651 | BW84: 0.6589344092 | BX84: 0.6655903124 | BY84: 0.6791737881 | BZ84: 0.6930344777 | CA84: 0.7071780384 | CB84: 0.7216102433 | CC84: 0.736336983 | CD84: 0.7591102917 | CE84: 0.7825879296 | CF84: 0.80679168 | CG84: 0.831744 | CH84: 0.8664 | CI84: 0.9025 | CJ84: =1-$G84 -> 0.95
F85: 81 | G85: 0.06 | H85: 0.5323032818 | I85: 0.5323032818 | J85: 0.5323032818 | K85: 0.5323032818 | L85: 0.5323032818 | M85: 0.5323032818 | N85: 0.5324630207 | O85: 0.5326228076 | P85: 0.5327826424 | Q85: 0.5329425251 | R85: 0.5331557875 | S85: 0.5333691351 | T85: 0.5335825681 | U85: 0.5337960866 | V85: 0.5340096904 | W85: 0.5342768289 | X85: 0.5345441009 | Y85: 0.5348115067 | Z85: 0.5350790462 | AA85: 0.5353467195 | AB85: 0.5356145268 | AC85: 0.535882468 | AD85: 0.5362041906 | AE85: 0.5365261062 | AF85: 0.5368482152 | AG85: 0.5372242721 | AH85: 0.5376005926 | AI85: 0.5379771766 | AJ85: 0.5383540244 | AK85: 0.5387850524 | AL85: 0.5392164256 | AM85: 0.5396481441 | AN85: 0.5400802083 | AO85: 0.5405126184 | AP85: 0.5409453747 | AQ85: 0.5413784774 | AR85: 0.541811927 | AS85: 0.5422457236 | AT85: 0.5426798675 | AU85: 0.5431687193 | AV85: 0.5436580115 | AW85: 0.5442022137 | AX85: 0.5447469607 | AY85: 0.5452922529 | AZ85: 0.546385023 | BA85: 0.5474799829 | BB85: 0.5485771372 | BC85: 0.5496764902 | BD85: 0.5507780463 | BE85: 0.5524353524 | BF85: 0.5540976453 | BG85: 0.5557649401 | BH85: 0.5579969278 | BI85: 0.5602378793 | BJ85: 0.5624878307 | BK85: 0.5653144027 | BL85: 0.5681551786 | BM85: 0.5710102297 | BN85: 0.5744569715 | BO85: 0.5779245187 | BP85: 0.5819985082 | BQ85: 0.5861012167 | BR85: 0.5908278394 | BS85: 0.5955925801 | BT85: 0.6010015944 | BU85: 0.6070723176 | BV85: 0.6132043612 | BW85: 0.6193983447 | BX85: 0.6256548936 | BY85: 0.6384233608 | BZ85: 0.651452409 | CA85: 0.6647473561 | CB85: 0.6783136287 | CC85: 0.692156764 | CD85: 0.7135636742 | CE85: 0.7356326538 | CF85: 0.7583841792 | CG85: 0.78183936 | CH85: 0.814416 | CI85: 0.84835 | CJ85: 0.893 | CK85: =1-$G85 -> 0.94
F86: 82 | G86: 0.06 | H86: 0.5003650849 | I86: 0.5003650849 | J86: 0.5003650849 | K86: 0.5003650849 | L86: 0.5003650849 | M86: 0.5003650849 | N86: 0.5005152395 | O86: 0.5006654391 | P86: 0.5008156838 | Q86: 0.5009659736 | R86: 0.5011664402 | S86: 0.501366987 | T86: 0.501567614 | U86: 0.5017683214 | V86: 0.501969109 | W86: 0.5022202191 | X86: 0.5024714549 | Y86: 0.5027228163 | Z86: 0.5029743034 | AA86: 0.5032259164 | AB86: 0.5034776552 | AC86: 0.50372952 | AD86: 0.5040319391 | AE86: 0.5043345398 | AF86: 0.5046373222 | AG86: 0.5049908158 | AH86: 0.505344557 | AI86: 0.505698546 | AJ86: 0.5060527829 | AK86: 0.5064579493 | AL86: 0.50686344 | AM86: 0.5072692554 | AN86: 0.5076753958 | AO86: 0.5080818613 | AP86: 0.5084886522 | AQ86: 0.5088957688 | AR86: 0.5093032114 | AS86: 0.5097109801 | AT86: 0.5101190754 | AU86: 0.5105785961 | AV86: 0.5110385308 | AW86: 0.5115500809 | AX86: 0.512062143 | AY86: 0.5125747178 | AZ86: 0.5136019216 | BA86: 0.514631184 | BB86: 0.515662509 | BC86: 0.5166959008 | BD86: 0.5177313635 | BE86: 0.5192892312 | BF86: 0.5208517866 | BG86: 0.5224190437 | BH86: 0.5245171122 | BI86: 0.5266236066 | BJ86: 0.5287385608 | BK86: 0.5313955385 | BL86: 0.5340658679 | BM86: 0.5367496159 | BN86: 0.5399895533 | BO86: 0.5432490475 | BP86: 0.5470785977 | BQ86: 0.5509351437 | BR86: 0.5553781691 | BS86: 0.5598570253 | BT86: 0.5649414988 | BU86: 0.5706479786 | BV86: 0.5764120996 | BW86: 0.582234444 | BX86: 0.5881156 | BY86: 0.6001179592 | BZ86: 0.6123652645 | CA86: 0.6248625148 | CB86: 0.637614811 | CC86: 0.6506273581 | CD86: 0.6707498538 | CE86: 0.6914946946 | CF86: 0.7128811284 | CG86: 0.7349289984 | CH86: 0.76555104 | CI86: 0.797449 | CJ86: 0.83942 | CK86: 0.8836 | CL86: =1-$G86 -> 0.94
F87: 83 | G87: 0.07 | H87: 0.465339529 | I87: 0.465339529 | J87: 0.465339529 | K87: 0.465339529 | L87: 0.465339529 | M87: 0.465339529 | N87: 0.4654791727 | O87: 0.4656188584 | P87: 0.465758586 | Q87: 0.4658983555 | R87: 0.4660847894 | S87: 0.4662712979 | T87: 0.4664578811 | U87: 0.4666445389 | V87: 0.4668312714 | W87: 0.4670648038 | X87: 0.467298453 | Y87: 0.4675322191 | Z87: 0.4677661022 | AA87: 0.4680001022 | AB87: 0.4682342193 | AC87: 0.4684684536 | AD87: 0.4687497034 | AE87: 0.4690311221 | AF87: 0.4693127097 | AG87: 0.4696414587 | AH87: 0.469970438 | AI87: 0.4702996478 | AJ87: 0.4706290881 | AK87: 0.4710058928 | AL87: 0.4713829992 | AM87: 0.4717604076 | AN87: 0.4721381181 | AO87: 0.472516131 | AP87: 0.4728944465 | AQ87: 0.473273065 | AR87: 0.4736519866 | AS87: 0.4740312115 | AT87: 0.4744107401 | AU87: 0.4748380944 | AV87: 0.4752658337 | AW87: 0.4757415752 | AX87: 0.476217793 | AY87: 0.4766944875 | AZ87: 0.4776497871 | BA87: 0.4786070011 | BB87: 0.4795661334 | BC87: 0.4805271877 | BD87: 0.4814901681 | BE87: 0.482938985 | BF87: 0.4843921615 | BG87: 0.4858497106 | BH87: 0.4878009143 | BI87: 0.4897599541 | BJ87: 0.4917268616 | BK87: 0.4941978508 | BL87: 0.4966812571 | BM87: 0.4991771428 | BN87: 0.5021902845 | BO87: 0.5052216142 | BP87: 0.5087830959 | BQ87: 0.5123696837 | BR87: 0.5165016972 | BS87: 0.5206670335 | BT87: 0.5253955939 | BU87: 0.5307026201 | BV87: 0.5360632526 | BW87: 0.5414780329 | BX87: 0.546947508 | BY87: 0.558109702 | BZ87: 0.569499696 | CA87: 0.5811221387 | CB87: 0.5929817742 | CC87: 0.6050834431 | CD87: 0.623797364 | CE87: 0.643090066 | CF87: 0.6629794495 | CG87: 0.6834839685 | CH87: 0.7119624672 | CI87: 0.74162757 | CJ87: 0.7806606 | CK87: 0.821748 | CL87: 0.8742 | CM87: =1-$G87 -> 0.93
F88: 84 | G88: 0.07 | H88: 0.432765762 | I88: 0.432765762 | J88: 0.432765762 | K88: 0.432765762 | L88: 0.432765762 | M88: 0.432765762 | N88: 0.4328956306 | O88: 0.4330255383 | P88: 0.433155485 | Q88: 0.4332854706 | R88: 0.4334588541 | S88: 0.4336323071 | T88: 0.4338058294 | U88: 0.4339794212 | V88: 0.4341530824 | W88: 0.4343702675 | X88: 0.4345875613 | Y88: 0.4348049638 | Z88: =(1-$G88)*Z87 -> 0.435022475 | AA88: 0.4352400951 | AB88: 0.435457824 | AC88: 0.4356756618 | AD88: 0.4359372241 | AE88: 0.4361989435 | AF88: 0.43646082 | AG88: 0.4367665566 | AH88: 0.4370725074 | AI88: 0.4373786724 | AJ88: 0.437685052 | AK88: 0.4380354803 | AL88: 0.4383861893 | AM88: 0.438737179 | AN88: 0.4390884498 | AO88: 0.4394400018 | AP88: 0.4397918353 | AQ88: 0.4401439504 | AR88: 0.4404963475 | AS88: 0.4408490267 | AT88: 0.4412019883 | AU88: 0.4415994278 | AV88: 0.4419972253 | AW88: 0.442439665 | AX88: 0.4428825475 | AY88: 0.4433258734 | AZ88: 0.444214302 | BA88: 0.445104511 | BB88: 0.445996504 | BC88: 0.4468902846 | BD88: 0.4477858563 | BE88: 0.4491332561 | BF88: 0.4504847102 | BG88: 0.4518402309 | BH88: 0.4536548503 | BI88: 0.4554767573 | BJ88: 0.4573059813 | BK88: 0.4596040013 | BL88: 0.4619135691 | BM88: 0.4642347428 | BN88: 0.4670369646 | BO88: 0.4698561012 | BP88: 0.4731682792 | BQ88: 0.4765038058 | BR88: 0.4803465784 | BS88: 0.4842203412 | BT88: 0.4886179023 | BU88: 0.4935534367 | BV88: 0.4985388249 | BW88: 0.5035745706 | BX88: 0.5086611824 | BY88: 0.5190420229 | BZ88: 0.5296347172 | CA88: 0.540443589 | CB88: 0.55147305 | CC88: 0.5627276021 | CD88: 0.5801315485 | CE88: 0.5980737614 | CF88: 0.616570888 | CG88: 0.6356400907 | CH88: 0.6621250945 | CI88: 0.6897136401 | CJ88: 0.726014358 | CK88: 0.76422564 | CL88: 0.813006 | CM88: =(1-$G88)*CM87 -> 0.8649 | CN88: =1-$G88 -> 0.93
F89: 85 | G89: 0.08 | H89: 0.398144501 | I89: 0.398144501 | J89: 0.398144501 | K89: 0.398144501 | L89: 0.398144501 | M89: 0.398144501 | N89: 0.3982639802 | O89: 0.3983834952 | P89: 0.3985030462 | Q89: 0.3986226329 | R89: 0.3987821458 | S89: 0.3989417225 | T89: 0.399101363 | U89: 0.3992610675 | V89: 0.3994208358 | W89: 0.3996206461 | X89: 0.3998205564 | Y89: 0.4000205667 | Z89: 0.400220677 | AA89: 0.4004208875 | AB89: 0.4006211981 | AC89: 0.4008216089 | AD89: 0.4010622462 | AE89: 0.401303028 | AF89: 0.4015439544 | AG89: 0.4018252321 | AH89: 0.4021067068 | AI89: 0.4023883786 | AJ89: 0.4026702478 | AK89: 0.4029926419 | AL89: 0.4033152942 | AM89: 0.4036382047 | AN89: 0.4039613738 | AO89: 0.4042848017 | AP89: 0.4046084884 | AQ89: 0.4049324344 | AR89: 0.4052566397 | AS89: 0.4055811046 | AT89: 0.4059058293 | AU89: 0.4062714736 | AV89: 0.4066374473 | AW89: 0.4070444918 | AX89: 0.4074519437 | AY89: 0.4078598035 | AZ89: 0.4086771578 | BA89: 0.4094961501 | BB89: 0.4103167837 | BC89: 0.4111390618 | BD89: 0.4119629878 | BE89: 0.4132025956 | BF89: 0.4144459334 | BG89: 0.4156930124 | BH89: 0.4173624623 | BI89: 0.4190386167 | BJ89: 0.4207215028 | BK89: 0.4228356812 | BL89: 0.4249604836 | BM89: 0.4270959634 | BN89: 0.4296740074 | BO89: 0.4322676131 | BP89: 0.4353148168 | BQ89: 0.4383835013 | BR89: 0.4419188522 | BS89: 0.4454827139 | BT89: 0.4495284701 | BU89: 0.4540691617 | BV89: 0.4586557189 | BW89: 0.463288605 | BX89: 0.4679682878 | BY89: 0.4775186611 | BZ89: 0.4872639399 | CA89: 0.4972081019 | CB89: 0.507355206 | CC89: 0.5177093939 | CD89: 0.5337210246 | CE89: 0.5502278604 | CF89: 0.567245217 | CG89: 0.5847888835 | CH89: 0.6091550869 | CI89: 0.6345365489 | CJ89: 0.6679332094 | CK89: 0.7030875888 | CL89: 0.74796552 | CM89: 0.795708 | CN89: 0.8556 | CO89: =1-$G89 -> 0.92
F90: 86 | G90: 0.09 | H90: 0.3623114959 | I90: 0.3623114959 | J90: 0.3623114959 | K90: 0.3623114959 | L90: 0.3623114959 | M90: 0.3623114959 | N90: 0.362420222 | O90: 0.3625289807 | P90: 0.362637772 | Q90: 0.362746596 | R90: 0.3628917527 | S90: 0.3630369675 | T90: 0.3631822404 | U90: 0.3633275714 | V90: 0.3634729606 | W90: 0.363654788 | X90: 0.3638367063 | Y90: 0.3640187157 | Z90: 0.3642008161 | AA90: 0.3643830076 | AB90: 0.3645652902 | AC90: 0.3647476641 | AD90: 0.3649666441 | AE90: 0.3651857555 | AF90: 0.3654049985 | AG90: 0.3656609612 | AH90: 0.3659171032 | AI90: 0.3661734246 | AJ90: 0.3664299255 | AK90: 0.3667233041 | AL90: 0.3670169177 | AM90: 0.3673107663 | AN90: 0.3676048502 | AO90: 0.3678991695 | AP90: 0.3681937245 | AQ90: 0.3684885153 | AR90: 0.3687835421 | AS90: 0.3690788052 | AT90: 0.3693743046 | AU90: 0.369707041 | AV90: 0.370040077 | AW90: 0.3704104875 | AX90: 0.3707812688 | AY90: 0.3711524212 | AZ90: 0.3718962136 | BA90: 0.3726414966 | BB90: 0.3733882732 | BC90: 0.3741365463 | BD90: 0.3748863189 | BE90: 0.376014362 | BF90: 0.3771457994 | BG90: 0.3782806413 | BH90: 0.3797998407 | BI90: 0.3813251412 | BJ90: 0.3828565675 | BK90: 0.3847804699 | BL90: 0.3867140401 | BM90: 0.3886573267 | BN90: 0.3910033468 | BO90: 0.3933635279 | BP90: 0.3961364833 | BQ90: 0.3989289862 | BR90: 0.4021461555 | BS90: 0.4053892696 | BT90: =(1-$G90)*BT89 -> 0.4090709078 | BU90: 0.4132029372 | BV90: 0.4173767042 | BW90: 0.4215926305 | BX90: 0.4258511419 | BY90: 0.4345419816 | BZ90: 0.4434101853 | CA90: 0.4524593727 | CB90: 0.4616932375 | CC90: 0.4711155484 | CD90: 0.4856861324 | CE90: 0.500707353 | CF90: 0.5161931474 | CG90: 0.5321578839 | CH90: 0.5543311291 | CI90: 0.5774282595 | CJ90: 0.6078192205 | CK90: 0.6398097058 | CL90: 0.6806486232 | CM90: 0.72409428 | CN90: 0.778596 | CO90: 0.8372 | CP90: =1-$G90 -> 0.91
F91: 87 | G91: 0.1 | H91: 0.3260803463 | I91: 0.3260803463 | J91: 0.3260803463 | K91: 0.3260803463 | L91: 0.3260803463 | M91: 0.3260803463 | N91: 0.3261781998 | O91: 0.3262760826 | P91: 0.3263739948 | Q91: 0.3264719364 | R91: 0.3266025774 | S91: 0.3267332707 | T91: 0.3268640163 | U91: 0.3269948143 | V91: 0.3271256645 | W91: 0.3272893092 | X91: 0.3274530357 | Y91: 0.3276168441 | Z91: 0.3277807345 | AA91: 0.3279447068 | AB91: 0.3281087612 | AC91: 0.3282728977 | AD91: 0.3284699797 | AE91: 0.32866718 | AF91: 0.3288644987 | AG91: 0.3290948651 | AH91: 0.3293253928 | AI91: 0.3295560821 | AJ91: 0.329786933 | AK91: 0.3300509737 | AL91: 0.3303152259 | AM91: 0.3305796897 | AN91: 0.3308443652 | AO91: 0.3311092526 | AP91: 0.331374352 | AQ91: 0.3316396638 | AR91: 0.3319051879 | AS91: 0.3321709247 | AT91: 0.3324368742 | AU91: 0.3327363369 | AV91: 0.3330360693 | AW91: 0.3333694388 | AX91: 0.3337031419 | AY91: 0.3340371791 | AZ91: 0.3347065923 | BA91: 0.335377347 | BB91: 0.3360494459 | BC91: 0.3367228916 | BD91: 0.337397687 | BE91: 0.3384129258 | BF91: 0.3394312194 | BG91: 0.3404525772 | BH91: 0.3418198566 | BI91: 0.3431926271 | BJ91: 0.3445709108 | BK91: 0.3463024229 | BL91: 0.3480426361 | BM91: 0.349791594 | BN91: 0.3519030121 | BO91: 0.3540271751 | BP91: 0.356522835 | BQ91: 0.3590360876 | BR91: 0.3619315399 | BS91: 0.3648503427 | BT91: 0.368163817 | BU91: 0.3718826435 | BV91: 0.3756390338 | BW91: 0.3794333675 | BX91: 0.3832660277 | BY91: 0.3910877834 | BZ91: 0.3990691667 | CA91: 0.4072134355 | CB91: 0.4155239137 | CC91: 0.4240039936 | CD91: 0.4371175192 | CE91: 0.4506366177 | CF91: 0.4645738327 | CG91: 0.4789420956 | CH91: 0.4988980162 | CI91: 0.5196854335 | CJ91: 0.5470372985 | CK91: 0.5758287352 | CL91: 0.6125837609 | CM91: 0.651684852 | CN91: 0.7007364 | CO91: 0.75348 | CP91: 0.819 | CQ91: =1-$G91 -> 0.9
F92: 88 | G92: 0.1 | H92: 0.2934723117 | I92: 0.2934723117 | J92: 0.2934723117 | K92: 0.2934723117 | L92: 0.2934723117 | M92: 0.2934723117 | N92: 0.2935603798 | O92: 0.2936484743 | P92: 0.2937365953 | Q92: 0.2938247427 | R92: =(1-$G92)*R91 -> 0.2939423197 | S92: 0.2940599436 | T92: 0.2941776147 | U92: 0.2942953328 | V92: 0.2944130981 | W92: 0.2945603783 | X92: 0.2947077321 | Y92: 0.2948551597 | Z92: 0.295002661 | AA92: 0.2951502362 | AB92: 0.2952978851 | AC92: 0.2954456079 | AD92: 0.2956229817 | AE92: 0.295800462 | AF92: 0.2959780488 | AG92: 0.2961853786 | AH92: 0.2963928536 | AI92: 0.2966004739 | AJ92: 0.2968082397 | AK92: 0.2970458764 | AL92: 0.2972837033 | AM92: 0.2975217207 | AN92: 0.2977599286 | AO92: 0.2979983273 | AP92: 0.2982369168 | AQ92: 0.2984756974 | AR92: 0.2987146691 | AS92: 0.2989538322 | AT92: 0.2991931867 | AU92: 0.2994627032 | AV92: 0.2997324624 | AW92: 0.3000324949 | AX92: 0.3003328277 | AY92: 0.3006334612 | AZ92: 0.301235933 | BA92: 0.3018396123 | BB92: 0.3024445013 | BC92: 0.3030506025 | BD92: 0.3036579183 | BE92: 0.3045716332 | BF92: 0.3054880975 | BG92: 0.3064073195 | BH92: 0.3076378709 | BI92: 0.3088733644 | BJ92: 0.3101138197 | BK92: 0.3116721806 | BL92: 0.3132383724 | BM92: 0.3148124346 | BN92: 0.3167127109 | BO92: 0.3186244576 | BP92: 0.3208705515 | BQ92: 0.3231324788 | BR92: 0.3257383859 | BS92: 0.3283653084 | BT92: 0.3313474353 | BU92: 0.3346943791 | BV92: 0.3380751304 | BW92: 0.3414900307 | BX92: 0.344939425 | BY92: 0.3519790051 | BZ92: 0.3591622501 | CA92: 0.3664920919 | CB92: 0.3739715224 | CC92: 0.3816035942 | CD92: 0.3934057673 | CE92: 0.4055729559 | CF92: 0.4181164494 | CG92: 0.431047886 | CH92: 0.4490082146 | CI92: 0.4677168902 | CJ92: 0.4923335686 | CK92: 0.5182458617 | CL92: 0.5513253848 | CM92: 0.5865163668 | CN92: 0.63066276 | CO92: 0.678132 | CP92: 0.7371 | CQ92: 0.81 | CR92: =1-$G92 -> 0.9
F93: 89 | G93: 0.1 | H93: 0.2641250805 | I93: 0.2641250805 | J93: 0.2641250805 | K93: 0.2641250805 | L93: 0.2641250805 | M93: 0.2641250805 | N93: 0.2642043418 | O93: 0.2642836269 | P93: 0.2643629358 | Q93: 0.2644422685 | R93: 0.2645480877 | S93: 0.2646539493 | T93: 0.2647598532 | U93: 0.2648657995 | V93: 0.2649717883 | W93: 0.2651043404 | X93: 0.2652369589 | Y93: 0.2653696437 | Z93: 0.2655023949 | AA93: 0.2656352125 | AB93: 0.2657680966 | AC93: 0.2659010471 | AD93: 0.2660606835 | AE93: 0.2662204158 | AF93: 0.2663802439 | AG93: 0.2665668407 | AH93: 0.2667535682 | AI93: 0.2669404265 | AJ93: 0.2671274157 | AK93: 0.2673412887 | AL93: 0.267555333 | AM93: 0.2677695486 | AN93: 0.2679839358 | AO93: 0.2681984946 | AP93: 0.2684132252 | AQ93: 0.2686281277 | AR93: 0.2688432022 | AS93: 0.269058449 | AT93: 0.2692738681 | AU93: 0.2695164329 | AV93: 0.2697592162 | AW93: 0.2700292454 | AX93: 0.2702995449 | AY93: 0.2705701151 | AZ93: 0.2711123397 | BA93: 0.271655651 | BB93: 0.2722000511 | BC93: 0.2727455422 | BD93: 0.2732921265 | BE93: 0.2741144699 | BF93: 0.2749392878 | BG93: 0.2757665875 | BH93: 0.2768740838 | BI93: 0.277986028 | BJ93: 0.2791024377 | BK93: 0.2805049625 | BL93: 0.2819145352 | BM93: 0.2833311912 | BN93: 0.2850414398 | BO93: 0.2867620119 | BP93: 0.2887834963 | BQ93: 0.290819231 | BR93: 0.2931645473 | BS93: 0.2955287776 | BT93: 0.2982126918 | BU93: 0.3012249412 | BV93: 0.3042676174 | BW93: 0.3073410276 | BX93: 0.3104454825 | BY93: 0.3167811046 | BZ93: 0.3232460251 | CA93: 0.3298428827 | CB93: 0.3365743701 | CC93: 0.3434432348 | CD93: 0.3540651905 | CE93: 0.3650156603 | CF93: 0.3763048045 | CG93: 0.3879430974 | CH93: 0.4041073931 | CI93: 0.4209452012 | CJ93: 0.4431002118 | CK93: 0.4664212755 | CL93: =(1-$G93)*CL92 -> 0.4961928463 | CM93: 0.5278647301 | CN93: 0.567596484 | CO93: 0.6103188 | CP93: 0.66339 | CQ93: 0.729 | CR93: 0.81 | CS93: =1-$G93 -> 0.9
F94: 90 | G94: 0.1 | H94: 0.2377125725 | I94: 0.2377125725 | J94: 0.2377125725 | K94: 0.2377125725 | L94: 0.2377125725 | M94: 0.2377125725 | N94: 0.2377839076 | O94: 0.2378552642 | P94: 0.2379266422 | Q94: 0.2379980416 | R94: 0.2380932789 | S94: 0.2381885544 | T94: 0.2382838679 | U94: 0.2383792196 | V94: 0.2384746094 | W94: 0.2385939064 | X94: 0.238713263 | Y94: 0.2388326794 | Z94: 0.2389521554 | AA94: 0.2390716913 | AB94: 0.2391912869 | AC94: 0.2393109424 | AD94: 0.2394546152 | AE94: 0.2395983742 | AF94: 0.2397422195 | AG94: 0.2399101566 | AH94: 0.2400782114 | AI94: 0.2402463838 | AJ94: 0.2404146741 | AK94: 0.2406071598 | AL94: 0.2407997997 | AM94: 0.2409925938 | AN94: 0.2411855422 | AO94: 0.2413786451 | AP94: 0.2415719026 | AQ94: 0.2417653149 | AR94: 0.241958882 | AS94: 0.2421526041 | AT94: 0.2423464813 | AU94: 0.2425647896 | AV94: 0.2427832945 | AW94: 0.2430263209 | AX94: 0.2432695904 | AY94: 0.2435131036 | AZ94: 0.2440011058 | BA94: 0.2444900859 | BB94: 0.244980046 | BC94: 0.245470988 | BD94: 0.2459629138 | BE94: 0.2467030229 | BF94: 0.247445359 | BG94: 0.2481899288 | BH94: 0.2491866755 | BI94: 0.2501874252 | BJ94: 0.2511921939 | BK94: 0.2524544663 | BL94: 0.2537230817 | BM94: 0.254998072 | BN94: 0.2565372958 | BO94: 0.2580858107 | BP94: 0.2599051467 | BQ94: 0.2617373079 | BR94: 0.2638480926 | BS94: 0.2659758998 | BT94: 0.2683914226 | BU94: 0.2711024471 | BV94: 0.2738408556 | BW94: 0.2766069249 | BX94: 0.2794009342 | BY94: 0.2851029941 | BZ94: 0.2909214226 | CA94: 0.2968585944 | CB94: 0.3029169331 | CC94: 0.3090989113 | CD94: 0.3186586715 | CE94: 0.3285140943 | CF94: 0.338674324 | CG94: 0.3491487877 | CH94: 0.3636966538 | CI94: 0.3788506811 | CJ94: 0.3987901906 | CK94: 0.419779148 | CL94: 0.4465735617 | CM94: 0.4750782571 | CN94: 0.5108368356 | CO94: 0.54928692 | CP94: 0.597051 | CQ94: 0.6561 | CR94: 0.729 | CS94: 0.81 | CT94: =1-$G94 -> 0.9
F95: 91 | G95: 0.1 | H95: 0.2139413152 | I95: 0.2139413152 | J95: 0.2139413152 | K95: 0.2139413152 | L95: 0.2139413152 | M95: 0.2139413152 | N95: 0.2140055169 | O95: 0.2140697378 | P95: 0.214133978 | Q95: 0.2141982375 | R95: 0.214283951 | S95: 0.2143696989 | T95: 0.2144554811 | U95: 0.2145412976 | V95: 0.2146271485 | W95: 0.2147345157 | X95: 0.2148419367 | Y95: 0.2149494114 | Z95: 0.2150569399 | AA95: 0.2151645222 | AB95: 0.2152721582 | AC95: 0.2153798482 | AD95: 0.2155091536 | AE95: 0.2156385368 | AF95: 0.2157679976 | AG95: 0.215919141 | AH95: 0.2160703902 | AI95: 0.2162217455 | AJ95: 0.2163732067 | AK95: 0.2165464439 | AL95: 0.2167198197 | AM95: 0.2168933344 | AN95: 0.217066988 | AO95: 0.2172407806 | AP95: 0.2174147124 | AQ95: 0.2175887834 | AR95: 0.2177629938 | AS95: 0.2179373437 | AT95: 0.2181118331 | AU95: 0.2183083106 | AV95: 0.2185049651 | AW95: 0.2187236888 | AX95: 0.2189426314 | AY95: 0.2191617932 | AZ95: 0.2196009952 | BA95: 0.2200410773 | BB95: 0.2204820414 | BC95: 0.2209238892 | BD95: 0.2213666224 | BE95: 0.2220327206 | BF95: 0.2227008231 | BG95: 0.2233709359 | BH95: 0.2242680079 | BI95: 0.2251686826 | BJ95: 0.2260729745 | BK95: 0.2272090196 | BL95: 0.2283507735 | BM95: 0.2294982648 | BN95: 0.2308835662 | BO95: 0.2322772296 | BP95: 0.233914632 | BQ95: 0.2355635771 | BR95: 0.2374632833 | BS95: 0.2393783098 | BT95: 0.2415522803 | BU95: 0.2439922024 | BV95: 0.2464567701 | BW95: 0.2489462324 | BX95: 0.2514608408 | BY95: 0.2565926947 | BZ95: 0.2618292803 | CA95: 0.267172735 | CB95: 0.2726252398 | CC95: 0.2781890202 | CD95: 0.2867928043 | CE95: =(1-$G95)*CE94 -> 0.2956626849 | CF95: 0.3048068916 | CG95: 0.3142339089 | CH95: 0.3273269884 | CI95: 0.3409656129 | CJ95: 0.3589111715 | CK95: 0.3778012332 | CL95: 0.4019162055 | CM95: 0.4275704314 | CN95: 0.459753152 | CO95: 0.494358228 | CP95: 0.5373459 | CQ95: 0.59049 | CR95: 0.6561 | CS95: 0.729 | CT95: 0.81 | CU95: =1-$G95 -> 0.9
F96: 92 | G96: 0.1 | H96: 0.1925471837 | I96: 0.1925471837 | J96: 0.1925471837 | K96: 0.1925471837 | L96: 0.1925471837 | M96: 0.1925471837 | N96: 0.1926049652 | O96: 0.192662764 | P96: 0.1927205802 | Q96: 0.1927784137 | R96: 0.1928555559 | S96: 0.192932729 | T96: 0.193009933 | U96: 0.1930871679 | V96: 0.1931644336 | W96: 0.1932610642 | X96: 0.193357743 | Y96: 0.1934544703 | Z96: 0.1935512459 | AA96: 0.1936480699 | AB96: 0.1937449424 | AC96: 0.1938418633 | AD96: 0.1939582383 | AE96: 0.1940746831 | AF96: 0.1941911978 | AG96: 0.1943272269 | AH96: 0.1944633512 | AI96: 0.1945995709 | AJ96: 0.194735886 | AK96: 0.1948917995 | AL96: 0.1950478377 | AM96: 0.1952040009 | AN96: 0.1953602892 | AO96: 0.1955167025 | AP96: 0.1956732411 | AQ96: 0.1958299051 | AR96: 0.1959866944 | AS96: 0.1961436093 | AT96: 0.1963006498 | AU96: 0.1964774796 | AV96: 0.1966544686 | AW96: 0.1968513199 | AX96: 0.1970483683 | AY96: 0.1972456139 | AZ96: 0.1976408957 | BA96: 0.1980369696 | BB96: 0.1984338373 | BC96: 0.1988315003 | BD96: 0.1992299602 | BE96: 0.1998294485 | BF96: 0.2004307408 | BG96: 0.2010338423 | BH96: 0.2018412071 | BI96: 0.2026518144 | BJ96: 0.2034656771 | BK96: 0.2044881177 | BL96: 0.2055156962 | BM96: 0.2065484384 | BN96: 0.2077952096 | BO96: 0.2090495067 | BP96: 0.2105231688 | BQ96: 0.2120072194 | BR96: 0.213716955 | BS96: 0.2154404788 | BT96: 0.2173970523 | BU96: 0.2195929821 | BV96: 0.2218110931 | BW96: 0.2240516092 | BX96: 0.2263147567 | BY96: 0.2309334252 | BZ96: 0.2356463523 | CA96: 0.2404554615 | CB96: 0.2453627158 | CC96: 0.2503701182 | CD96: 0.2581135239 | CE96: 0.2660964164 | CF96: 0.2743262025 | CG96: 0.282810518 | CH96: 0.2945942896 | CI96: 0.3068690517 | CJ96: 0.3230200544 | CK96: 0.3400211099 | CL96: 0.361724585 | CM96: 0.3848133883 | CN96: 0.4137778368 | CO96: 0.4449224052 | CP96: 0.48361131 | CQ96: 0.531441 | CR96: 0.59049 | CS96: 0.6561 | CT96: 0.729 | CU96: =(1-$G96)*CU95 -> 0.81 | CV96: =1-$G96 -> 0.9
F97: 93 | G97: 0.2 | H97: 0.154037747 | I97: 0.154037747 | J97: 0.154037747 | K97: 0.154037747 | L97: 0.154037747 | M97: 0.154037747 | N97: 0.1540839721 | O97: 0.1541302112 | P97: 0.1541764642 | Q97: 0.154222731 | R97: 0.1542844447 | S97: 0.1543461832 | T97: 0.1544079464 | U97: 0.1544697343 | V97: 0.1545315469 | W97: 0.1546088513 | X97: 0.1546861944 | Y97: 0.1547635762 | Z97: 0.1548409967 | AA97: 0.154918456 | AB97: 0.1549959539 | AC97: 0.1550734907 | AD97: 0.1551665906 | AE97: 0.1552597465 | AF97: 0.1553529583 | AG97: 0.1554617815 | AH97: 0.155570681 | AI97: 0.1556796567 | AJ97: 0.1557887088 | AK97: 0.1559134396 | AL97: 0.1560382702 | AM97: 0.1561632008 | AN97: 0.1562882313 | AO97: 0.156413362 | AP97: 0.1565385929 | AQ97: 0.156663924 | AR97: 0.1567893555 | AS97: 0.1569148874 | AT97: 0.1570405199 | AU97: 0.1571819836 | AV97: 0.1573235749 | AW97: 0.1574810559 | AX97: 0.1576386946 | AY97: 0.1577964911 | AZ97: 0.1581127165 | BA97: 0.1584295757 | BB97: 0.1587470698 | BC97: 0.1590652002 | BD97: 0.1593839682 | BE97: 0.1598635588 | BF97: 0.1603445926 | BG97: 0.1608270738 | BH97: 0.1614729657 | BI97: 0.1621214515 | BJ97: 0.1627725417 | BK97: 0.1635904941 | BL97: 0.1644125569 | BM97: 0.1652387507 | BN97: 0.1662361677 | BO97: 0.1672396053 | BP97: 0.1684185351 | BQ97: 0.1696057755 | BR97: 0.170973564 | BS97: 0.1723523831 | BT97: 0.1739176418 | BU97: 0.1756743857 | BV97: 0.1774488744 | BW97: 0.1792412873 | BX97: 0.1810518054 | BY97: 0.1847467402 | BZ97: 0.1885170818 | CA97: 0.1923643692 | CB97: 0.1962901727 | CC97: 0.2002960945 | CD97: 0.2064908191 | CE97: 0.2128771331 | CF97: 0.219460962 | CG97: 0.2262484144 | CH97: 0.2356754317 | CI97: 0.2454952413 | CJ97: 0.2584160435 | CK97: 0.2720168879 | CL97: 0.289379668 | CM97: 0.3078507106 | CN97: 0.3310222695 | CO97: 0.3559379242 | CP97: 0.386889048 | CQ97: 0.4251528 | CR97: 0.472392 | CS97: 0.52488 | CT97: 0.5832 | CU97: 0.648 | CV97: 0.72 | CW97: =1-$G97 -> 0.8
F98: 94 | G98: 0.2 | H98: 0.1232301976 | I98: 0.1232301976 | J98: 0.1232301976 | K98: 0.1232301976 | L98: 0.1232301976 | M98: 0.1232301976 | N98: 0.1232671777 | O98: 0.123304169 | P98: 0.1233411713 | Q98: 0.1233781848 | R98: 0.1234275558 | S98: 0.1234769466 | T98: 0.1235263571 | U98: 0.1235757874 | V98: 0.1236252375 | W98: 0.1236870811 | X98: 0.1237489555 | Y98: 0.123810861 | Z98: 0.1238727974 | AA98: 0.1239347648 | AB98: 0.1239967631 | AC98: 0.1240587925 | AD98: 0.1241332725 | AE98: 0.1242077972 | AF98: 0.1242823666 | AG98: 0.1243694252 | AH98: 0.1244565448 | AI98: =(1-$G98)*AI97 -> 0.1245437254 | AJ98: 0.1246309671 | AK98: 0.1247307517 | AL98: 0.1248306162 | AM98: 0.1249305606 | AN98: 0.1250305851 | AO98: 0.1251306896 | AP98: 0.1252308743 | AQ98: 0.1253311392 | AR98: 0.1254314844 | AS98: 0.12553191 | AT98: 0.1256324159 | AU98: 0.1257455869 | AV98: 0.1258588599 | AW98: 0.1259848447 | AX98: 0.1261109557 | AY98: 0.1262371929 | AZ98: 0.1264901732 | BA98: 0.1267436605 | BB98: 0.1269976559 | BC98: 0.1272521602 | BD98: 0.1275071745 | BE98: 0.1278908471 | BF98: 0.1282756741 | BG98: 0.1286616591 | BH98: 0.1291783726 | BI98: 0.1296971612 | BJ98: 0.1302180333 | BK98: 0.1308723953 | BL98: 0.1315300455 | BM98: 0.1321910005 | BN98: 0.1329889342 | BO98: 0.1337916843 | BP98: 0.1347348281 | BQ98: 0.1356846204 | BR98: 0.1367788512 | BS98: 0.1378819065 | BT98: 0.1391341135 | BU98: 0.1405395086 | BV98: 0.1419590996 | BW98: 0.1433930299 | BX98: 0.1448414443 | BY98: 0.1477973921 | BZ98: 0.1508136655 | CA98: 0.1538914954 | CB98: 0.1570321381 | CC98: 0.1602368756 | CD98: 0.1651926553 | CE98: 0.1703017065 | CF98: 0.1755687696 | CG98: 0.1809987315 | CH98: 0.1885403453 | CI98: 0.1963961931 | CJ98: 0.2067328348 | CK98: 0.2176135103 | CL98: 0.2315037344 | CM98: 0.2462805685 | CN98: 0.2648178156 | CO98: 0.2847503393 | CP98: 0.3095112384 | CQ98: 0.34012224 | CR98: 0.3779136 | CS98: 0.419904 | CT98: 0.46656 | CU98: 0.5184 | CV98: 0.576 | CW98: 0.64 | CX98: =1-$G98 -> 0.8
F99: 95 | G99: 0.2 | H99: 0.09858415805 | I99: 0.09858415805 | J99: 0.09858415805 | K99: 0.09858415805 | L99: 0.09858415805 | M99: 0.09858415805 | N99: 0.09861374218 | O99: 0.09864333518 | P99: 0.09867293706 | Q99: 0.09870254782 | R99: 0.09874204464 | S99: 0.09878155726 | T99: 0.0988210857 | U99: 0.09886062995 | V99: 0.09890019002 | W99: 0.09894966486 | X99: 0.09899916444 | Y99: 0.09904868878 | Z99: 0.0990982379 | AA99: 0.09914781181 | AB99: 0.09919741051 | AC99: 0.09924703403 | AD99: 0.099306618 | AE99: 0.09936623774 | AF99: 0.09942589328 | AG99: 0.09949554016 | AH99: 0.09956523582 | AI99: 0.09963498031 | AJ99: 0.09970477365 | AK99: 0.09978460133 | AL99: 0.09986449293 | AM99: 0.09994444849 | AN99: 0.1000244681 | AO99: 0.1001045517 | AP99: 0.1001846995 | AQ99: 0.1002649114 | AR99: 0.1003451875 | AS99: 0.100425528 | AT99: 0.1005059327 | AU99: 0.1005964695 | AV99: 0.1006870879 | AW99: 0.1007878758 | AX99: 0.1008887646 | AY99: 0.1009897543 | AZ99: 0.1011921386 | BA99: 0.1013949284 | BB99: 0.1015981247 | BC99: 0.1018017281 | BD99: 0.1020057396 | BE99: 0.1023126777 | BF99: 0.1026205393 | BG99: 0.1029293273 | BH99: 0.103342698 | BI99: 0.103757729 | BJ99: 0.1041744267 | BK99: 0.1046979163 | BL99: 0.1052240364 | BM99: 0.1057528004 | BN99: 0.1063911473 | BO99: 0.1070333474 | BP99: 0.1077878624 | BQ99: 0.1085476963 | BR99: 0.109423081 | BS99: 0.1103055252 | BT99: 0.1113072908 | BU99: 0.1124316069 | BV99: 0.1135672796 | BW99: 0.1147144239 | BX99: 0.1158731554 | BY99: 0.1182379137 | BZ99: 0.1206509324 | CA99: 0.1231131963 | CB99: 0.1256257105 | CC99: 0.1281895005 | CD99: 0.1321541242 | CE99: 0.1362413652 | CF99: 0.1404550157 | CG99: 0.1447989852 | CH99: 0.1508322763 | CI99: 0.1571169544 | CJ99: 0.1653862678 | CK99: 0.1740908083 | CL99: 0.1852029875 | CM99: 0.1970244548 | CN99: 0.2118542525 | CO99: 0.2278002715 | CP99: 0.2476089907 | CQ99: 0.272097792 | CR99: 0.30233088 | CS99: 0.3359232 | CT99: 0.373248 | CU99: 0.41472 | CV99: 0.4608 | CW99: 0.512 | CX99: 0.64 | CY99: =1-$G99 -> 0.8
F100: 96 | G100: 0.2 | H100: 0.07886732644 | I100: 0.07886732644 | J100: 0.07886732644 | K100: 0.07886732644 | L100: 0.07886732644 | M100: 0.07886732644 | N100: 0.07889099374 | O100: 0.07891466814 | P100: 0.07893834965 | Q100: 0.07896203826 | R100: 0.07899363571 | S100: 0.07902524581 | T100: 0.07905686856 | U100: 0.07908850396 | V100: 0.07912015202 | W100: 0.07915973189 | X100: 0.07919933155 | Y100: 0.07923895103 | Z100: 0.07927859032 | AA100: 0.07931824945 | AB100: 0.07935792841 | AC100: 0.07939762722 | AD100: 0.0794452944 | AE100: 0.0794929902 | AF100: 0.07954071462 | AG100: 0.07959643213 | AH100: 0.07965218866 | AI100: 0.07970798425 | AJ100: 0.07976381892 | AK100: 0.07982768107 | AL100: 0.07989159434 | AM100: 0.07995555879 | AN100: 0.08001957445 | AO100: 0.08008364136 | AP100: 0.08014775957 | AQ100: 0.08021192911 | AR100: 0.08027615003 | AS100: 0.08034042237 | AT100: 0.08040474617 | AU100: 0.08047717563 | AV100: 0.08054967033 | AW100: 0.08063030063 | AX100: 0.08071101164 | AY100: 0.08079180344 | AZ100: 0.08095371087 | BA100: 0.08111594275 | BB100: 0.08127849975 | BC100: 0.08144138252 | BD100: 0.0816045917 | BE100: 0.08185014213 | BF100: 0.08209643142 | BG100: 0.08234346181 | BH100: 0.08267415844 | BI100: 0.08300618317 | BJ100: 0.08333954134 | BK100: 0.083758333 | BL100: 0.08417922915 | BM100: 0.08460224035 | BN100: 0.08511291786 | BO100: 0.08562667792 | BP100: 0.08623028995 | BQ100: 0.08683815705 | BR100: 0.08753846477 | BS100: 0.08824442013 | BT100: 0.08904583263 | BU100: 0.08994528548 | BV100: 0.09085382372 | BW100: 0.09177153911 | BX100: 0.09269852435 | BY100: 0.09459033097 | BZ100: 0.09652074589 | CA100: 0.09849055703 | CB100: 0.1005005684 | CC100: 0.1025516004 | CD100: 0.1057232994 | CE100: 0.1089930922 | CF100: 0.1123640125 | CG100: 0.1158391882 | CH100: 0.120665821 | CI100: 0.1256935636 | CJ100: 0.1323090143 | CK100: 0.1392726466 | CL100: 0.14816239 | CM100: 0.1576195638 | CN100: 0.169483402 | CO100: 0.1822402172 | CP100: 0.1980871926 | CQ100: 0.2176782336 | CR100: 0.241864704 | CS100: 0.26873856 | CT100: 0.2985984 | CU100: 0.331776 | CV100: 0.36864 | CW100: 0.4096 | CX100: 0.512 | CY100: 0.64 | CZ100: =1-$G100 -> 0.8
F101: 97 | G101: 0.2 | H101: 0.06309386115 | I101: 0.06309386115 | J101: 0.06309386115 | K101: 0.06309386115 | L101: 0.06309386115 | M101: 0.06309386115 | N101: 0.06311279499 | O101: 0.06313173451 | P101: 0.06315067972 | Q101: 0.06316963061 | R101: 0.06319490857 | S101: 0.06322019665 | T101: 0.06324549485 | U101: 0.06327080317 | V101: 0.06329612162 | W101: 0.06332778551 | X101: 0.06335946524 | Y101: 0.06339116082 | Z101: 0.06342287226 | AA101: 0.06345459956 | AB101: 0.06348634273 | AC101: 0.06351810178 | AD101: 0.06355623552 | AE101: 0.06359439216 | AF101: 0.0636325717 | AG101: 0.0636771457 | AH101: 0.06372175093 | AI101: 0.0637663874 | AJ101: 0.06381105514 | AK101: 0.06386214485 | AL101: 0.06391327547 | AM101: 0.06396444703 | AN101: 0.06401565956 | AO101: 0.06406691309 | AP101: 0.06411820766 | AQ101: 0.06416954329 | AR101: 0.06422092003 | AS101: 0.0642723379 | AT101: 0.06432379693 | AU101: 0.0643817405 | AV101: 0.06443973626 | AW101: 0.0645042405 | AX101: 0.06456880931 | AY101: 0.06463344276 | AZ101: 0.06476296869 | BA101: 0.0648927542 | BB101: 0.0650227998 | BC101: 0.06515310601 | BD101: 0.06528367336 | BE101: 0.0654801137 | BF101: 0.06567714514 | BG101: 0.06587476944 | BH101: 0.06613932675 | BI101: 0.06640494654 | BJ101: 0.06667163307 | BK101: 0.0670066664 | BL101: 0.06734338332 | BM101: 0.06768179228 | BN101: 0.06809033429 | BO101: 0.06850134234 | BP101: 0.06898423196 | BQ101: 0.06947052564 | BR101: 0.07003077182 | BS101: 0.07059553611 | BT101: 0.0712366661 | BU101: 0.07195622838 | BV101: 0.07268305897 | BW101: 0.07341723129 | BX101: 0.07415881948 | BY101: 0.07567226478 | BZ101: 0.07721659671 | CA101: 0.07879244562 | CB101: 0.08040045472 | CC101: 0.08204128033 | CD101: 0.08457863951 | CE101: 0.08719447372 | CF101: 0.08989121002 | CG101: 0.09267135054 | CH101: 0.09653265681 | CI101: 0.1005548508 | CJ101: 0.1058472114 | CK101: 0.1114181173 | CL101: 0.118529912 | CM101: 0.1260956511 | CN101: 0.1355867216 | CO101: 0.1457921737 | CP101: 0.1584697541 | CQ101: 0.1741425869 | CR101: 0.1934917632 | CS101: 0.214990848 | CT101: 0.23887872 | CU101: 0.2654208 | CV101: 0.294912 | CW101: 0.32768 | CX101: 0.4096 | CY101: 0.512 | CZ101: 0.64 | DA101: =1-$G101 -> 0.8
F102: 98 | G102: 0.2 | H102: 0.05047508892 | I102: 0.05047508892 | J102: 0.05047508892 | K102: 0.05047508892 | L102: 0.05047508892 | M102: 0.05047508892 | N102: 0.05049023599 | O102: 0.05050538761 | P102: 0.05052054377 | Q102: 0.05053570448 | R102: 0.05055592686 | S102: 0.05057615732 | T102: 0.05059639588 | U102: 0.05061664253 | V102: 0.05063689729 | W102: 0.05066222841 | X102: 0.05068757219 | Y102: 0.05071292866 | Z102: 0.05073829781 | AA102: 0.05076367965 | AB102: 0.05078907418 | AC102: 0.05081448142 | AD102: 0.05084498842 | AE102: 0.05087551373 | AF102: 0.05090605736 | AG102: 0.05094171656 | AH102: =(1-$G102)*AH101 -> 0.05097740074 | AI102: 0.05101310992 | AJ102: 0.05104884411 | AK102: 0.05108971588 | AL102: 0.05113062038 | AM102: 0.05117155762 | AN102: 0.05121252765 | AO102: 0.05125353047 | AP102: 0.05129456612 | AQ102: 0.05133563463 | AR102: 0.05137673602 | AS102: 0.05141787032 | AT102: 0.05145903755 | AU102: 0.0515053924 | AV102: 0.05155178901 | AW102: 0.0516033924 | AX102: 0.05165504745 | AY102: 0.0517067542 | AZ102: 0.05181037495 | BA102: 0.05191420336 | BB102: 0.05201823984 | BC102: 0.05212248481 | BD102: 0.05222693869 | BE102: 0.05238409096 | BF102: 0.05254171611 | BG102: 0.05269981556 | BH102: 0.0529114614 | BI102: 0.05312395723 | BJ102: 0.05333730646 | BK102: 0.05360533312 | BL102: 0.05387470665 | BM102: 0.05414543382 | BN102: 0.05447226743 | BO102: 0.05480107387 | BP102: 0.05518738557 | BQ102: 0.05557642051 | BR102: 0.05602461745 | BS102: 0.05647642888 | BT102: 0.05698933288 | BU102: 0.05756498271 | BV102: 0.05814644718 | BW102: 0.05873378503 | BX102: 0.05932705559 | BY102: 0.06053781182 | BZ102: 0.06177327737 | CA102: 0.0630339565 | CB102: 0.06432036378 | CC102: 0.06563302426 | CD102: 0.06766291161 | CE102: 0.06975557898 | CF102: 0.07191296802 | CG102: 0.07413708043 | CH102: 0.07722612545 | CI102: 0.08044388068 | CJ102: 0.08467776913 | CK102: 0.08913449382 | CL102: 0.0948239296 | CM102: 0.1008765209 | CN102: 0.1084693773 | CO102: 0.116633739 | CP102: 0.1267758032 | CQ102: 0.1393140695 | CR102: 0.1547934106 | CS102: 0.1719926784 | CT102: 0.191102976 | CU102: 0.21233664 | CV102: 0.2359296 | CW102: 0.262144 | CX102: 0.32768 | CY102: 0.4096 | CZ102: 0.512 | DA102: 0.64 | DB102: =1-$G102 -> 0.8
F103: 99 | G103: 0.2 | H103: 0.04038007114 | I103: 0.04038007114 | J103: 0.04038007114 | K103: 0.04038007114 | L103: 0.04038007114 | M103: 0.04038007114 | N103: 0.0403921888 | O103: 0.04040431009 | P103: 0.04041643502 | Q103: 0.04042856359 | R103: 0.04044474148 | S103: 0.04046092585 | T103: 0.0404771167 | U103: 0.04049331403 | V103: 0.04050951783 | W103: 0.04052978273 | X103: 0.04055005775 | Y103: 0.04057034293 | Z103: 0.04059063825 | AA103: 0.04061094372 | AB103: 0.04063125935 | AC103: 0.04065158514 | AD103: 0.04067599073 | AE103: 0.04070041098 | AF103: 0.04072484589 | AG103: 0.04075337325 | AH103: 0.04078192059 | AI103: 0.04081048793 | AJ103: 0.04083907529 | AK103: 0.04087177271 | AL103: 0.0409044963 | AM103: 0.0409372461 | AN103: 0.04097002212 | AO103: 0.04100282438 | AP103: 0.0410356529 | AQ103: 0.04106850771 | AR103: 0.04110138882 | AS103: 0.04113429625 | AT103: 0.04116723004 | AU103: 0.04120431392 | AV103: 0.04124143121 | AW103: 0.04128271392 | AX103: 0.04132403796 | AY103: 0.04136540336 | AZ103: 0.04144829996 | BA103: 0.04153136269 | BB103: 0.04161459187 | BC103: 0.04169798785 | BD103: 0.04178155095 | BE103: 0.04190727277 | BF103: 0.04203337289 | BG103: 0.04215985244 | BH103: 0.04232916912 | BI103: 0.04249916578 | BJ103: 0.04266984516 | BK103: 0.0428842665 | BL103: 0.04309976532 | BM103: 0.04331634706 | BN103: 0.04357781394 | BO103: 0.0438408591 | BP103: 0.04414990846 | BQ103: 0.04446113641 | BR103: 0.04481969396 | BS103: 0.04518114311 | BT103: 0.0455914663 | BU103: 0.04605198617 | BV103: 0.04651715774 | BW103: 0.04698702802 | BX103: 0.04746164447 | BY103: 0.04843024946 | BZ103: 0.0494186219 | CA103: 0.0504271652 | CB103: 0.05145629102 | CC103: 0.05250641941 | CD103: 0.05413032929 | CE103: 0.05580446318 | CF103: 0.05753037441 | CG103: 0.05930966435 | CH103: 0.06178090036 | CI103: 0.06435510454 | CJ103: 0.06774221531 | CK103: 0.07130759506 | CL103: 0.07585914368 | CM103: 0.08070121668 | CN103: 0.08677550181 | CO103: 0.09330699119 | CP103: 0.1014206426 | CQ103: 0.1114512556 | CR103: 0.1238347284 | CS103: 0.1375941427 | CT103: 0.1528823808 | CU103: 0.169869312 | CV103: 0.18874368 | CW103: 0.2097152 | CX103: 0.262144 | CY103: 0.32768 | CZ103: 0.4096 | DA103: 0.512 | DB103: 0.64 | DC103: =1-$G103 -> 0.8
F104: 100 | G104: 0.2 | H104: 0.03230405691 | I104: 0.03230405691 | J104: 0.03230405691 | K104: 0.03230405691 | L104: 0.03230405691 | M104: 0.03230405691 | N104: 0.03231375104 | O104: 0.03232344807 | P104: 0.03233314802 | Q104: 0.03234285087 | R104: 0.03235579319 | S104: 0.03236874068 | T104: 0.03238169336 | U104: 0.03239465122 | V104: 0.03240761427 | W104: 0.03242382618 | X104: 0.0324400462 | Y104: 0.03245627434 | Z104: 0.0324725106 | AA104: 0.03248875497 | AB104: 0.03250500748 | AC104: 0.03252126811 | AD104: 0.03254079259 | AE104: 0.03256032878 | AF104: 0.03257987671 | AG104: 0.0326026986 | AH104: 0.03262553647 | AI104: 0.03264839035 | AJ104: 0.03267126023 | AK104: 0.03269741816 | AL104: 0.03272359704 | AM104: 0.03274979688 | AN104: 0.03277601769 | AO104: 0.0328022595 | AP104: 0.03282852232 | AQ104: 0.03285480616 | AR104: 0.03288111105 | AS104: 0.032907437 | AT104: 0.03293378403 | AU104: 0.03296345114 | AV104: 0.03299314497 | AW104: 0.03302617114 | AX104: 0.03305923037 | AY104: 0.03309232269 | AZ104: 0.03315863997 | BA104: 0.03322509015 | BB104: 0.0332916735 | BC104: 0.03335839028 | BD104: 0.03342524076 | BE104: 0.03352581821 | BF104: 0.03362669831 | BG104: 0.03372788196 | BH104: 0.0338633353 | BI104: 0.03399933263 | BJ104: 0.03413587613 | BK104: 0.0343074132 | BL104: 0.03447981226 | BM104: 0.03465307765 | BN104: 0.03486225115 | BO104: 0.03507268728 | BP104: 0.03531992677 | BQ104: 0.03556890913 | BR104: 0.03585575517 | BS104: 0.03614491449 | BT104: 0.03647317304 | BU104: 0.03684158893 | BV104: 0.03721372619 | BW104: 0.03758962242 | BX104: 0.03796931557 | BY104: 0.03874419957 | BZ104: 0.03953489752 | CA104: 0.04034173216 | CB104: 0.04116503282 | CC104: 0.04200513553 | CD104: 0.04330426343 | CE104: 0.04464357055 | CF104: 0.04602429953 | CG104: 0.04744773148 | CH104: 0.04942472029 | CI104: 0.05148408363 | CJ104: 0.05419377225 | CK104: 0.05704607605 | CL104: 0.06068731494 | CM104: 0.06456097334 | CN104: 0.06942040145 | CO104: 0.07464559295 | CP104: 0.08113651408 | CQ104: 0.08916100448 | CR104: 0.09906778276 | CS104: 0.1100753142 | CT104: 0.1223059046 | CU104: 0.1358954496 | CV104: 0.150994944 | CW104: 0.16777216 | CX104: 0.2097152 | CY104: 0.262144 | CZ104: 0.32768 | DA104: 0.4096 | DB104: 0.512 | DC104: 0.64 | DD104: =1-$G104 -> 0.8
F105: 101 | G105: 0.3 | H105: 0.02261283984 | I105: 0.02261283984 | J105: 0.02261283984 | K105: 0.02261283984 | L105: 0.02261283984 | M105: 0.02261283984 | N105: 0.02261962573 | O105: 0.02262641365 | P105: 0.02263320361 | Q105: 0.02263999561 | R105: 0.02264905523 | S105: 0.02265811848 | T105: 0.02266718535 | U105: 0.02267625586 | V105: 0.02268532999 | W105: 0.02269667833 | X105: 0.02270803234 | Y105: 0.02271939204 | Z105: 0.02273075742 | AA105: 0.02274212848 | AB105: 0.02275350523 | AC105: 0.02276488768 | AD105: 0.02277855481 | AE105: 0.02279223015 | AF105: 0.0228059137 | AG105: 0.02282188902 | AH105: 0.02283787553 | AI105: 0.02285387324 | AJ105: 0.02286988216 | AK105: 0.02288819272 | AL105: 0.02290651793 | AM105: 0.02292485782 | AN105: 0.02294321239 | AO105: 0.02296158165 | AP105: 0.02297996562 | AQ105: 0.02299836432 | AR105: 0.02301677774 | AS105: 0.0230352059 | AT105: 0.02305364882 | AU105: 0.0230744158 | AV105: 0.02309520148 | AW105: 0.0231183198 | AX105: 0.02314146126 | AY105: 0.02316462588 | AZ105: 0.02321104798 | BA105: 0.02325756311 | BB105: 0.02330417145 | BC105: 0.02335087319 | BD105: 0.02339766853 | BE105: 0.02346807275 | BF105: 0.02353868882 | BG105: 0.02360951737 | BH105: 0.02370433471 | BI105: 0.02379953284 | BJ105: 0.02389511329 | BK105: 0.02401518924 | BL105: 0.02413586858 | BM105: 0.02425715435 | BN105: 0.02440357581 | BO105: 0.02455088109 | BP105: 0.02472394874 | BQ105: 0.02489823639 | BR105: 0.02509902862 | BS105: 0.02530144014 | BT105: 0.02553122113 | BU105: 0.02578911225 | BV105: 0.02604960834 | BW105: 0.02631273569 | BX105: 0.0265785209 | BY105: 0.0271209397 | BZ105: 0.02767442826 | CA105: 0.02823921251 | CB105: 0.02881552297 | CC105: 0.02940359487 | CD105: 0.0303129844 | CE105: 0.03125049938 | CF105: 0.03221700967 | CG105: 0.03321341203 | CH105: 0.0345973042 | CI105: 0.03603885854 | CJ105: 0.03793564057 | CK105: 0.03993225323 | CL105: 0.04248112046 | CM105: 0.04519268134 | CN105: 0.04859428101 | CO105: 0.05225191507 | CP105: 0.05679555986 | CQ105: 0.06241270314 | CR105: 0.06934744793 | CS105: 0.07705271992 | CT105: 0.08561413325 | CU105: 0.09512681472 | CV105: 0.1056964608 | CW105: 0.117440512 | CX105: 0.14680064 | CY105: 0.1835008 | CZ105: 0.229376 | DA105: 0.28672 | DB105: 0.3584 | DC105: 0.448 | DD105: 0.56 | DE105: =1-$G105 -> 0.7
F106: 102 | G106: 0.3 | H106: 0.01582898789 | I106: 0.01582898789 | J106: 0.01582898789 | K106: 0.01582898789 | L106: 0.01582898789 | M106: 0.01582898789 | N106: 0.01583373801 | O106: 0.01583848955 | P106: 0.01584324253 | Q106: 0.01584799693 | R106: 0.01585433866 | S106: 0.01586068294 | T106: 0.01586702975 | U106: 0.0158733791 | V106: 0.01587973099 | W106: 0.01588767483 | X106: 0.01589562264 | Y106: =(1-$G106)*Y105 -> 0.01590357443 | Z106: 0.01591153019 | AA106: 0.01591948994 | AB106: 0.01592745366 | AC106: 0.01593542137 | AD106: 0.01594498837 | AE106: 0.0159545611 | AF106: 0.01596413959 | AG106: 0.01597532231 | AH106: 0.01598651287 | AI106: 0.01599771127 | AJ106: 0.01600891751 | AK106: 0.0160217349 | AL106: 0.01603456255 | AM106: 0.01604740047 | AN106: 0.01606024867 | AO106: 0.01607310716 | AP106: 0.01608597594 | AQ106: 0.01609885502 | AR106: 0.01611174442 | AS106: 0.01612464413 | AT106: 0.01613755417 | AU106: 0.01615209106 | AV106: 0.01616664103 | AW106: 0.01618282386 | AX106: 0.01619902288 | AY106: 0.01621523812 | AZ106: 0.01624773359 | BA106: 0.01628029417 | BB106: 0.01631292001 | BC106: 0.01634561124 | BD106: 0.01637836797 | BE106: 0.01642765093 | BF106: 0.01647708217 | BG106: 0.01652666216 | BH106: 0.0165930343 | BI106: 0.01665967299 | BJ106: 0.0167265793 | BK106: 0.01681063247 | BL106: 0.01689510801 | BM106: 0.01698000805 | BN106: 0.01708250307 | BO106: 0.01718561677 | BP106: 0.01730676411 | BQ106: 0.01742876547 | BR106: 0.01756932003 | BS106: 0.0177110081 | BT106: 0.01787185479 | BU106: 0.01805237858 | BV106: 0.01823472584 | BW106: 0.01841891499 | BX106: 0.01860496463 | BY106: 0.01898465779 | BZ106: 0.01937209978 | CA106: 0.01976744876 | CB106: 0.02017086608 | CC106: 0.02058251641 | CD106: 0.02121908908 | CE106: 0.02187534957 | CF106: 0.02255190677 | CG106: 0.02324938842 | CH106: 0.02421811294 | CI106: 0.02522720098 | CJ106: 0.0265549484 | CK106: 0.02795257726 | CL106: 0.02973678432 | CM106: 0.03163487694 | CN106: 0.03401599671 | CO106: 0.03657634055 | CP106: 0.0397568919 | CQ106: 0.0436888922 | CR106: 0.04854321355 | CS106: 0.05393690395 | CT106: 0.05992989327 | CU106: 0.0665887703 | CV106: 0.07398752256 | CW106: 0.0822083584 | CX106: 0.102760448 | CY106: 0.12845056 | CZ106: 0.1605632 | DA106: 0.200704 | DB106: 0.25088 | DC106: 0.3136 | DD106: 0.392 | DE106: 0.49 | DF106: =1-$G106 -> 0.7
F107: 103 | G107: 0.3 | H107: 0.01108029152 | I107: 0.01108029152 | J107: 0.01108029152 | K107: 0.01108029152 | L107: 0.01108029152 | M107: 0.01108029152 | N107: 0.01108361661 | O107: 0.01108694269 | P107: 0.01109026977 | Q107: 0.01109359785 | R107: 0.01109803706 | S107: 0.01110247805 | T107: 0.01110692082 | U107: 0.01111136537 | V107: 0.01111581169 | W107: 0.01112137238 | X107: 0.01112693585 | Y107: 0.0111325021 | Z107: 0.01113807113 | AA107: 0.01114364296 | AB107: 0.01114921756 | AC107: 0.01115479496 | AD107: 0.01116149186 | AE107: 0.01116819277 | AF107: 0.01117489771 | AG107: 0.01118272562 | AH107: 0.01119055901 | AI107: 0.01119839789 | AJ107: 0.01120624226 | AK107: 0.01121521443 | AL107: 0.01122419379 | AM107: 0.01123318033 | AN107: 0.01124217407 | AO107: 0.01125117501 | AP107: 0.01126018316 | AQ107: 0.01126919851 | AR107: 0.01127822109 | AS107: 0.01128725089 | AT107: 0.01129628792 | AU107: 0.01130646374 | AV107: 0.01131664872 | AW107: 0.0113279767 | AX107: 0.01133931602 | AY107: 0.01135066668 | AZ107: 0.01137341351 | BA107: 0.01139620592 | BB107: 0.01141904401 | BC107: 0.01144192787 | BD107: 0.01146485758 | BE107: 0.01149935565 | BF107: 0.01153395752 | BG107: 0.01156866351 | BH107: 0.01161512401 | BI107: 0.01166177109 | BJ107: 0.01170860551 | BK107: 0.01176744273 | BL107: 0.0118265756 | BM107: 0.01188600563 | BN107: 0.01195775215 | BO107: 0.01202993174 | BP107: 0.01211473488 | BQ107: 0.01220013583 | BR107: 0.01229852402 | BS107: 0.01239770567 | BT107: 0.01251029835 | BU107: 0.012636665 | BV107: 0.01276430808 | BW107: 0.01289324049 | BX107: 0.01302347524 | BY107: 0.01328926045 | BZ107: 0.01356046985 | CA107: 0.01383721413 | CB107: 0.01411960626 | CC107: 0.01440776149 | CD107: 0.01485336236 | CE107: 0.0153127447 | CF107: 0.01578633474 | CG107: 0.0162745719 | CH107: 0.01695267906 | CI107: 0.01765904069 | CJ107: 0.01858846388 | CK107: 0.01956680408 | CL107: 0.02081574903 | CM107: 0.02214441386 | CN107: 0.0238111977 | CO107: 0.02560343838 | CP107: 0.02782982433 | CQ107: 0.03058222454 | CR107: 0.03398024949 | CS107: 0.03775583276 | CT107: 0.04195092529 | CU107: 0.04661213921 | CV107: 0.05179126579 | CW107: 0.05754585088 | CX107: 0.0719323136 | CY107: 0.089915392 | CZ107: 0.11239424 | DA107: 0.1404928 | DB107: 0.175616 | DC107: 0.21952 | DD107: 0.2744 | DE107: 0.343 | DF107: =(1-$G107)*DF106 -> 0.49 | DG107: =1-$G107 -> 0.7
F108: 104 | G108: 0.3 | H108: 0.007756204064 | I108: 0.007756204064 | J108: 0.007756204064 | K108: 0.007756204064 | L108: 0.007756204064 | M108: 0.007756204064 | N108: 0.007758531624 | O108: 0.007760859882 | P108: 0.007763188838 | Q108: 0.007765518494 | R108: 0.007768625944 | S108: 0.007771734638 | T108: 0.007774844576 | U108: 0.007777955758 | V108: 0.007781068186 | W108: 0.007784960666 | X108: 0.007788855093 | Y108: 0.007792751469 | Z108: 0.007796649794 | AA108: 0.007800550069 | AB108: 0.007804452295 | AC108: 0.007808356474 | AD108: 0.0078130443 | AE108: 0.007817734941 | AF108: 0.007822428398 | AG108: 0.007827907934 | AH108: 0.007833391308 | AI108: 0.007838878523 | AJ108: 0.007844369581 | AK108: 0.007850650101 | AL108: 0.00785693565 | AM108: 0.007863226231 | AN108: 0.007869521848 | AO108: 0.007875822506 | AP108: 0.007882128209 | AQ108: 0.00788843896 | AR108: 0.007894754764 | AS108: 0.007901075624 | AT108: 0.007907401546 | AU108: 0.007914524618 | AV108: 0.007921654106 | AW108: 0.00792958369 | AX108: 0.007937521211 | AY108: 0.007945466678 | AZ108: 0.007961389457 | BA108: 0.007977344145 | BB108: 0.007993330807 | BC108: 0.008009349506 | BD108: 0.008025400306 | BE108: 0.008049548953 | BF108: 0.008073770264 | BG108: 0.008098064457 | BH108: 0.008130586805 | BI108: 0.008163239764 | BJ108: 0.008196023859 | BK108: 0.008237209909 | BL108: 0.008278602923 | BM108: 0.008320203943 | BN108: 0.008370426502 | BO108: 0.008420952215 | BP108: 0.008480314416 | BQ108: 0.008540095082 | BR108: 0.008608966816 | BS108: 0.008678393968 | BT108: 0.008757208848 | BU108: 0.008845665503 | BV108: 0.008935015659 | BW108: 0.009025268343 | BX108: 0.00911643267 | BY108: 0.009302482316 | BZ108: 0.009492328894 | CA108: 0.009686049892 | CB108: 0.009883724379 | CC108: 0.01008543304 | CD108: 0.01039735365 | CE108: 0.01071892129 | CF108: 0.01105043432 | CG108: 0.01139220033 | CH108: 0.01186687534 | CI108: 0.01236132848 | CJ108: 0.01301192472 | CK108: 0.01369676286 | CL108: 0.01457102432 | CM108: 0.0155010897 | CN108: 0.01666783839 | CO108: 0.01792240687 | CP108: 0.01948087703 | CQ108: 0.02140755718 | CR108: 0.02378617464 | CS108: 0.02642908293 | CT108: 0.0293656477 | CU108: 0.03262849745 | CV108: 0.03625388605 | CW108: 0.04028209562 | CX108: 0.05035261952 | CY108: 0.0629407744 | CZ108: 0.078675968 | DA108: 0.09834496 | DB108: 0.1229312 | DC108: 0.153664 | DD108: 0.19208 | DE108: 0.2401 | DF108: 0.343 | DG108: 0.49 | DH108: =1-$G108 -> 0.7
F109: 105 | G109: 0.4 | H109: 0.004653722439 | I109: 0.004653722439 | J109: 0.004653722439 | K109: 0.004653722439 | L109: 0.004653722439 | M109: 0.004653722439 | N109: 0.004655118974 | O109: 0.004656515929 | P109: 0.004657913303 | Q109: 0.004659311096 | R109: 0.004661175567 | S109: 0.004663040783 | T109: 0.004664906746 | U109: 0.004666773455 | V109: 0.004668640911 | W109: 0.0046709764 | X109: 0.004673313056 | Y109: 0.004675650882 | Z109: 0.004677989876 | AA109: 0.004680330041 | AB109: 0.004682671377 | AC109: 0.004685013884 | AD109: 0.00468782658 | AE109: 0.004690640965 | AF109: 0.004693457039 | AG109: 0.00469674476 | AH109: 0.004700034785 | AI109: 0.004703327114 | AJ109: 0.004706621749 | AK109: 0.004710390061 | AL109: 0.00471416139 | AM109: 0.004717935738 | AN109: 0.004721713109 | AO109: 0.004725493504 | AP109: 0.004729276925 | AQ109: 0.004733063376 | AR109: 0.004736852858 | AS109: 0.004740645375 | AT109: 0.004744440927 | AU109: 0.004748714771 | AV109: 0.004752992464 | AW109: 0.004757750214 | AX109: 0.004762512727 | AY109: 0.004767280007 | AZ109: 0.004776833674 | BA109: 0.004786406487 | BB109: 0.004795998484 | BC109: 0.004805609704 | BD109: 0.004815240184 | BE109: 0.004829729372 | BF109: 0.004844262158 | BG109: 0.004858838674 | BH109: 0.004878352083 | BI109: 0.004897943858 | BJ109: 0.004917614316 | BK109: 0.004942325945 | BL109: 0.004967161754 | BM109: 0.004992122366 | BN109: 0.005022255901 | BO109: 0.005052571329 | BP109: 0.00508818865 | BQ109: 0.005124057049 | BR109: 0.00516538009 | BS109: 0.005207036381 | BT109: 0.005254325309 | BU109: 0.005307399302 | BV109: 0.005361009396 | BW109: 0.005415161006 | BX109: 0.005469859602 | BY109: 0.00558148939 | BZ109: 0.005695397336 | CA109: 0.005811629935 | CB109: 0.005930234627 | CC109: 0.006051259824 | CD109: 0.00623841219 | CE109: 0.006431352773 | CF109: 0.006630260591 | CG109: 0.006835320196 | CH109: 0.007120125205 | CI109: 0.007416797088 | CJ109: 0.00780715483 | CK109: 0.008218057715 | CL109: 0.008742614591 | CM109: 0.00930065382 | CN109: 0.01000070303 | CO109: 0.01075344412 | CP109: 0.01168852622 | CQ109: 0.01284453431 | CR109: 0.01427170478 | CS109: 0.01585744976 | CT109: 0.01761938862 | CU109: 0.01957709847 | CV109: 0.02175233163 | CW109: 0.02416925737 | CX109: 0.03021157171 | CY109: 0.03776446464 | CZ109: 0.0472055808 | DA109: 0.059006976 | DB109: 0.07375872 | DC109: 0.0921984 | DD109: 0.115248 | DE109: 0.14406 | DF109: 0.2058 | DG109: 0.294 | DH109: 0.42 | DI109: =1-$G109 -> 0.6
F110: 106 | G110: 0.4 | H110: 0.002792233463 | I110: 0.002792233463 | J110: 0.002792233463 | K110: 0.002792233463 | L110: 0.002792233463 | M110: 0.002792233463 | N110: 0.002793071385 | O110: 0.002793909557 | P110: 0.002794747982 | Q110: 0.002795586658 | R110: 0.00279670534 | S110: 0.00279782447 | T110: 0.002798944047 | U110: 0.002800064073 | V110: 0.002801184547 | W110: 0.00280258584 | X110: 0.002803987834 | Y110: 0.002805390529 | Z110: 0.002806793926 | AA110: 0.002808198025 | AB110: 0.002809602826 | AC110: 0.00281100833 | AD110: 0.002812695948 | AE110: 0.002814384579 | AF110: 0.002816074223 | AG110: 0.002818046856 | AH110: 0.002820020871 | AI110: 0.002821996268 | AJ110: 0.002823973049 | AK110: 0.002826234036 | AL110: 0.002828496834 | AM110: 0.002830761443 | AN110: 0.002833027865 | AO110: 0.002835296102 | AP110: 0.002837566155 | AQ110: 0.002839838026 | AR110: 0.002842111715 | AS110: 0.002844387225 | AT110: 0.002846664556 | AU110: 0.002849228862 | AV110: 0.002851795478 | AW110: 0.002854650128 | AX110: 0.002857507636 | AY110: 0.002860368004 | AZ110: 0.002866100204 | BA110: 0.002871843892 | BB110: 0.00287759909 | BC110: 0.002883365822 | BD110: 0.00288914411 | BE110: 0.002897837623 | BF110: 0.002906557295 | BG110: 0.002915303205 | BH110: 0.00292701125 | BI110: 0.002938766315 | BJ110: 0.002950568589 | BK110: 0.002965395567 | BL110: 0.002980297052 | BM110: 0.00299527342 | BN110: 0.003013353541 | BO110: 0.003031542798 | BP110: 0.00305291319 | BQ110: 0.003074434229 | BR110: 0.003099228054 | BS110: 0.003124221829 | BT110: 0.003152595185 | BU110: 0.003184439581 | BV110: 0.003216605637 | BW110: 0.003249096603 | BX110: 0.003281915761 | BY110: 0.003348893634 | BZ110: 0.003417238402 | CA110: 0.003486977961 | CB110: 0.003558140776 | CC110: 0.003630755894 | CD110: 0.003743047314 | CE110: 0.003858811664 | CF110: 0.003978156354 | CG110: 0.004101192118 | CH110: 0.004272075123 | CI110: 0.004450078253 | CJ110: 0.004684292898 | CK110: 0.004930834629 | CL110: 0.005245568755 | CM110: 0.005580392292 | CN110: 0.006000421819 | CO110: 0.006452066472 | CP110: 0.007013115731 | CQ110: 0.007706720583 | CR110: 0.008563022871 | CS110: 0.009514469856 | CT110: 0.01057163317 | CU110: 0.01174625908 | CV110: 0.01305139898 | CW110: 0.01450155442 | CX110: 0.01812694303 | CY110: 0.02265867878 | CZ110: 0.02832334848 | DA110: 0.0354041856 | DB110: 0.044255232 | DC110: 0.05531904 | DD110: 0.0691488 | DE110: 0.086436 | DF110: 0.12348 | DG110: 0.1764 | DH110: 0.252 | DI110: 0.36 | DJ110: =1-$G110 -> 0.6
F111: 107 | G111: 0.4 | H111: 0.001675340078 | I111: 0.001675340078 | J111: 0.001675340078 | K111: 0.001675340078 | L111: 0.001675340078 | M111: 0.001675340078 | N111: 0.001675842831 | O111: 0.001676345734 | P111: 0.001676848789 | Q111: 0.001677351995 | R111: 0.001678023204 | S111: 0.001678694682 | T111: 0.001679366428 | U111: 0.001680038444 | V111: 0.001680710728 | W111: 0.001681551504 | X111: 0.0016823927 | Y111: 0.001683234317 | Z111: 0.001684076356 | AA111: 0.001684918815 | AB111: 0.001685761696 | AC111: 0.001686604998 | AD111: 0.001687617569 | AE111: 0.001688630747 | AF111: 0.001689644534 | AG111: 0.001690828114 | AH111: 0.001692012522 | AI111: 0.001693197761 | AJ111: 0.00169438383 | AK111: 0.001695740422 | AL111: 0.0016970981 | AM111: 0.001698456866 | AN111: 0.001699816719 | AO111: 0.001701177661 | AP111: 0.001702539693 | AQ111: 0.001703902815 | AR111: 0.001705267029 | AS111: 0.001706632335 | AT111: 0.001707998734 | AU111: 0.001709537317 | AV111: 0.001711077287 | AW111: 0.001712790077 | AX111: 0.001714504582 | AY111: 0.001716220802 | AZ111: 0.001719660123 | BA111: 0.001723106335 | BB111: 0.001726559454 | BC111: 0.001730019493 | BD111: 0.001733486466 | BE111: 0.001738702574 | BF111: 0.001743934377 | BG111: 0.001749181923 | BH111: 0.00175620675 | BI111: 0.001763259789 | BJ111: 0.001770341154 | BK111: 0.00177923734 | BL111: 0.001788178231 | BM111: 0.001797164052 | BN111: 0.001808012124 | BO111: 0.001818925679 | BP111: 0.001831747914 | BQ111: 0.001844660538 | BR111: 0.001859536832 | BS111: 0.001874533097 | BT111: 0.001891557111 | BU111: 0.001910663749 | BV111: 0.001929963382 | BW111: 0.001949457962 | BX111: 0.001969149457 | BY111: 0.00200933618 | BZ111: 0.002050343041 | CA111: 0.002092186777 | CB111: 0.002134884466 | CC111: 0.002178453537 | CD111: 0.002245828388 | CE111: 0.002315286998 | CF111: 0.002386893813 | CG111: 0.002460715271 | CH111: 0.002563245074 | CI111: 0.002670046952 | CJ111: 0.002810575739 | CK111: 0.002958500778 | CL111: 0.003147341253 | CM111: 0.003348235375 | CN111: 0.003600253092 | CO111: 0.003871239883 | CP111: 0.004207869439 | CQ111: 0.00462403235 | CR111: 0.005137813722 | CS111: 0.005708681914 | CT111: 0.006342979904 | CU111: 0.007047755449 | CV111: 0.007830839388 | CW111: 0.008700932653 | CX111: 0.01087616582 | CY111: 0.01359520727 | CZ111: 0.01699400909 | DA111: 0.02124251136 | DB111: 0.0265531392 | DC111: 0.033191424 | DD111: 0.04148928 | DE111: 0.0518616 | DF111: 0.074088 | DG111: 0.10584 | DH111: 0.1512 | DI111: 0.216 | DJ111: 0.36 | DK111: =1-$G111 -> 0.6
F112: 108 | G112: 0.5 | H112: 0.0008376700389 | I112: 0.0008376700389 | J112: 0.0008376700389 | K112: 0.0008376700389 | L112: 0.0008376700389 | M112: 0.0008376700389 | N112: 0.0008379214154 | O112: 0.0008381728672 | P112: 0.0008384243945 | Q112: 0.0008386759973 | R112: 0.000839011602 | S112: 0.0008393473409 | T112: 0.0008396832142 | U112: 0.0008400192219 | V112: 0.000840355364 | W112: 0.0008407757519 | X112: 0.0008411963501 | Y112: 0.0008416171587 | Z112: 0.0008420381778 | AA112: 0.0008424594075 | AB112: 0.0008428808479 | AC112: 0.0008433024991 | AD112: 0.0008438087844 | AE112: 0.0008443153736 | AF112: 0.000844822267 | AG112: 0.0008454140568 | AH112: 0.0008460062612 | AI112: 0.0008465988804 | AJ112: 0.0008471919148 | AK112: 0.0008478702109 | AL112: 0.0008485490502 | AM112: 0.0008492284329 | AN112: 0.0008499083596 | AO112: 0.0008505888307 | AP112: 0.0008512698466 | AQ112: 0.0008519514077 | AR112: 0.0008526335145 | AS112: 0.0008533161674 | AT112: 0.0008539993669 | AU112: 0.0008547686587 | AV112: 0.0008555386435 | AW112: 0.0008563950385 | AX112: 0.0008572522908 | AY112: 0.0008581104012 | AZ112: 0.0008598300613 | BA112: 0.0008615531677 | BB112: 0.0008632797271 | BC112: 0.0008650097466 | BD112: 0.0008667432331 | BE112: 0.000869351287 | BF112: 0.0008719671885 | BG112: 0.0008745909614 | BH112: 0.0008781033749 | BI112: 0.0008816298945 | BJ112: 0.0008851705768 | BK112: 0.0008896186701 | BL112: 0.0008940891157 | BM112: 0.0008985820259 | BN112: 0.0009040060622 | BO112: 0.0009094628393 | BP112: 0.000915873957 | BQ112: 0.0009223302688 | BR112: 0.0009297684162 | BS112: 0.0009372665486 | BT112: 0.0009457785556 | BU112: 0.0009553318743 | BV112: 0.0009649816912 | BW112: 0.000974728981 | BX112: 0.0009845747283 | BY112: 0.00100466809 | BZ112: 0.001025171521 | CA112: 0.001046093388 | CB112: 0.001067442233 | CC112: 0.001089226768 | CD112: 0.001122914194 | CE112: 0.001157643499 | CF112: 0.001193446906 | CG112: 0.001230357635 | CH112: 0.001281622537 | CI112: 0.001335023476 | CJ112: 0.001405287869 | CK112: 0.001479250389 | CL112: 0.001573670626 | CM112: 0.001674117688 | CN112: 0.001800126546 | CO112: 0.001935619942 | CP112: 0.002103934719 | CQ112: 0.002312016175 | CR112: 0.002568906861 | CS112: 0.002854340957 | CT112: =(1-$G112)*CT111 -> 0.003171489952 | CU112: 0.003523877724 | CV112: 0.003915419694 | CW112: 0.004350466327 | CX112: 0.005438082908 | CY112: 0.006797603635 | CZ112: 0.008497004544 | DA112: 0.01062125568 | DB112: 0.0132765696 | DC112: 0.016595712 | DD112: 0.02074464 | DE112: 0.0259308 | DF112: 0.037044 | DG112: 0.05292 | DH112: 0.0756 | DI112: 0.108 | DJ112: 0.18 | DK112: 0.3 | DL112: =1-$G112 -> 0.5
F113: 109 | G113: 0.5 | H113: 0.0004188350195 | I113: 0.0004188350195 | J113: 0.0004188350195 | K113: 0.0004188350195 | L113: 0.0004188350195 | M113: 0.0004188350195 | N113: 0.0004189607077 | O113: 0.0004190864336 | P113: 0.0004192121973 | Q113: 0.0004193379987 | R113: 0.000419505801 | S113: 0.0004196736705 | T113: 0.0004198416071 | U113: 0.0004200096109 | V113: 0.000420177682 | W113: 0.000420387876 | X113: 0.000420598175 | Y113: 0.0004208085793 | Z113: 0.0004210190889 | AA113: 0.0004212297037 | AB113: 0.0004214404239 | AC113: 0.0004216512496 | AD113: 0.0004219043922 | AE113: 0.0004221576868 | AF113: 0.0004224111335 | AG113: 0.0004227070284 | AH113: 0.0004230031306 | AI113: 0.0004232994402 | AJ113: 0.0004235959574 | AK113: 0.0004239351055 | AL113: 0.0004242745251 | AM113: 0.0004246142165 | AN113: 0.0004249541798 | AO113: 0.0004252944153 | AP113: 0.0004256349233 | AQ113: 0.0004259757038 | AR113: 0.0004263167572 | AS113: 0.0004266580837 | AT113: 0.0004269996835 | AU113: 0.0004273843294 | AV113: =(1-$G113)*AV112 -> 0.0004277693217 | AW113: 0.0004281975193 | AX113: 0.0004286261454 | AY113: 0.0004290552006 | AZ113: 0.0004299150307 | BA113: 0.0004307765838 | BB113: 0.0004316398636 | BC113: 0.0004325048733 | BD113: 0.0004333716165 | BE113: 0.0004346756435 | BF113: 0.0004359835943 | BG113: 0.0004372954807 | BH113: 0.0004390516875 | BI113: 0.0004408149472 | BJ113: 0.0004425852884 | BK113: 0.0004448093351 | BL113: 0.0004470445579 | BM113: 0.0004492910129 | BN113: 0.0004520030311 | BO113: 0.0004547314196 | BP113: 0.0004579369785 | BQ113: 0.0004611651344 | BR113: 0.0004648842081 | BS113: 0.0004686332743 | BT113: 0.0004728892778 | BU113: 0.0004776659372 | BV113: 0.0004824908456 | BW113: 0.0004873644905 | BX113: 0.0004922873642 | BY113: 0.0005023340451 | BZ113: 0.0005125857603 | CA113: 0.0005230466941 | CB113: 0.0005337211165 | CC113: 0.0005446133842 | CD113: 0.0005614570971 | CE113: 0.0005788217496 | CF113: 0.0005967234531 | CG113: 0.0006151788177 | CH113: 0.0006408112684 | CI113: 0.0006675117379 | CJ113: 0.0007026439347 | CK113: 0.0007396251944 | CL113: 0.0007868353132 | CM113: 0.0008370588438 | CN113: 0.0009000632729 | CO113: 0.0009678099709 | CP113: 0.00105196736 | CQ113: 0.001156008088 | CR113: 0.001284453431 | CS113: 0.001427170478 | CT113: 0.001585744976 | CU113: 0.001761938862 | CV113: 0.001957709847 | CW113: 0.002175233163 | CX113: 0.002719041454 | CY113: 0.003398801818 | CZ113: 0.004248502272 | DA113: 0.00531062784 | DB113: 0.0066382848 | DC113: 0.008297856 | DD113: 0.01037232 | DE113: 0.0129654 | DF113: 0.018522 | DG113: 0.02646 | DH113: 0.0378 | DI113: 0.054 | DJ113: 0.09 | DK113: 0.15 | DL113: 0.25 | DM113: =1-$G113 -> 0.5
F114: 110 | G114: 0.6 | H114: 0.0001675340078 | I114: 0.0001675340078 | J114: 0.0001675340078 | K114: 0.0001675340078 | L114: 0.0001675340078 | M114: 0.0001675340078 | N114: 0.0001675842831 | O114: 0.0001676345734 | P114: 0.0001676848789 | Q114: 0.0001677351995 | R114: 0.0001678023204 | S114: 0.0001678694682 | T114: 0.0001679366428 | U114: 0.0001680038444 | V114: 0.0001680710728 | W114: 0.0001681551504 | X114: 0.00016823927 | Y114: 0.0001683234317 | Z114: 0.0001684076356 | AA114: 0.0001684918815 | AB114: 0.0001685761696 | AC114: 0.0001686604998 | AD114: 0.0001687617569 | AE114: 0.0001688630747 | AF114: 0.0001689644534 | AG114: 0.0001690828114 | AH114: 0.0001692012522 | AI114: 0.0001693197761 | AJ114: 0.000169438383 | AK114: 0.0001695740422 | AL114: 0.00016970981 | AM114: 0.0001698456866 | AN114: 0.0001699816719 | AO114: 0.0001701177661 | AP114: 0.0001702539693 | AQ114: 0.0001703902815 | AR114: 0.0001705267029 | AS114: 0.0001706632335 | AT114: 0.0001707998734 | AU114: 0.0001709537317 | AV114: 0.0001711077287 | AW114: 0.0001712790077 | AX114: 0.0001714504582 | AY114: 0.0001716220802 | AZ114: 0.0001719660123 | BA114: 0.0001723106335 | BB114: 0.0001726559454 | BC114: 0.0001730019493 | BD114: 0.0001733486466 | BE114: 0.0001738702574 | BF114: 0.0001743934377 | BG114: 0.0001749181923 | BH114: 0.000175620675 | BI114: 0.0001763259789 | BJ114: 0.0001770341154 | BK114: 0.000177923734 | BL114: 0.0001788178231 | BM114: 0.0001797164052 | BN114: 0.0001808012124 | BO114: 0.0001818925679 | BP114: 0.0001831747914 | BQ114: 0.0001844660538 | BR114: 0.0001859536832 | BS114: 0.0001874533097 | BT114: 0.0001891557111 | BU114: 0.0001910663749 | BV114: 0.0001929963382 | BW114: 0.0001949457962 | BX114: 0.0001969149457 | BY114: 0.000200933618 | BZ114: 0.0002050343041 | CA114: 0.0002092186777 | CB114: 0.0002134884466 | CC114: 0.0002178453537 | CD114: 0.0002245828388 | CE114: 0.0002315286998 | CF114: 0.0002386893813 | CG114: 0.0002460715271 | CH114: 0.0002563245074 | CI114: 0.0002670046952 | CJ114: 0.0002810575739 | CK114: 0.0002958500778 | CL114: 0.0003147341253 | CM114: 0.0003348235375 | CN114: 0.0003600253092 | CO114: 0.0003871239883 | CP114: 0.0004207869439 | CQ114: 0.000462403235 | CR114: 0.0005137813722 | CS114: 0.0005708681914 | CT114: 0.0006342979904 | CU114: 0.0007047755449 | CV114: 0.0007830839388 | CW114: 0.0008700932653 | CX114: 0.001087616582 | CY114: 0.001359520727 | CZ114: 0.001699400909 | DA114: 0.002124251136 | DB114: 0.00265531392 | DC114: 0.0033191424 | DD114: 0.004148928 | DE114: 0.00518616 | DF114: 0.0074088 | DG114: 0.010584 | DH114: 0.01512 | DI114: 0.0216 | DJ114: 0.036 | DK114: 0.06 | DL114: 0.1 | DM114: 0.2 | DN114: =1-$G114 -> 0.4
F115: 111 | G115: 0.7 | H115: 5.026020234e-05 | I115: 5.026020234e-05 | J115: 5.026020234e-05 | K115: 5.026020234e-05 | L115: 5.026020234e-05 | M115: 5.026020234e-05 | N115: 5.027528492e-05 | O115: 5.029037203e-05 | P115: 5.030546367e-05 | Q115: 5.032055984e-05 | R115: 5.034069612e-05 | S115: 5.036084046e-05 | T115: 5.038099285e-05 | U115: 5.040115331e-05 | V115: 5.042132184e-05 | W115: 5.044654512e-05 | X115: 5.047178101e-05 | Y115: 5.049702952e-05 | Z115: 5.052229067e-05 | AA115: 5.054756445e-05 | AB115: 5.057285087e-05 | AC115: 5.059814995e-05 | AD115: 5.062852706e-05 | AE115: 5.065892242e-05 | AF115: 5.068933602e-05 | AG115: 5.072484341e-05 | AH115: 5.076037567e-05 | AI115: 5.079593283e-05 | AJ115: 5.083151489e-05 | AK115: 5.087221266e-05 | AL115: 5.091294301e-05 | AM115: 5.095370598e-05 | AN115: 5.099450158e-05 | AO115: 5.103532984e-05 | AP115: 5.107619079e-05 | AQ115: 5.111708446e-05 | AR115: 5.115801087e-05 | AS115: 5.119897005e-05 | AT115: 5.123996202e-05 | AU115: 5.128611952e-05 | AV115: 5.133231861e-05 | AW115: 5.138370231e-05 | AX115: 5.143513745e-05 | AY115: 5.148662407e-05 | AZ115: 5.158980368e-05 | BA115: 5.169319006e-05 | BB115: 5.179678363e-05 | BC115: 5.19005848e-05 | BD115: 5.200459399e-05 | BE115: 5.216107722e-05 | BF115: 5.231803131e-05 | BG115: 5.247545768e-05 | BH115: 5.268620249e-05 | BI115: 5.289779367e-05 | BJ115: 5.311023461e-05 | BK115: 5.337712021e-05 | BL115: 5.364534694e-05 | BM115: 5.391492155e-05 | BN115: 5.424036373e-05 | BO115: 5.456777036e-05 | BP115: 5.495243742e-05 | BQ115: 5.533981613e-05 | BR115: 5.578610497e-05 | BS115: 5.623599291e-05 | BT115: 5.674671333e-05 | BU115: 5.731991246e-05 | BV115: 5.789890147e-05 | BW115: 5.848373886e-05 | BX115: 5.90744837e-05 | BY115: =(1-$G115)*BY114 -> 6.028008541e-05 | BZ115: 6.151029123e-05 | CA115: 6.27656033e-05 | CB115: 6.404653398e-05 | CC115: 6.53536061e-05 | CD115: 6.737485165e-05 | CE115: 6.945860995e-05 | CF115: 7.160681438e-05 | CG115: 7.382145812e-05 | CH115: 7.689735221e-05 | CI115: 8.010140855e-05 | CJ115: 8.431727216e-05 | CK115: 8.875502333e-05 | CL115: 9.442023758e-05 | CM115: 0.0001004470613 | CN115: 0.0001080075927 | CO115: 0.0001161371965 | CP115: 0.0001262360832 | CQ115: 0.0001387209705 | CR115: 0.0001541344117 | CS115: 0.0001712604574 | CT115: 0.0001902893971 | CU115: 0.0002114326635 | CV115: 0.0002349251816 | CW115: 0.0002610279796 | CX115: 0.0003262849745 | CY115: 0.0004078562181 | CZ115: 0.0005098202726 | DA115: 0.0006372753408 | DB115: 0.000796594176 | DC115: 0.00099574272 | DD115: 0.0012446784 | DE115: 0.001555848 | DF115: 0.00222264 | DG115: 0.0031752 | DH115: 0.004536 | DI115: 0.00648 | DJ115: 0.0108 | DK115: 0.018 | DL115: 0.03 | DM115: 0.06 | DN115: 0.12 | DO115: =1-$G115 -> 0.3
F116: 112 | G116: 0.7 | H116: 1.50780607e-05 | I116: 1.50780607e-05 | J116: 1.50780607e-05 | K116: 1.50780607e-05 | L116: 1.50780607e-05 | M116: 1.50780607e-05 | N116: 1.508258548e-05 | O116: 1.508711161e-05 | P116: 1.50916391e-05 | Q116: 1.509616795e-05 | R116: 1.510220884e-05 | S116: 1.510825214e-05 | T116: 1.511429786e-05 | U116: 1.512034599e-05 | V116: 1.512639655e-05 | W116: 1.513396353e-05 | X116: 1.51415343e-05 | Y116: 1.514910886e-05 | Z116: 1.51566872e-05 | AA116: 1.516426933e-05 | AB116: 1.517185526e-05 | AC116: 1.517944498e-05 | AD116: 1.518855812e-05 | AE116: 1.519767673e-05 | AF116: 1.520680081e-05 | AG116: 1.521745302e-05 | AH116: 1.52281127e-05 | AI116: 1.523877985e-05 | AJ116: 1.524945447e-05 | AK116: 1.52616638e-05 | AL116: 1.52738829e-05 | AM116: 1.528611179e-05 | AN116: 1.529835047e-05 | AO116: 1.531059895e-05 | AP116: 1.532285724e-05 | AQ116: 1.533512534e-05 | AR116: 1.534740326e-05 | AS116: 1.535969101e-05 | AT116: 1.53719886e-05 | AU116: 1.538583586e-05 | AV116: 1.539969558e-05 | AW116: 1.541511069e-05 | AX116: 1.543054123e-05 | AY116: 1.544598722e-05 | AZ116: 1.54769411e-05 | BA116: 1.550795702e-05 | BB116: 1.553903509e-05 | BC116: 1.557017544e-05 | BD116: 1.56013782e-05 | BE116: 1.564832317e-05 | BF116: 1.569540939e-05 | BG116: 1.574263731e-05 | BH116: 1.580586075e-05 | BI116: 1.58693381e-05 | BJ116: 1.593307038e-05 | BK116: 1.601313606e-05 | BL116: 1.609360408e-05 | BM116: 1.617447647e-05 | BN116: 1.627210912e-05 | BO116: 1.637033111e-05 | BP116: 1.648573123e-05 | BQ116: 1.660194484e-05 | BR116: 1.673583149e-05 | BS116: 1.687079787e-05 | BT116: 1.7024014e-05 | BU116: 1.719597374e-05 | BV116: 1.736967044e-05 | BW116: 1.754512166e-05 | BX116: 1.772234511e-05 | BY116: 1.808402562e-05 | BZ116: 1.845308737e-05 | CA116: 1.882968099e-05 | CB116: 1.921396019e-05 | CC116: 1.960608183e-05 | CD116: 2.021245549e-05 | CE116: 2.083758298e-05 | CF116: 2.148204431e-05 | CG116: 2.214643744e-05 | CH116: 2.306920566e-05 | CI116: 2.403042257e-05 | CJ116: 2.529518165e-05 | CK116: 2.6626507e-05 | CL116: 2.832607127e-05 | CM116: 3.013411838e-05 | CN116: 3.240227782e-05 | CO116: 3.484115895e-05 | CP116: 3.787082495e-05 | CQ116: 4.161629115e-05 | CR116: 4.62403235e-05 | CS116: 5.137813722e-05 | CT116: 5.708681914e-05 | CU116: 6.342979904e-05 | CV116: 7.047755449e-05 | CW116: 7.830839388e-05 | CX116: 9.788549235e-05 | CY116: 0.0001223568654 | CZ116: 0.0001529460818 | DA116: 0.0001911826022 | DB116: 0.0002389782528 | DC116: 0.000298722816 | DD116: 0.00037340352 | DE116: =(1-$G116)*DE115 -> 0.0004667544 | DF116: 0.000666792 | DG116: 0.00095256 | DH116: 0.0013608 | DI116: 0.001944 | DJ116: 0.00324 | DK116: 0.0054 | DL116: 0.009 | DM116: 0.018 | DN116: 0.036 | DO116: 0.09 | DP116: =1-$G116 -> 0.3
F117: 113 | G117: 0.8 | H117: 3.01561214e-06 | I117: 3.01561214e-06 | J117: 3.01561214e-06 | K117: 3.01561214e-06 | L117: 3.01561214e-06 | M117: 3.01561214e-06 | N117: 3.016517095e-06 | O117: 3.017422322e-06 | P117: 3.01832782e-06 | Q117: 3.01923359e-06 | R117: 3.020441767e-06 | S117: 3.021650427e-06 | T117: 3.022859571e-06 | U117: 3.024069199e-06 | V117: 3.025279311e-06 | W117: 3.026792707e-06 | X117: 3.02830686e-06 | Y117: 3.029821771e-06 | Z117: 3.03133744e-06 | AA117: 3.032853867e-06 | AB117: 3.034371052e-06 | AC117: 3.035888997e-06 | AD117: 3.037711624e-06 | AE117: 3.039535345e-06 | AF117: 3.041360161e-06 | AG117: 3.043490605e-06 | AH117: 3.04562254e-06 | AI117: 3.04775597e-06 | AJ117: 3.049890893e-06 | AK117: 3.052332759e-06 | AL117: 3.054776581e-06 | AM117: 3.057222359e-06 | AN117: 3.059670095e-06 | AO117: 3.06211979e-06 | AP117: 3.064571448e-06 | AQ117: 3.067025068e-06 | AR117: 3.069480652e-06 | AS117: 3.071938203e-06 | AT117: 3.074397721e-06 | AU117: 3.077167171e-06 | AV117: 3.079939117e-06 | AW117: 3.083022139e-06 | AX117: 3.086108247e-06 | AY117: 3.089197444e-06 | AZ117: 3.095388221e-06 | BA117: 3.101591404e-06 | BB117: 3.107807018e-06 | BC117: 3.114035088e-06 | BD117: 3.120275639e-06 | BE117: 3.129664633e-06 | BF117: 3.139081879e-06 | BG117: 3.148527461e-06 | BH117: 3.16117215e-06 | BI117: 3.17386762e-06 | BJ117: 3.186614076e-06 | BK117: 3.202627213e-06 | BL117: 3.218720817e-06 | BM117: 3.234895293e-06 | BN117: 3.254421824e-06 | BO117: 3.274066221e-06 | BP117: 3.297146245e-06 | BQ117: 3.320388968e-06 | BR117: 3.347166298e-06 | BS117: 3.374159575e-06 | BT117: 3.4048028e-06 | BU117: 3.439194747e-06 | BV117: 3.473934088e-06 | BW117: 3.509024332e-06 | BX117: 3.544469022e-06 | BY117: 3.616805124e-06 | BZ117: 3.690617474e-06 | CA117: 3.765936198e-06 | CB117: 3.842792039e-06 | CC117: 3.921216366e-06 | CD117: 4.042491099e-06 | CE117: 4.167516597e-06 | CF117: 4.296408863e-06 | CG117: 4.429287487e-06 | CH117: 4.613841133e-06 | CI117: 4.806084513e-06 | CJ117: 5.05903633e-06 | CK117: 5.3253014e-06 | CL117: 5.665214255e-06 | CM117: 6.026823675e-06 | CN117: 6.480455565e-06 | CO117: 6.96823179e-06 | CP117: 7.574164989e-06 | CQ117: 8.32325823e-06 | CR117: 9.2480647e-06 | CS117: 1.027562744e-05 | CT117: 1.141736383e-05 | CU117: 1.268595981e-05 | CV117: 1.40955109e-05 | CW117: 1.566167878e-05 | CX117: 1.957709847e-05 | CY117: 2.447137309e-05 | CZ117: 3.058921636e-05 | DA117: 3.823652045e-05 | DB117: 4.779565056e-05 | DC117: 5.97445632e-05 | DD117: 7.4680704e-05 | DE117: 9.335088e-05 | DF117: 0.0001333584 | DG117: 0.000190512 | DH117: 0.00027216 | DI117: 0.0003888 | DJ117: 0.000648 | DK117: 0.00108 | DL117: 0.0018 | DM117: 0.0036 | DN117: 0.0072 | DO117: 0.018 | DP117: 0.06 | DQ117: =1-$G117 -> 0.2
F118: 114 | G118: 0.9 | H118: 3.01561214e-07 | I118: 3.01561214e-07 | J118: 3.01561214e-07 | K118: 3.01561214e-07 | L118: 3.01561214e-07 | M118: 3.01561214e-07 | N118: 3.016517095e-07 | O118: 3.017422322e-07 | P118: 3.01832782e-07 | Q118: 3.01923359e-07 | R118: 3.020441767e-07 | S118: 3.021650427e-07 | T118: 3.022859571e-07 | U118: 3.024069199e-07 | V118: 3.025279311e-07 | W118: 3.026792707e-07 | X118: 3.02830686e-07 | Y118: 3.029821771e-07 | Z118: 3.03133744e-07 | AA118: 3.032853867e-07 | AB118: 3.034371052e-07 | AC118: 3.035888997e-07 | AD118: 3.037711624e-07 | AE118: 3.039535345e-07 | AF118: 3.041360161e-07 | AG118: 3.043490605e-07 | AH118: 3.04562254e-07 | AI118: 3.04775597e-07 | AJ118: 3.049890893e-07 | AK118: 3.052332759e-07 | AL118: 3.054776581e-07 | AM118: 3.057222359e-07 | AN118: 3.059670095e-07 | AO118: 3.06211979e-07 | AP118: 3.064571448e-07 | AQ118: 3.067025068e-07 | AR118: 3.069480652e-07 | AS118: 3.071938203e-07 | AT118: 3.074397721e-07 | AU118: 3.077167171e-07 | AV118: 3.079939117e-07 | AW118: 3.083022139e-07 | AX118: 3.086108247e-07 | AY118: 3.089197444e-07 | AZ118: 3.095388221e-07 | BA118: 3.101591404e-07 | BB118: 3.107807018e-07 | BC118: 3.114035088e-07 | BD118: 3.120275639e-07 | BE118: 3.129664633e-07 | BF118: 3.139081879e-07 | BG118: 3.148527461e-07 | BH118: 3.16117215e-07 | BI118: 3.17386762e-07 | BJ118: 3.186614076e-07 | BK118: 3.202627213e-07 | BL118: 3.218720817e-07 | BM118: 3.234895293e-07 | BN118: 3.254421824e-07 | BO118: 3.274066221e-07 | BP118: 3.297146245e-07 | BQ118: 3.320388968e-07 | BR118: 3.347166298e-07 | BS118: 3.374159575e-07 | BT118: 3.4048028e-07 | BU118: 3.439194747e-07 | BV118: 3.473934088e-07 | BW118: 3.509024332e-07 | BX118: 3.544469022e-07 | BY118: 3.616805124e-07 | BZ118: 3.690617474e-07 | CA118: 3.765936198e-07 | CB118: 3.842792039e-07 | CC118: 3.921216366e-07 | CD118: 4.042491099e-07 | CE118: 4.167516597e-07 | CF118: 4.296408863e-07 | CG118: 4.429287487e-07 | CH118: 4.613841133e-07 | CI118: 4.806084513e-07 | CJ118: 5.05903633e-07 | CK118: 5.3253014e-07 | CL118: 5.665214255e-07 | CM118: 6.026823675e-07 | CN118: 6.480455565e-07 | CO118: 6.96823179e-07 | CP118: 7.574164989e-07 | CQ118: 8.32325823e-07 | CR118: 9.2480647e-07 | CS118: 1.027562744e-06 | CT118: 1.141736383e-06 | CU118: 1.268595981e-06 | CV118: 1.40955109e-06 | CW118: 1.566167878e-06 | CX118: 1.957709847e-06 | CY118: 2.447137309e-06 | CZ118: 3.058921636e-06 | DA118: 3.823652045e-06 | DB118: 4.779565056e-06 | DC118: 5.97445632e-06 | DD118: 7.4680704e-06 | DE118: 9.335088e-06 | DF118: 1.333584e-05 | DG118: 1.90512e-05 | DH118: 2.7216e-05 | DI118: 3.888e-05 | DJ118: 6.48e-05 | DK118: 0.000108 | DL118: 0.00018 | DM118: 0.00036 | DN118: 0.00072 | DO118: 0.0018 | DP118: 0.006 | DQ118: 0.02 | DR118: =1-$G118 -> 0.1

Sheet FastXL
A1: FastExcel WorkSheet Areas Profile | P1: Version 2.4 Build 496
A3: Physical Environment | D3: Profile: | E3: 2014-03-24T22:29:53 | G3: D:\Dropbox\CD30_Excel\sbAnnuity_Formula.xlsm
A4: RAM(K) | B4: 1758068 | C4: 4192696 | D4: Workbook Settings | J4: Calculation Options
A5: Swap File(K) | B5: 1883588 | C5: 10482288 | D5: Shared | F5: Decimal Places | H5: Protection | J5: Excel Calc Settings | M5: Workbook Calc settings
A6: Excel Memory(K) | B6: 80396 | C6: 2048000 | D6: Shared | E6: FALSE | F6: Fixed | G6: FALSE | H6: Structure | I6: FALSE | J6: Workbook Mode | L6: All | M6: Mixed Mode | P6: Other
A7: FileSize(K) | B7: 148.3193359 | D7: Changes | E7: TRUE | F7: Places | G7: 2 | H7: Windows | I7: FALSE | J7: Current Mode | L7: Automatic | M7: Full | O7: TRUE | P7: UpdateRemoteRefs | R7: TRUE
A8: Windows | B8: Win Vista | D8: Saved | E8: TRUE | F8: Backup | G8: FALSE | H8: Password | I8: FALSE | J8: Before Save | L8: TRUE | M8: Manual | O8: FALSE | P8: PrecisionAsDisplay | R8: FALSE
A9: MHZ x Cores | B9: 2000 x 2 | D9: Format | E9: XMLWorkbookMacro | F9: Styles | G9: 50 | H9: Views | I9: 0 | J9: Initial Mode | L9: First Book | M9: Selected Sheets | O9: FALSE | P9: 1904 DateSystem | R9: FALSE
A10: Excel Version | B10: 14 | D10: Environment Counts | J10: Iteration | L10: TRUE | M10: Restore after Open | O10: FALSE | P10: SaveXternalLinks | R10: TRUE
A11: Calculation Engine | B11: 145621 | D11: Temp | E11: 0 | F11: VBE | G11: 11 | H11: Addins | I11: 5 | J11: Max Iters/change | L11: 100/0.001 | M11: Disabled on Open | O11: TRUE | P11: Accept Labels | R11: FALSE
A13: WorkSheet Areas Profile for | D13: Annuity
A14: Address | B14: Count of | E14: Calc Millisecs | G14: MicroSecs | H14: Area/Col % | I14: FormulaLength
A15: Area | B15: Formula | C15: ArrayCells | D15: CondFmt | E15: Area/Col | F15: Sheet | G15: /Formula | H15: of Sheet | I15: Total | J15: Average | K15: Maximum
A16: $A$4:$E$52 | B16: 245 | C16: 49 | D16: 0 | E16: 20.33412173 | F16: 26.42679424 | G16: 82.99641522 | H16: 0.7694509422 | I16: 22143 | J16: 90.37959184 | K16: 301
A17: $B$3:$E$3 | B17: 4 | C17: 1 | D17: 0 | E17: 1.132553128 | F17: 26.42679424 | G17: 283.1382819 | H17: 0.04285624345 | I17: 432 | J17: 108 | K17: 292
A18: $H$107:$DG$107 | B18: 104 | C18: 0 | D18: 0 | E18: 0.3037121231 | F18: 26.42679424 | G18: 2.920308876 | H18: 0.01149258288 | I18: 1637 | J18: 15.74038462 | K18: 16
A19: $H$96:$CV$96 | B19: 93 | C19: 0 | D19: 0 | E19: 0.2740192384 | F19: 26.42679424 | G19: 2.946443423 | H19: 0.01036899277 | I19: 1276 | J19: 13.72043011 | K19: 14
A20: $H$113:$DM$113 | B20: 110 | C20: 0 | D20: 0 | E20: 0.224360453 | F20: 26.42679424 | G20: 2.039640481 | H20: 0.008489885337 | I20: 1733 | J20: 15.75454545 | K20: 16
A21: $H$117:$DQ$117 | B21: 114 | C21: 0 | D21: 0 | E21: 0.2207768274 | F21: 26.42679424 | G21: 1.936638837 | H21: 0.008354279575 | I21: 1797 | J21: 15.76315789 | K21: 16
A22: $H$80:$CF$80 | B22: 77 | C22: 0 | D22: 0 | E22: 0.2177051509 | F22: 26.42679424 | G22: 2.827339622 | H22: 0.008238046162 | I22: 1052 | J22: 13.66233766 | K22: 14
A23: $H$114:$DN$114 | B23: 111 | C23: 0 | D23: 0 | E23: 0.2177051509 | F23: 26.42679424 | G23: 1.961307666 | H23: 0.008238046162 | I23: 1749 | J23: 15.75675676 | K23: 16
A24: $H$104:$DD$104 | B24: 101 | C24: 0 | D24: 0 | E24: 0.2161693108 | F24: 26.42679424 | G24: 2.140290206 | H24: 0.008179929387 | I24: 1589 | J24: 15.73267327 | K24: 16
A25: $H$77:$CC$77 | B25: 74 | C25: 0 | D25: 0 | E25: 0.2151454199 | F25: 26.42679424 | G25: 2.907370539 | H25: 0.008141184962 | I25: 1010 | J25: 13.64864865 | K25: 14
A26: $H$115:$DO$115 | B26: 112 | C26: 0 | D26: 0 | E26: 0.2125856871 | F26: 26.42679424 | G26: 1.898086492 | H26: 0.008044323694 | I26: 1765 | J26: 15.75892857 | K26: 16
A27: $H$116:$DP$116 | B27: 113 | C27: 0 | D27: 0 | E27: 0.2100259561 | F27: 26.42679424 | G27: 1.858636779 | H27: 0.007947462494 | I27: 1781 | J27: 15.76106195 | K27: 16
A28: $H$101:$DA$101 | B28: 98 | C28: 0 | D28: 0 | E28: 0.2095140106 | F28: 26.42679424 | G28: 2.137898067 | H28: 0.007928090281 | I28: 1541 | J28: 15.7244898 | K28: 16
A29: $H$109:$DI$109 | B29: 106 | C29: 0 | D29: 0 | E29: 0.208490116 | F29: 26.42679424 | G29: 1.966887887 | H29: 0.007889345719 | I29: 1669 | J29: 15.74528302 | K29: 16
A30: $H$108:$DH$108 | B30: 105 | C30: 0 | D30: 0 | E30: 0.2069542796 | F30: 26.42679424 | G30: 1.970993139 | H30: 0.007831229081 | I30: 1653 | J30: 15.74285714 | K30: 16
A31: $H$110:$DJ$110 | B31: 107 | C31: 0 | D31: 0 | E31: 0.2069542796 | F31: 26.42679424 | G31: 1.934152146 | H31: 0.007831229081 | I31: 1685 | J31: 15.74766355 | K31: 16
A32: $H$112:$DL$112 | B32: 109 | C32: 0 | D32: 0 | E32: 0.2064423323 | F32: 26.42679424 | G32: 1.893966351 | H32: 0.0078118568 | I32: 1717 | J32: 15.75229358 | K32: 16
A33: $H$111:$DK$111 | B33: 108 | C33: 0 | D33: 0 | E33: 0.205930385 | F33: 26.42679424 | G33: 1.906762824 | H33: 0.007792484519 | I33: 1701 | J33: 15.75 | K33: 16
A34: $H$97:$CW$97 | B34: 94 | C34: 0 | D34: 0 | E34: 0.2054184395 | F34: 26.42679424 | G34: 2.185302548 | H34: 0.007773112306 | I34: 1290 | J34: 13.72340426 | K34: 14
A35: $H$118:$DR$118 | B35: 115 | C35: 0 | D35: 0 | E35: 0.2049064941 | F35: 26.42679424 | G35: 1.781795601 | H35: 0.007753740094 | I35: 1813 | J35: 15.76521739 | K35: 16
A36: $H$87:$CM$87 | B36: 84 | C36: 0 | D36: 0 | E36: 0.2049064922 | F36: 26.42679424 | G36: 2.439363003 | H36: 0.007753740025 | I36: 1150 | J36: 13.69047619 | K36: 14
A37: $H$102:$DB$102 | B37: 99 | C37: 0 | D37: 0 | E37: 0.2043945486 | F37: 26.42679424 | G37: 2.0645914 | H37: 0.007734367881 | I37: 1557 | J37: 15.72727273 | K37: 16
A38: $H$95:$CU$95 | B38: 92 | C38: 0 | D38: 0 | E38: 0.2043945468 | F38: 26.42679424 | G38: 2.221679856 | H38: 0.007734367812 | I38: 1262 | J38: 13.7173913 | K38: 14
A39: $H$100:$CZ$100 | B39: 97 | C39: 0 | D39: 0 | E39: 0.2043945468 | F39: 26.42679424 | G39: 2.107160276 | H39: 0.007734367812 | I39: 1429 | J39: 14.73195876 | K39: 15
A40: $H$103:$DC$103 | B40: 100 | C40: 0 | D40: 0 | E40: 0.2038825995 | F40: 26.42679424 | G40: 2.038825995 | H40: 0.007714995531 | I40: 1573 | J40: 15.73 | K40: 16
A41: $H$105:$DE$105 | B41: 102 | C41: 0 | D41: 0 | E41: 0.2018348158 | F41: 26.42679424 | G41: 1.978772704 | H41: 0.007637506612 | I41: 1605 | J41: 15.73529412 | K41: 16
A42: $H$106:$DF$106 | B42: 103 | C42: 0 | D42: 0 | E42: 0.2018348158 | F42: 26.42679424 | G42: 1.959561318 | H42: 0.007637506612 | I42: 1621 | J42: 15.73786408 | K42: 16
A43: $H$94:$CT$94 | B43: 91 | C43: 0 | D43: 0 | E43: 0.1982511902 | F43: 26.42679424 | G43: 2.178584508 | H43: 0.00750190085 | I43: 1248 | J43: 13.71428571 | K43: 14
A44: $H$76:$CB$76 | B44: 73 | C44: 0 | D44: 0 | E44: 0.1977392447 | F44: 26.42679424 | G44: 2.708756777 | H44: 0.007482528637 | I44: 996 | J44: 13.64383562 | K44: 14
A45: $H$99:$CY$99 | B45: 96 | C45: 0 | D45: 0 | E45: 0.1977392447 | F45: 26.42679424 | G45: 2.059783799 | H45: 0.007482528637 | I45: 1318 | J45: 13.72916667 | K45: 14
A46: $H$75:$CA$75 | B46: 72 | C46: 0 | D46: 0 | E46: 0.1972272992 | F46: 26.42679424 | G46: 2.739268045 | H46: 0.007463156425 | I46: 982 | J46: 13.63888889 | K46: 14
A47: $H$98:$CX$98 | B47: 95 | C47: 0 | D47: 0 | E47: 0.196715352 | F47: 26.42679424 | G47: 2.070687915 | H47: 0.007443784144 | I47: 1304 | J47: 13.72631579 | K47: 14
A48: $H$81:$CG$81 | B48: 78 | C48: 0 | D48: 0 | E48: 0.1951795137 | F48: 26.42679424 | G48: 2.502301458 | H48: 0.007385667437 | I48: 1066 | J48: 13.66666667 | K48: 14
A49: $H$93:$CS$93 | B49: 90 | C49: 0 | D49: 0 | E49: 0.1951795137 | F49: 26.42679424 | G49: 2.168661264 | H49: 0.007385667437 | I49: 1234 | J49: 13.71111111 | K49: 14
A50: $H$69:$BU$69 | B50: 66 | C50: 0 | D50: 0 | E50: 0.1936436755 | F50: 26.42679424 | G50: 2.933995083 | H50: 0.007327550731 | I50: 898 | J50: 13.60606061 | K50: 14
A51: $H$86:$CL$86 | B51: 83 | C51: 0 | D51: 0 | E51: 0.1936436755 | F51: 26.42679424 | G51: 2.333056331 | H51: 0.007327550731 | I51: 1136 | J51: 13.68674699 | K51: 14
A52: $H$88:$CN$88 | B52: 85 | C52: 0 | D52: 0 | E52: 0.1915958899 | F52: 26.42679424 | G52: 2.254069294 | H52: 0.007250061744 | I52: 1164 | J52: 13.69411765 | K52: 14
A53: $H$92:$CR$92 | B53: 89 | C53: 0 | D53: 0 | E53: 0.1915958899 | F53: 26.42679424 | G53: 2.152762808 | H53: 0.007250061744 | I53: 1220 | J53: 13.70786517 | K53: 14
A54: $H$91:$CQ$91 | B54: 88 | C54: 0 | D54: 0 | E54: 0.1910839445 | F54: 26.42679424 | G54: 2.17140846 | H54: 0.007230689531 | I54: 1206 | J54: 13.70454545 | K54: 14
A55: $H$89:$CO$89 | B55: 86 | C55: 0 | D55: 0 | E55: 0.1900600517 | F55: 26.42679424 | G55: 2.210000601 | H55: 0.007191945038 | I55: 1178 | J55: 13.69767442 | K55: 14
A56: $H$79:$CE$79 | B56: 76 | C56: 0 | D56: 0 | E56: 0.1890361589 | F56: 26.42679424 | G56: 2.487317881 | H56: 0.007153200544 | I56: 1038 | J56: 13.65789474 | K56: 14
A57: $H$90:$CP$90 | B57: 87 | C57: 0 | D57: 0 | E57: 0.1890361589 | F57: 26.42679424 | G57: 2.172829413 | H57: 0.007153200544 | I57: 1192 | J57: 13.70114943 | K57: 14
A58: $H$66:$BR$66 | B58: 63 | C58: 0 | D58: 0 | E58: 0.1885242117 | F58: 26.42679424 | G58: 2.992447804 | H58: 0.007133828262 | I58: 856 | J58: 13.58730159 | K58: 14
A59: $H$84:$CJ$84 | B59: 81 | C59: 0 | D59: 0 | E59: 0.1834047497 | F59: 26.42679424 | G59: 2.264256169 | H59: 0.006940105863 | I59: 1108 | J59: 13.67901235 | K59: 14
A60: $H$85:$CK$85 | B60: 82 | C60: 0 | D60: 0 | E60: 0.1813569659 | F60: 26.42679424 | G60: 2.211670316 | H60: 0.006862616944 | I60: 1122 | J60: 13.68292683 | K60: 14
A61: $H$83:$CI$83 | B61: 80 | C61: 0 | D61: 0 | E61: 0.1808450187 | F61: 26.42679424 | G61: 2.260562733 | H61: 0.006843244663 | I61: 1094 | J61: 13.675 | K61: 14
A62: $H$82:$CH$82 | B62: 79 | C62: 0 | D62: 0 | E62: 0.1803330732 | F62: 26.42679424 | G62: 2.282697129 | H62: 0.00682387245 | I62: 1080 | J62: 13.67088608 | K62: 14
A63: $H$78:$CD$78 | B63: 75 | C63: 0 | D63: 0 | E63: 0.1782852877 | F63: 26.42679424 | G63: 2.377137169 | H63: 0.006746383463 | I63: 1024 | J63: 13.65333333 | K63: 14
A64: $H$67:$BS$67 | B64: 64 | C64: 0 | D64: 0 | E64: 0.1731658256 | F64: 26.42679424 | G64: 2.705716026 | H64: 0.006552661063 | I64: 870 | J64: 13.59375 | K64: 14
A65: $H$73:$BY$73 | B65: 70 | C65: 0 | D65: 0 | E65: 0.1706060946 | F65: 26.42679424 | G65: 2.437229924 | H65: 0.006455799863 | I65: 954 | J65: 13.62857143 | K65: 14
A66: $H$72:$BX$72 | B66: 69 | C66: 0 | D66: 0 | E66: 0.1706060928 | F66: 26.42679424 | G66: 2.47255207 | H66: 0.006455799794 | I66: 940 | J66: 13.62318841 | K66: 14
A67: $H$68:$BT$68 | B67: 65 | C67: 0 | D67: 0 | E67: 0.1690702546 | F67: 26.42679424 | G67: 2.60108084 | H67: 0.006397683088 | I67: 884 | J67: 13.6 | K67: 14
A68: $H$74:$BZ$74 | B68: 71 | C68: 0 | D68: 0 | E68: 0.1690702546 | F68: 26.42679424 | G68: 2.381271191 | H68: 0.006397683088 | I68: 968 | J68: 13.63380282 | K68: 14
A69: $H$70:$BV$70 | B69: 67 | C69: 0 | D69: 0 | E69: 0.1675344164 | F69: 26.42679424 | G69: 2.500513677 | H69: 0.006339566382 | I69: 912 | J69: 13.6119403 | K69: 14
A70: $H$71:$BW$71 | B70: 68 | C70: 0 | D70: 0 | E70: 0.1675344164 | F70: 26.42679424 | G70: 2.463741417 | H70: 0.006339566382 | I70: 926 | J70: 13.61764706 | K70: 14
A71: $H$64:$BP$64 | B71: 61 | C71: 0 | D71: 0 | E71: 0.160367167 | F71: 26.42679424 | G71: 2.628969951 | H71: 0.006068354925 | I71: 828 | J71: 13.57377049 | K71: 14
A72: $H$62:$BN$62 | B72: 59 | C72: 0 | D72: 0 | E72: 0.1588313306 | F72: 26.42679424 | G72: 2.692056451 | H72: 0.006010238288 | I72: 800 | J72: 13.55932203 | K72: 14
A73: $H$65:$BQ$65 | B73: 62 | C73: 0 | D73: 0 | E73: 0.1588313288 | F73: 26.42679424 | G73: 2.561795625 | H73: 0.006010238219 | I73: 842 | J73: 13.58064516 | K73: 14
A74: $H$63:$BO$63 | B74: 60 | C74: 0 | D74: 0 | E74: 0.1572954905 | F74: 26.42679424 | G74: 2.621591509 | H74: 0.005952121513 | I74: 814 | J74: 13.56666667 | K74: 14
A75: $H$60:$BL$60 | B75: 57 | C75: 0 | D75: 0 | E75: 0.1567835432 | F75: 26.42679424 | G75: 2.750588478 | H75: 0.005932749232 | I75: 772 | J75: 13.54385965 | K75: 14
A76: $H$58:$BJ$58 | B76: 55 | C76: 0 | D76: 0 | E76: 0.1537118649 | F76: 26.42679424 | G76: 2.794761181 | H76: 0.00581651575 | I76: 744 | J76: 13.52727273 | K76: 14
A77: $H$59:$BK$59 | B77: 56 | C77: 0 | D77: 0 | E77: 0.152687974 | F77: 26.42679424 | G77: 2.726570964 | H77: 0.005777771325 | I77: 758 | J77: 13.53571429 | K77: 14
A78: $H$57:$BI$57 | B78: 54 | C78: 0 | D78: 0 | E78: 0.1511521339 | F78: 26.42679424 | G78: 2.799113592 | H78: 0.00571965455 | I78: 730 | J78: 13.51851852 | K78: 14
A79: $H$61:$BM$61 | B79: 58 | C79: 0 | D79: 0 | E79: 0.150128243 | F79: 26.42679424 | G79: 2.588417983 | H79: 0.005680910125 | I79: 786 | J79: 13.55172414 | K79: 14
A80: $H$56:$BH$56 | B80: 53 | C80: 0 | D80: 0 | E80: 0.1491043502 | F80: 26.42679424 | G80: 2.813289627 | H80: 0.005642165632 | I80: 716 | J80: 13.50943396 | K80: 14
A81: $H$55:$BG$55 | B81: 52 | C81: 0 | D81: 0 | E81: 0.147568512 | F81: 26.42679424 | G81: 2.837856 | H81: 0.005584048926 | I81: 702 | J81: 13.5 | K81: 14
A82: $H$52:$BD$52 | B82: 49 | C82: 0 | D82: 0 | E82: 0.1465446192 | F82: 26.42679424 | G82: 2.990706515 | H82: 0.005545304432 | I82: 660 | J82: 13.46938776 | K82: 14
A83: $H$54:$BF$54 | B83: 51 | C83: 0 | D83: 0 | E83: 0.1455207265 | F83: 26.42679424 | G83: 2.853347578 | H83: 0.005506559938 | I83: 688 | J83: 13.49019608 | K83: 14
A84: $H$53:$BE$53 | B84: 50 | C84: 0 | D84: 0 | E84: 0.1444968337 | F84: 26.42679424 | G84: 2.889936674 | H84: 0.005467815444 | I84: 674 | J84: 13.48 | K84: 14
A85: $H$49:$BA$49 | B85: 46 | C85: 0 | D85: 0 | E85: 0.1439848864 | F85: 26.42679424 | G85: 3.130106226 | H85: 0.005448443163 | I85: 618 | J85: 13.43478261 | K85: 14
A86: $H$51:$BC$51 | B86: 48 | C86: 0 | D86: 0 | E86: 0.1429609936 | F86: 26.42679424 | G86: 2.978354034 | H86: 0.005409698669 | I86: 646 | J86: 13.45833333 | K86: 14
A87: $H$50:$BB$50 | B87: 47 | C87: 0 | D87: 0 | E87: 0.1414251554 | F87: 26.42679424 | G87: 3.00904586 | H87: 0.005351581963 | I87: 632 | J87: 13.44680851 | K87: 14
A88: $H$46:$AX$46 | B88: 43 | C88: 0 | D88: 0 | E88: 0.1404012645 | F88: 26.42679424 | G88: 3.265145685 | H88: 0.005312837538 | I88: 576 | J88: 13.39534884 | K88: 14
A89: $H$48:$AZ$48 | B89: 45 | C89: 0 | D89: 0 | E89: 0.1393773699 | F89: 26.42679424 | G89: 3.097274886 | H89: 0.005274092976 | I89: 604 | J89: 13.42222222 | K89: 14
A90: $H$43:$AU$43 | B90: 40 | C90: 0 | D90: 0 | E90: 0.1388654262 | F90: 26.42679424 | G90: 3.471635656 | H90: 0.005254720832 | I90: 534 | J90: 13.35 | K90: 14
A91: $H$47:$AY$47 | B91: 44 | C91: 0 | D91: 0 | E91: 0.1378415335 | F91: 26.42679424 | G91: 3.132762124 | H91: 0.005215976338 | I91: 590 | J91: 13.40909091 | K91: 14
A92: $H$45:$AW$45 | B92: 42 | C92: 0 | D92: 0 | E92: 0.1373295844 | F92: 26.42679424 | G92: 3.269752008 | H92: 0.005196603988 | I92: 562 | J92: 13.38095238 | K92: 14
A93: $H$44:$AV$44 | B93: 41 | C93: 0 | D93: 0 | E93: 0.1357937479 | F93: 26.42679424 | G93: 3.312042633 | H93: 0.005138487351 | I93: 548 | J93: 13.36585366 | K93: 14
A94: $H$41:$AS$41 | B94: 38 | C94: 0 | D94: 0 | E94: 0.1342579079 | F94: 26.42679424 | G94: 3.533102839 | H94: 0.005080370576 | I94: 506 | J94: 13.31578947 | K94: 14
A95: $H$40:$AR$40 | B95: 37 | C95: 0 | D95: 0 | E95: 0.1327220696 | F95: 26.42679424 | G95: 3.587082963 | H95: 0.005022253869 | I95: 492 | J95: 13.2972973 | K95: 14
A96: $H$42:$AT$42 | B96: 39 | C96: 0 | D96: 0 | E96: 0.1322101242 | F96: 26.42679424 | G96: 3.390003184 | H96: 0.005002881657 | I96: 520 | J96: 13.33333333 | K96: 14
A97: $H$39:$AQ$39 | B97: 36 | C97: 0 | D97: 0 | E97: 0.1301623386 | F97: 26.42679424 | G97: 3.615620518 | H97: 0.004925392669 | I97: 478 | J97: 13.27777778 | K97: 14
A98: $H$37:$AO$37 | B98: 34 | C98: 0 | D98: 0 | E98: 0.1291384459 | F98: 26.42679424 | G98: 3.798189585 | H98: 0.004886648176 | I98: 450 | J98: 13.23529412 | K98: 14
A99: $H$38:$AP$38 | B99: 35 | C99: 0 | D99: 0 | E99: 0.1291384459 | F99: 26.42679424 | G99: 3.689669882 | H99: 0.004886648176 | I99: 464 | J99: 13.25714286 | K99: 14
A100: $H$31:$AI$31 | B100: 28 | C100: 0 | D100: 0 | E100: 0.1270906603 | F100: 26.42679424 | G100: 4.538952155 | H100: 0.004809159188 | I100: 366 | J100: 13.07142857 | K100: 14
A101: $H$32:$AJ$32 | B101: 29 | C101: 0 | D101: 0 | E101: 0.1265787149 | F101: 26.42679424 | G101: 4.364783272 | H101: 0.004789786976 | I101: 380 | J101: 13.10344828 | K101: 14
A102: $H$30:$AH$30 | B102: 27 | C102: 0 | D102: 0 | E102: 0.1260667694 | F102: 26.42679424 | G102: 4.669139607 | H102: 0.004770414763 | I102: 352 | J102: 13.03703704 | K102: 14
A103: $H$36:$AN$36 | B103: 33 | C103: 0 | D103: 0 | E103: 0.1260667694 | F103: 26.42679424 | G103: 3.820205133 | H103: 0.004770414763 | I103: 436 | J103: 13.21212121 | K103: 14
A104: $H$34:$AL$34 | B104: 31 | C104: 0 | D104: 0 | E104: 0.1260667676 | F104: 26.42679424 | G104: 4.066669922 | H104: 0.004770414694 | I104: 408 | J104: 13.16129032 | K104: 14
A105: $H$35:$AM$35 | B105: 32 | C105: 0 | D105: 0 | E105: 0.1255548221 | F105: 26.42679424 | G105: 3.923588191 | H105: 0.004751042482 | I105: 422 | J105: 13.1875 | K105: 14
A106: $H$33:$AK$33 | B106: 30 | C106: 0 | D106: 0 | E106: 0.1250428748 | F106: 26.42679424 | G106: 4.168095827 | H106: 0.004731670201 | I106: 394 | J106: 13.13333333 | K106: 14
A107: $H$28:$AF$28 | B107: 25 | C107: 0 | D107: 0 | E107: 0.1199234146 | F107: 26.42679424 | G107: 4.796936585 | H107: 0.00453794787 | I107: 324 | J107: 12.96 | K107: 14
A108: $H$29:$AG$29 | B108: 26 | C108: 0 | D108: 0 | E108: 0.1199234128 | F108: 26.42679424 | G108: 4.612438954 | H108: 0.004537947801 | I108: 338 | J108: 13 | K108: 14
A109: $H$26:$AD$26 | B109: 23 | C109: 0 | D109: 0 | E109: 0.1188995219 | F109: 26.42679424 | G109: 5.169544429 | H109: 0.004499203376 | I109: 296 | J109: 12.86956522 | K109: 14
A110: $H$27:$AE$27 | B110: 24 | C110: 0 | D110: 0 | E110: 0.1168517345 | F110: 26.42679424 | G110: 4.868822272 | H110: 0.00442171432 | I110: 310 | J110: 12.91666667 | K110: 14
A111: $H$24:$AB$24 | B111: 21 | C111: 0 | D111: 0 | E111: 0.1153158963 | F111: 26.42679424 | G111: 5.491233156 | H111: 0.004363597613 | I111: 268 | J111: 12.76190476 | K111: 14
A112: $H$25:$AC$25 | B112: 22 | C112: 0 | D112: 0 | E112: 0.1153158963 | F112: 26.42679424 | G112: 5.241631649 | H112: 0.004363597613 | I112: 282 | J112: 12.81818182 | K112: 14
A113: $H$18:$V$18 | B113: 15 | C113: 0 | D113: 0 | E113: 0.1142920053 | F113: 26.42679424 | G113: 7.619467023 | H113: 0.004324853188 | I113: 189 | J113: 12.6 | K113: 13
A114: $H$15:$S$15 | B114: 12 | C114: 0 | D114: 0 | E114: 0.113780058 | F114: 26.42679424 | G114: 9.481671504 | H114: 0.004305480907 | I114: 150 | J114: 12.5 | K114: 13
A115: $H$14:$R$14 | B115: 11 | C115: 0 | D115: 0 | E115: 0.1127561653 | F115: 26.42679424 | G115: 10.25056048 | H115: 0.004266736413 | I115: 137 | J115: 12.45454545 | K115: 13
A116: $H$23:$AA$23 | B116: 20 | C116: 0 | D116: 0 | E116: 0.1127561653 | F116: 26.42679424 | G116: 5.637808264 | H116: 0.004266736413 | I116: 254 | J116: 12.7 | K116: 13
A117: $H$21:$Y$21 | B117: 18 | C117: 0 | D117: 0 | E117: 0.112244218 | F117: 26.42679424 | G117: 6.235789888 | H117: 0.004247364132 | I117: 228 | J117: 12.66666667 | K117: 13
A118: $H$22:$Z$22 | B118: 19 | C118: 0 | D118: 0 | E118: 0.111220327 | F118: 26.42679424 | G118: 5.853701424 | H118: 0.004208619707 | I118: 241 | J118: 12.68421053 | K118: 13
A119: $H$19:$W$19 | B119: 16 | C119: 0 | D119: 0 | E119: 0.1091725415 | F119: 26.42679424 | G119: 6.823283845 | H119: 0.00413113072 | I119: 202 | J119: 12.625 | K119: 13
A120: $H$6:$J$6 | B120: 3 | C120: 0 | D120: 0 | E120: 0.108660596 | F120: 26.42679424 | G120: 36.22019868 | H120: 0.004111758507 | I120: 28 | J120: 9.333333333 | K120: 11
A121: $H$17:$U$17 | B121: 14 | C121: 0 | D121: 0 | E121: 0.1076367015 | F121: 26.42679424 | G121: 7.688335819 | H121: 0.004073013945 | I121: 176 | J121: 12.57142857 | K121: 13
A122: $H$20:$X$20 | B122: 17 | C122: 0 | D122: 0 | E122: 0.1076367015 | F122: 26.42679424 | G122: 6.331570674 | H122: 0.004073013945 | I122: 215 | J122: 12.64705882 | K122: 13
A123: $H$16:$T$16 | B123: 13 | C123: 0 | D123: 0 | E123: 0.1066128105 | F123: 26.42679424 | G123: 8.200985424 | H123: 0.00403426952 | I123: 163 | J123: 12.53846154 | K123: 13
A124: $H$13:$Q$13 | B124: 10 | C124: 0 | D124: 0 | E124: 0.1025172395 | F124: 26.42679424 | G124: 10.25172395 | H124: 0.003879291545 | I124: 124 | J124: 12.4 | K124: 13
A125: $H$8:$L$8 | B125: 5 | C125: 0 | D125: 0 | E125: 0.102005294 | F125: 26.42679424 | G125: 20.4010588 | H125: 0.003859919332 | I125: 50 | J125: 10 | K125: 11
A126: $H$11:$O$11 | B126: 8 | C126: 0 | D126: 0 | E126: 0.1014933485 | F126: 26.42679424 | G126: 12.68666856 | H126: 0.00384054712 | I126: 98 | J126: 12.25 | K126: 13
A127: $H$9:$M$9 | B127: 6 | C127: 0 | D127: 0 | E127: 0.1004694539 | F127: 26.42679424 | G127: 16.74490899 | H127: 0.003801802557 | I127: 61 | J127: 10.16666667 | K127: 11
A128: $H$12:$P$12 | B128: 9 | C128: 0 | D128: 0 | E128: 0.09995751028 | F128: 26.42679424 | G128: 11.10639003 | H128: 0.003782430414 | I128: 111 | J128: 12.33333333 | K128: 13
A129: $H$7:$K$7 | B129: 4 | C129: 0 | D129: 0 | E129: 0.09893361569 | F129: 26.42679424 | G129: 24.73340392 | H129: 0.003743685851 | I129: 39 | J129: 9.75 | K129: 11
A130: $H$10:$N$10 | B130: 7 | C130: 0 | D130: 0 | E130: 0.09790972293 | F130: 26.42679424 | G130: 13.98710328 | H130: 0.003704941357 | I130: 79 | J130: 11.28571429 | K130: 12
A131: $H$5:$I$5 | B131: 2 | C131: 0 | D131: 0 | E131: 0.09688583198 | F131: 26.42679424 | G131: 48.44291599 | H131: 0.003666196932 | I131: 17 | J131: 8.5 | K131: 11
A132: $H$4 | B132: 1 | C132: 0 | D132: 0 | E132: 0.09279026093 | F132: 26.42679424 | G132: 92.79026093 | H132: 0.003511218957 | I132: 6 | J132: 6 | K132: 6
A133: Column
A134: B | B134: 50 | C134: 50 | D134: 0 | E134: 12.01448296 | F134: 26.42679424 | G134: 240.2896592 | H134: 0.4546326296 | I134: 14987 | J134: 299.74 | K134: 301
A135: C | B135: 50 | C135: 0 | D135: 0 | E135: 7.213450876 | F135: 26.42679424 | G135: 144.2690175 | H135: 0.2729597396 | I135: 1593 | J135: 31.86 | K135: 32
A136: Q | B136: 106 | C136: 0 | D136: 0 | E136: 0.3200944037 | F136: 26.42679424 | G136: 3.019758525 | H136: 0.01211249464 | I136: 1409 | J136: 13.29245283 | K136: 15
A137: E | B137: 50 | C137: 0 | D137: 0 | E137: 0.3134391016 | F137: 26.42679424 | G137: 6.268782032 | H137: 0.01186065547 | I137: 3429 | J137: 68.58 | K137: 69
A138: D | B138: 50 | C138: 0 | D138: 0 | E138: 0.2709475619 | F138: 26.42679424 | G138: 5.418951238 | H138: 0.01025275936 | I138: 2279 | J138: 45.58 | K138: 46
A139: S | B139: 104 | C139: 0 | D139: 0 | E139: 0.2673639381 | F139: 26.42679424 | G139: 2.570807098 | H139: 0.01011715366 | I139: 1383 | J139: 13.29807692 | K139: 15
A140: W | B140: 100 | C140: 0 | D140: 0 | E140: 0.2601966888 | F140: 26.42679424 | G140: 2.601966888 | H140: 0.009845942205 | I140: 1331 | J140: 13.31 | K140: 15
A141: L | B141: 111 | C141: 0 | D141: 0 | E141: 0.2274321294 | F141: 26.42679424 | G141: 2.048938103 | H141: 0.00860611875 | I141: 1470 | J141: 13.24324324 | K141: 15
A142: H | B142: 115 | C142: 0 | D142: 0 | E142: 0.2233365584 | F142: 26.42679424 | G142: 1.942057029 | H142: 0.008451140775 | I142: 1514 | J142: 13.16521739 | K142: 15
A143: J | B143: 113 | C143: 0 | D143: 0 | E143: 0.2130976344 | F143: 26.42679424 | G143: 1.885819773 | H143: 0.008063695975 | I143: 1492 | J143: 13.20353982 | K143: 15
A144: I | B144: 114 | C144: 0 | D144: 0 | E144: 0.211049847 | F144: 26.42679424 | G144: 1.851314447 | H144: 0.007986206918 | I144: 1503 | J144: 13.18421053 | K144: 15
A145: K | B145: 112 | C145: 0 | D145: 0 | E145: 0.2105379015 | F145: 26.42679424 | G145: 1.879802692 | H145: 0.007966834706 | I145: 1481 | J145: 13.22321429 | K145: 15
A146: U | B146: 102 | C146: 0 | D146: 0 | E146: 0.2023467631 | F146: 26.42679424 | G146: 1.983791795 | H146: 0.007656878894 | I146: 1357 | J146: 13.30392157 | K146: 15
A147: Y | B147: 98 | C147: 0 | D147: 0 | E147: 0.1910839427 | F147: 26.42679424 | G147: 1.94983615 | H147: 0.007230689462 | I147: 1305 | J147: 13.31632653 | K147: 15
A148: BE | B148: 66 | C148: 0 | D148: 0 | E148: 0.1875003189 | F148: 26.42679424 | G148: 2.840913923 | H148: 0.007095083769 | I148: 954 | J148: 14.45454545 | K148: 16
A149: R | B149: 105 | C149: 0 | D149: 0 | E149: 0.1828928042 | F149: 26.42679424 | G149: 1.74183623 | H149: 0.00692073365 | I149: 1396 | J149: 13.2952381 | K149: 15
A150: AH | B150: 89 | C150: 0 | D150: 0 | E150: 0.1721419311 | F150: 26.42679424 | G150: 1.934179001 | H150: 0.0065139165 | I150: 1276 | J150: 14.33707865 | K150: 16
A151: AX | B151: 73 | C151: 0 | D151: 0 | E151: 0.1721419311 | F151: 26.42679424 | G151: 2.358108645 | H151: 0.0065139165 | I151: 1052 | J151: 14.4109589 | K151: 16
A152: AJ | B152: 87 | C152: 0 | D152: 0 | E152: 0.1711180401 | F152: 26.42679424 | G152: 1.966874024 | H152: 0.006475172075 | I152: 1248 | J152: 14.34482759 | K152: 16
A153: AG | B153: 90 | C153: 0 | D153: 0 | E153: 0.1700941474 | F153: 26.42679424 | G153: 1.889934971 | H153: 0.006436427581 | I153: 1290 | J153: 14.33333333 | K153: 16
A154: BJ | B154: 61 | C154: 0 | D154: 0 | E154: 0.1700941474 | F154: 26.42679424 | G154: 2.788428645 | H154: 0.006436427581 | I154: 884 | J154: 14.49180328 | K154: 16
A155: T | B155: 103 | C155: 0 | D155: 0 | E155: 0.1695822001 | F155: 26.42679424 | G155: 1.646429127 | H155: 0.0064170553 | I155: 1370 | J155: 13.30097087 | K155: 15
A156: X | B156: 99 | C156: 0 | D156: 0 | E156: 0.1690702546 | F156: 26.42679424 | G156: 1.707780349 | H156: 0.006397683088 | I156: 1318 | J156: 13.31313131 | K156: 15
A157: V | B157: 101 | C157: 0 | D157: 0 | E157: 0.1685583073 | F157: 26.42679424 | G157: 1.668894132 | H157: 0.006378310806 | I157: 1344 | J157: 13.30693069 | K157: 15
A158: AD | B158: 93 | C158: 0 | D158: 0 | E158: 0.1675344145 | F158: 26.42679424 | G158: 1.801445318 | H158: 0.006339566313 | I158: 1332 | J158: 14.32258065 | K158: 16
A159: AB | B159: 95 | C159: 0 | D159: 0 | E159: 0.1670224691 | F159: 26.42679424 | G159: 1.758131253 | H159: 0.0063201941 | I159: 1360 | J159: 14.31578947 | K159: 16
A160: AF | B160: 91 | C160: 0 | D160: 0 | E160: 0.1665105236 | F160: 26.42679424 | G160: 1.829785974 | H160: 0.006300821888 | I160: 1304 | J160: 14.32967033 | K160: 16
A161: Z | B161: 97 | C161: 0 | D161: 0 | E161: 0.1659985763 | F161: 26.42679424 | G161: 1.711325529 | H161: 0.006281449606 | I161: 1292 | J161: 13.31958763 | K161: 15
A162: AA | B162: 96 | C162: 0 | D162: 0 | E162: 0.1654866308 | F162: 26.42679424 | G162: 1.723819071 | H162: 0.006262077394 | I162: 1374 | J162: 14.3125 | K162: 16
A163: AE | B163: 92 | C163: 0 | D163: 0 | E163: 0.1649746854 | F163: 26.42679424 | G163: 1.793203102 | H163: 0.006242705182 | I163: 1318 | J163: 14.32608696 | K163: 16
A164: AI | B164: 88 | C164: 0 | D164: 0 | E164: 0.1649746835 | F164: 26.42679424 | G164: 1.874712313 | H164: 0.006242705113 | I164: 1262 | J164: 14.34090909 | K164: 16
A165: AC | B165: 94 | C165: 0 | D165: 0 | E165: 0.1629268998 | F165: 26.42679424 | G165: 1.733264892 | H165: 0.006165216194 | I165: 1346 | J165: 14.31914894 | K165: 16
A166: AQ | B166: 80 | C166: 0 | D166: 0 | E166: 0.1624149544 | F166: 26.42679424 | G166: 2.030186929 | H166: 0.006145843982 | I166: 1150 | J166: 14.375 | K166: 16
A167: AM | B167: 84 | C167: 0 | D167: 0 | E167: 0.1619030071 | F167: 26.42679424 | G167: 1.927416751 | H167: 0.0061264717 | I167: 1206 | J167: 14.35714286 | K167: 16
A168: AL | B168: 85 | C168: 0 | D168: 0 | E168: 0.1613910616 | F168: 26.42679424 | G168: 1.898718372 | H168: 0.006107099488 | I168: 1220 | J168: 14.35294118 | K168: 16
A169: N | B169: 109 | C169: 0 | D169: 0 | E169: 0.1603671688 | F169: 26.42679424 | G169: 1.47125843 | H169: 0.006068354994 | I169: 1448 | J169: 13.28440367 | K169: 15
A170: BT | B170: 51 | C170: 0 | D170: 0 | E170: 0.1603671688 | F170: 26.42679424 | G170: 3.144454291 | H170: 0.006068354994 | I170: 744 | J170: 14.58823529 | K170: 16
A171: AO | B171: 82 | C171: 0 | D171: 0 | E171: 0.1598552215 | F171: 26.42679424 | G171: 1.949453921 | H171: 0.006048982713 | I171: 1178 | J171: 14.36585366 | K171: 16
A172: M | B172: 110 | C172: 0 | D172: 0 | E172: 0.157807436 | F172: 26.42679424 | G172: 1.434613055 | H172: 0.005971493725 | I172: 1459 | J172: 13.26363636 | K172: 15
A173: AK | B173: 86 | C173: 0 | D173: 0 | E173: 0.157807436 | F173: 26.42679424 | G173: 1.834970186 | H173: 0.005971493725 | I173: 1234 | J173: 14.34883721 | K173: 16
A174: AR | B174: 79 | C174: 0 | D174: 0 | E174: 0.157807436 | F174: 26.42679424 | G174: 1.997562481 | H174: 0.005971493725 | I174: 1136 | J174: 14.37974684 | K174: 16
A175: P | B175: 107 | C175: 0 | D175: 0 | E175: 0.1572954905 | F175: 26.42679424 | G175: 1.470051313 | H175: 0.005952121513 | I175: 1422 | J175: 13.28971963 | K175: 15
A176: AT | B176: 77 | C176: 0 | D176: 0 | E176: 0.1572954905 | F176: 26.42679424 | G176: 2.042798578 | H176: 0.005952121513 | I176: 1108 | J176: 14.38961039 | K176: 16
A177: AN | B177: 83 | C177: 0 | D177: 0 | E177: 0.1567835432 | F177: 26.42679424 | G177: 1.888958352 | H177: 0.005932749232 | I177: 1192 | J177: 14.36144578 | K177: 16
A178: BO | B178: 56 | C178: 0 | D178: 0 | E178: 0.1567835432 | F178: 26.42679424 | G178: 2.799706129 | H178: 0.005932749232 | I178: 814 | J178: 14.53571429 | K178: 16
A179: AV | B179: 75 | C179: 0 | D179: 0 | E179: 0.1562715978 | F179: 26.42679424 | G179: 2.083621304 | H179: 0.005913377019 | I179: 1080 | J179: 14.4 | K179: 16
A180: AP | B180: 81 | C180: 0 | D180: 0 | E180: 0.1557596505 | F180: 26.42679424 | G180: 1.922958648 | H180: 0.005894004738 | I180: 1164 | J180: 14.37037037 | K180: 16
A181: AS | B181: 78 | C181: 0 | D181: 0 | E181: 0.155247705 | F181: 26.42679424 | G181: 1.990355192 | H181: 0.005874632525 | I181: 1122 | J181: 14.38461538 | K181: 16
A182: O | B182: 108 | C182: 0 | D182: 0 | E182: 0.1542238141 | F182: 26.42679424 | G182: 1.427998278 | H182: 0.0058358881 | I182: 1435 | J182: 13.28703704 | K182: 15
A183: BA | B183: 70 | C183: 0 | D183: 0 | E183: 0.1537118668 | F183: 26.42679424 | G183: 2.195883811 | H183: 0.005816515819 | I183: 1010 | J183: 14.42857143 | K183: 16
A184: AY | B184: 72 | C184: 0 | D184: 0 | E184: 0.1531999195 | F184: 26.42679424 | G184: 2.127776659 | H184: 0.005797143538 | I184: 1038 | J184: 14.41666667 | K184: 16
A185: AU | B185: 76 | C185: 0 | D185: 0 | E185: 0.152687974 | F185: 26.42679424 | G185: 2.009052289 | H185: 0.005777771325 | I185: 1094 | J185: 14.39473684 | K185: 16
A186: AZ | B186: 71 | C186: 0 | D186: 0 | E186: 0.150128243 | F186: 26.42679424 | G186: 2.114482296 | H186: 0.005680910125 | I186: 1024 | J186: 14.42253521 | K186: 16
A187: BD | B187: 67 | C187: 0 | D187: 0 | E187: 0.1496162957 | F187: 26.42679424 | G187: 2.23307904 | H187: 0.005661537844 | I187: 968 | J187: 14.44776119 | K187: 16
A188: AW | B188: 74 | C188: 0 | D188: 0 | E188: 0.1485924029 | F188: 26.42679424 | G188: 2.008005445 | H188: 0.00562279335 | I188: 1066 | J188: 14.40540541 | K188: 16
A189: BB | B189: 69 | C189: 0 | D189: 0 | E189: 0.1485924029 | F189: 26.42679424 | G189: 2.153513086 | H189: 0.00562279335 | I189: 996 | J189: 14.43478261 | K189: 16
A190: BC | B190: 68 | C190: 0 | D190: 0 | E190: 0.147568512 | F190: 26.42679424 | G190: 2.170125176 | H190: 0.005584048926 | I190: 982 | J190: 14.44117647 | K190: 16
A191: BZ | B191: 45 | C191: 0 | D191: 0 | E191: 0.1429609955 | F191: 26.42679424 | G191: 3.17691101 | H191: 0.005409698738 | I191: 660 | J191: 14.66666667 | K191: 16
A192: CE | B192: 40 | C192: 0 | D192: 0 | E192: 0.1424490482 | F192: 26.42679424 | G192: 3.561226204 | H192: 0.005390326457 | I192: 590 | J192: 14.75 | K192: 16
A193: BF | B193: 65 | C193: 0 | D193: 0 | E193: 0.1378415316 | F193: 26.42679424 | G193: 2.120638948 | H193: 0.005215976269 | I193: 940 | J193: 14.46153846 | K193: 16
A194: BN | B194: 57 | C194: 0 | D194: 0 | E194: 0.1363056934 | F194: 26.42679424 | G194: 2.391327955 | H194: 0.005157859563 | I194: 828 | J194: 14.52631579 | K194: 16
A195: BI | B195: 62 | C195: 0 | D195: 0 | E195: 0.1347698552 | F195: 26.42679424 | G195: 2.173707341 | H195: 0.005099742857 | I195: 898 | J195: 14.48387097 | K195: 16
A196: BG | B196: 64 | C196: 0 | D196: 0 | E196: 0.1327220715 | F196: 26.42679424 | G196: 2.073782367 | H196: 0.005022253938 | I196: 926 | J196: 14.46875 | K196: 16
A197: BQ | B197: 54 | C197: 0 | D197: 0 | E197: 0.1311862314 | F197: 26.42679424 | G197: 2.429374656 | H197: 0.004964137163 | I197: 786 | J197: 14.55555556 | K197: 16
A198: BH | B198: 63 | C198: 0 | D198: 0 | E198: 0.1306742841 | F198: 26.42679424 | G198: 2.074194986 | H198: 0.004944764882 | I198: 912 | J198: 14.47619048 | K198: 16
A199: BW | B199: 48 | C199: 0 | D199: 0 | E199: 0.1301623386 | F199: 26.42679424 | G199: 2.711715388 | H199: 0.004925392669 | I199: 702 | J199: 14.625 | K199: 16
A200: BK | B200: 60 | C200: 0 | D200: 0 | E200: 0.1296503932 | F200: 26.42679424 | G200: 2.160839886 | H200: 0.004906020457 | I200: 870 | J200: 14.5 | K200: 16
A201: BL | B201: 59 | C201: 0 | D201: 0 | E201: 0.1296503913 | F201: 26.42679424 | G201: 2.19746426 | H201: 0.004906020388 | I201: 856 | J201: 14.50847458 | K201: 16
A202: BM | B202: 58 | C202: 0 | D202: 0 | E202: 0.1276026076 | F202: 26.42679424 | G202: 2.200044959 | H202: 0.004828531469 | I202: 842 | J202: 14.51724138 | K202: 16
... 169 more rows
